Workbook

Sheet Title
D3: =UPPER(Setup!I8) -> NCC WATER
R4: DASH | T4: Summary of NCC outcomes and main data inputs
R5: USER GUIDE | T5: User guidance
R6: SETUP | T6: Input sheet for timing assumptions
R7: LEGEND | T7: Modelling conventions and validation lists
R8: DataOPEX | T8: Input sheet for base year operating and maintenance expenditure
R9: DataCAPEX | T9: Input sheet for capital expenditure
R10: DataCON&ASSUMPTIONS | T10: Input sheet for new customer connections and finance assumptions
R11: =Setup!E63 -> Ballarat | T11: ="NCC calculation sheet for "&Legend!E46 -> NCC calculation sheet for Ballarat
R12: =Setup!E64 -> Avoca | T12: ="NCC calculation sheet for "&Legend!E47 -> NCC calculation sheet for Avoca
R13: =Setup!E65 -> Beaufort | T13: ="NCC calculation sheet for "&Legend!E48 -> NCC calculation sheet for Beaufort
R14: =Setup!E66 -> Daylesford | T14: ="NCC calculation sheet for "&Legend!E49 -> NCC calculation sheet for Daylesford
D15: =Setup!W41&" to "&Setup!AP41 -> 2023-24 to 2042-43 | R15: =Setup!E67 -> Maryborough | T15: ="NCC calculation sheet for "&Legend!E50 -> NCC calculation sheet for Maryborough
D16: Version | E16: =Setup!I9 -> 0.1 | F16: =Setup!I10 -> 2022-04-01 | R16: =Setup!E68 -> Remainder | T16: ="NCC calculation sheet for "&Legend!E51 -> NCC calculation sheet for Remainder
R17: =Setup!E69 -> System7 | T17: ="NCC calculation sheet for "&Legend!E52 -> NCC calculation sheet for System7
R18: =Setup!E70 -> System8 | T18: ="NCC calculation sheet for "&Legend!E53 -> NCC calculation sheet for System8
R19: =Setup!E71 -> System9 | T19: ="NCC calculation sheet for "&Legend!E54 -> NCC calculation sheet for System9
R20: =Setup!E72 -> System10 | T20: ="NCC calculation sheet for "&Legend!E55 -> NCC calculation sheet for System10
R21: IFC | T21: Incremental Financing Costs
R26: Note - The A1 cell in each sheet has been linked to the title page to allow for navigation to table of contents

Sheet DASH
A1: Title!A1
C3: NCC - 20 YEAR | I3: CAPEX
C4: ="$"&Setup!U41 -> $2021-22 | I4: =C4&" million" -> $2021-22 million | J4: 20 year NPV
C6: System | I6: System
C7: =Setup!E63 -> Ballarat | D7: Per con | E7: =IF(Ballarat!Q79="Off",Ballarat!Q74,Ballarat!Q83) -> 4602.228714 | I7: =C7 -> Ballarat | J7: $NPV | K7: =Ballarat!Q34/1000000 -> 128.0335985
C8: =Setup!E64 -> Avoca | D8: Per con | E8: =IF(Avoca!Q79="Off",Avoca!Q74,Avoca!Q83) -> 0 | I8: =C8 -> Avoca | J8: $NPV | K8: =Avoca!Q34/1000000 -> 0
C9: =Setup!E65 -> Beaufort | D9: Per con | E9: =IF(Beaufort!Q79="Off",Beaufort!Q74,Beaufort!Q83) -> 0 | I9: Beaufort | J9: $NPV | K9: =Beaufort!Q34/1000000 -> 0
C10: =Setup!E66 -> Daylesford | D10: Per con | E10: =IF(Daylesford!Q79="Off",Daylesford!Q74,Daylesford!Q83) -> 4800.795686 | I10: Daylesford | J10: $NPV | K10: =Daylesford!Q34/1000000 -> 1.870430826
C11: =Setup!E67 -> Maryborough | D11: Per con | E11: =IF(Maryborough!Q79="Off",Maryborough!Q74,Maryborough!Q83) -> 11573.15582 | I11: Maryborough | J11: $NPV | K11: =Maryborough!Q34/1000000 -> 8.721259039
C12: =Setup!E68 -> Remainder | D12: Per con | E12: =IF(Remainder!Q79="Off",Remainder!Q74,Remainder!Q83) -> 4987.166022 | I12: Remainder | J12: $NPV | K12: =Remainder!Q34/1000000 -> 2.527473044
C13: =Setup!E69 -> System7 | D13: Per con | E13: =IF(System7!Q79="Off",System7!Q74,System7!Q83) -> 0 | I13: System7 | J13: $NPV | K13: =System7!Q34/1000000 -> 0
C14: =Setup!E70 -> System8 | D14: Per con | E14: =IF(System8!Q79="Off",System8!Q74,System8!Q83) -> 0 | I14: System8 | J14: $NPV | K14: =System8!Q34/1000000 -> 0
C15: =Setup!E71 -> System9 | D15: Per con | E15: =IF(System9!Q79="Off",System9!Q74,System9!Q83) -> 0 | I15: System9 | J15: $NPV | K15: =System9!Q34/1000000 -> 0
C16: =Setup!E72 -> System10 | D16: Per con | E16: =IF(System10!Q79="Off",System10!Q74,System10!Q83) -> 0 | I16: =C16 -> System10 | J16: $NPV | K16: =System10!Q34/1000000 -> 0
C21: NEW CUSTOMERS | I21: OPEX
C22: Connections | D22: 20 years | I22: =I4 -> $2021-22 million | J22: 20 year NPV
C24: System | I24: System
C25: =C7 -> Ballarat | D25: Con | E25: =SUM(Ballarat!W63:AP63) -> 41277.93154 | I25: =C7 -> Ballarat | J25: $NPV | K25: =Ballarat!Q38/1000000 -> 8.662750598
C26: =C8 -> Avoca | D26: Con | E26: =SUM(Avoca!W63:AP63) -> 0 | I26: =C8 -> Avoca | J26: $NPV | K26: =Avoca!Q38/1000000 -> 0
C27: Beaufort | D27: Con | E27: =SUM(Beaufort!W63:AP63) -> 0 | I27: Beaufort | J27: $NPV | K27: =Beaufort!Q38/1000000 -> 0
C28: Daylesford | D28: Con | E28: =SUM(Daylesford!W63:AP63) -> 634.5060896 | I28: Daylesford | J28: $NPV | K28: =Daylesford!Q38/1000000 -> 0.3554315687
C29: Maryborough | D29: Con | E29: =SUM(Maryborough!W63:AP63) -> 1114.659219 | I29: Maryborough | J29: $NPV | K29: =Maryborough!Q38/1000000 -> 0.7165279169
C30: Remainder | D30: Con | E30: =SUM(Remainder!W63:AP63) -> 826.5985939 | I30: Remainder | J30: $NPV | K30: =Remainder!Q38/1000000 -> 0.4860706448
C31: System7 | D31: Con | E31: =SUM(System7!W63:AP63) -> 0 | I31: System7 | J31: $NPV | K31: =System7!Q38/1000000 -> 0
C32: System8 | D32: Con | E32: =SUM(System8!W63:AP63) -> 0 | I32: System8 | J32: $NPV | K32: =System8!Q38/1000000 -> 0
C33: System9 | D33: Con | E33: =SUM(System9!W63:AP63) -> 0 | I33: System9 | J33: $NPV | K33: =System9!Q38/1000000 -> 0
C34: System10 | D34: Con | E34: =SUM(System10!W63:AP63) -> 0 | I34: =C16 -> System10 | J34: $NPV | K34: =System10!Q38/1000000 -> 0

Sheet User Guide
A1: =UPPER(WorkBookTitle) -> CENTRAL HIGHLANDS WATER - NCC WATER
A2: =MID(CELL("filename",A1),FIND("]",CELL("filename",A1))+1,255) -> User Guide
A3: =YEAR(Setup!$I$25)&" price period" -> 2023 price period
B5: User Guide
E7: Description | F7: Details | G7: Screenshots
D8: Contact details
D9: The model contact | E9: [INSERT MODEL OWNER] | F9: [INSERT CONTACT DETAILS]
D10: Statement of purpose
D11: This model has been developed to provide businesses with a regulatory pricing model for the determination of NCCs.
D12: Modelling Conventions
D13: Inputs | F13: All input cells in the model are yellow. Users should only input data in these cells.
D14: Goal seek macros | F14: The model has a single goal seek that is used to identify the residual expenditure not recovered through NCCs where a business instutues a cap on the NCC.
D15: Administrative Sheets
D16: User Guide | F16: This user guide outlines the steps that users will need to undertake in order to run the model successfully. The guide does not include a detailed description of the functionality of the calculation sheets or cells.
D17: Legend | E17: Key model details and definitions. | F17: Sheet includes validation lists. Rows 22 to 35 should be populated with the asset classes used in the NCC calculations.
D18: User Guide - INPUT SHEETS
D19: Setup | E19: The first major inputs in the model are in the Setup tab. This tab establishes the timing that flows through to the rest of the model. | F19: In rows 14 and 15, populate the yellow cells with NPV base date, model base date, first pricing period start and pricing period length. Care should be taken to ensure that the periods entered into rows 12 to 13 are internally consistent and align with the intended length of the pricing period. As a general guide the NPV base date is the year preceding the regulatory pricing period and the Model base date is the first year of the pricing period. Rows 63 to 72 should be populated with the systems that NCCs are being determned for.
D20: DataOPEX | E20: The DataOPEX tab is the input tab for raw opex data. | F20: Populate rows 13 to 88 with direct opex associated with connecting new customers. The tables include the system the opex relates to, a description of the opex and the corresponding opex values over the 20 year forecast period. The opex captured in this table should be directly attributable to connecting cusotmers and not to the ongoing provision of water or wastewater services.
D21: DataCAPEX | E21: The DataCAPEX tab is the input tab for capex data for the NCC period. | F21: Populate rows 13 to 218 with growth capex for each of the systems the NCCs are beinng levied on. The data should include the system, a escription of the expenditure or project the expenditure relates to and the asset class. The capex data should extend overr the full twenty year forecasting period.
D22: DataCON&ASSUMPTIONS | E22: The DataCON&ASSUMPTIONS tab is the input tab used to establish the forward new customer connections and the financing assumptions necesssary to calcuate NCCs. | F22: Populated rows 13 to 43 with forecasted new customer connections for each of the styems. The sheet also includes - an input cell (F48) for the WACC asumptiion used to determine discount rates for the NPV calcualations. - an input cell (F53) for the corporate tax rate used in the tax allowance. - an input cell (F58) for the value of franking credits. - rows 62 to 72 for gifted assets by system over each year of the forecasting period. - row76 to 86 for annual tax depreciation by system.
D23: User Guide - CALCULATION SHEETS
D24: System based NCC sheets | E24: These sheets outlline the NCC for each systems (the sheets or model will need to be run seperately for water and wastewater. The NCC is outline in cell Q74. | F24: Rows 76 onwards provide an indicative quantification of the residual capex and opex associated with NCCs, where a cap has been applied. Caps may be appled where businesses believe the cost reflective NCC conflicts with other objectives such as affordablity. Where a cap has been applied the user will need the cap swith in Q79 to on and then populate Q83 wiith the cap value. The user will then need to run the pring macro button iin row 80.
D25: IFC sheet | E25: The incremental fianance cost (IFC) sheet allows businesses to generate a IFC consisttent with the ESC's established approach.
D26: Password
D27: Password | E27: XXX | F27: The final model has been provided with each sheet formated to provide for sheet protection. Note that excel passwords can't be retrieved if they are lost. The business should keep a separate register of its current passwords.
A48: End

Sheet Setup
A1: =UPPER(WorkBookTitle) -> CENTRAL HIGHLANDS WATER - NCC WATER
A2: =MID(CELL("filename",A1),FIND("]",CELL("filename",A1))+1,255) -> Setup
A3: =YEAR(Setup!$I$25)&" price period" -> 2023 price period
B5: Model details
E7: Client | I7: Central Highlands Water
E8: Model type | I8: NCC Water
E9: Version | I9: 0.1
E10: Version date | I10: 2022-04-01
B12: Timing
C13: Inputs
E14: NPV base date | G14: date | I14: 2022-01-01
E15: Model base date | G15: date | I15: 2023-07-01
E16: First pricing period start | G16: date | I16: =DATE(YEAR(BaseDate)-I17,MONTH(BaseDate),DAY(BaseDate)) -> 2018-07-01
E17: Pricing period length | G17: years | I17: 5
C19: Key dates
E21: Opex Base financial year | G21: date | I21: =INDEX($R$41:$AF$41,MATCH(I25,R34:AF34,0)-2) -> 2021-22
E22: Tariff base financial year | G22: date | I22: =INDEX($R$41:$AF$41,MATCH(I25,R34:AF34,0)-1) -> 2022-23
E23: First pricing period end date | G23: date | I23: =EDATE(I16,I17*Months_yr)-1 -> 2023-06-30
E24: First pricing period end year | G24: date | I24: =INDEX($R$41:$AF$41,1,MATCH(I23,R35:AF35,0)) -> 2022-23
E25: Pricing setting date | G25: date | I25: =I23+1 -> 2023-07-01
E26: Pricing period 2 start date | G26: date | I26: =I23+1 -> 2023-07-01
E27: Pricing period 2 end date | G27: date | I27: =EOMONTH(I26,$I$17*Months_yr-1) -> 2028-06-30
E28: Pricing period 2 | G28: date | I28: =YEAR(I26)&"-"&RIGHT(YEAR(I27),2) -> 2023-28
E29: Pricing period 3 start date | G29: date | I29: =I27+1 -> 2028-07-01
E30: Pricing period 3 end date | G30: date | I30: =EOMONTH(I29,$I$17*Months_yr-1) -> 2033-06-30
E31: Pricing period 3 | G31: date | I31: =YEAR(I29)&"-"&RIGHT(YEAR(I30),2) -> 2028-33
C33: Flags
E34: Period start | P34: date | R34: =Q35+1 -> 2018-07-01 | S34: 2019-07-01 | T34: 2020-07-01 | U34: 2021-07-01 | V34: 2022-07-01 | W34: 2023-07-01 | X34: 2024-07-01 | Y34: 2025-07-01 | Z34: 2026-07-01 | AA34: 2027-07-01 | AB34: 2028-07-01 | AC34: 2029-07-01 | AD34: 2030-07-01 | AE34: 2031-07-01 | AF34: 2032-07-01 | AG34: =AF35+1 -> 2033-07-01 | AH34: =AG35+1 -> 2034-07-01 | AI34: =AH35+1 -> 2035-07-01 | AJ34: =AI35+1 -> 2036-07-01 | AK34: =AJ35+1 -> 2037-07-01 | AL34: =AK35+1 -> 2038-07-01 | AM34: =AL35+1 -> 2039-07-01 | AN34: =AM35+1 -> 2040-07-01 | AO34: =AN35+1 -> 2041-07-01 | AP34: =AO35+1 -> 2042-07-01
E35: Period end | P35: date | Q35: =Setup!I16-1 -> 2018-06-30 | R35: =EOMONTH(R34,Months_yr-1) -> 2019-06-30 | S35: 2020-06-30 | T35: 2021-06-30 | U35: 2022-06-30 | V35: 2023-06-30 | W35: 2024-06-30 | X35: 2025-06-30 | Y35: 2026-06-30 | Z35: 2027-06-30 | AA35: 2028-06-30 | AB35: 2029-06-30 | AC35: 2030-06-30 | AD35: 2031-06-30 | AE35: 2032-06-30 | AF35: 2033-06-30 | AG35: =EOMONTH(AG34,Months_yr-1) -> 2034-06-30 | AH35: 2035-06-30 | AI35: 2036-06-30 | AJ35: 2037-06-30 | AK35: 2038-06-30 | AL35: 2039-06-30 | AM35: 2040-06-30 | AN35: 2041-06-30 | AO35: 2042-06-30 | AP35: 2043-06-30
E37: Year counter | P37: num | R37: =Q37+1 -> 1 | S37: 2 | T37: 3 | U37: 4 | V37: 5 | W37: 6 | X37: 7 | Y37: 8 | Z37: 9 | AA37: 10 | AB37: 11 | AC37: 12 | AD37: 13 | AE37: 14 | AF37: 15 | AG37: =AF37+1 -> 16 | AH37: =AG37+1 -> 17 | AI37: =AH37+1 -> 18 | AJ37: =AI37+1 -> 19 | AK37: =AJ37+1 -> 20 | AL37: =AK37+1 -> 21 | AM37: =AL37+1 -> 22 | AN37: =AM37+1 -> 23 | AO37: =AN37+1 -> 24 | AP37: =AO37+1 -> 25
E39: Calendar year | P39: year | R39: =YEAR(R34) -> 2018 | S39: 2019 | T39: 2020 | U39: 2021 | V39: 2022 | W39: 2023 | X39: 2024 | Y39: 2025 | Z39: 2026 | AA39: 2027 | AB39: 2028 | AC39: 2029 | AD39: 2030 | AE39: 2031 | AF39: 2032 | AG39: =YEAR(AG34) -> 2033 | AH39: 2034 | AI39: 2035 | AJ39: 2036 | AK39: 2037 | AL39: 2038 | AM39: 2039 | AN39: 2040 | AO39: 2041 | AP39: 2042
E40: Financial year | P40: year | R40: =IF(MONTH(R35)>FY_month,YEAR(R35)+1,YEAR(R35)) -> 2019 | S40: 2020 | T40: 2021 | U40: 2022 | V40: 2023 | W40: 2024 | X40: 2025 | Y40: 2026 | Z40: 2027 | AA40: 2028 | AB40: 2029 | AC40: 2030 | AD40: 2031 | AE40: 2032 | AF40: 2033 | AG40: =IF(MONTH(AG35)>FY_month,YEAR(AG35)+1,YEAR(AG35)) -> 2034 | AH40: 2035 | AI40: 2036 | AJ40: 2037 | AK40: 2038 | AL40: 2039 | AM40: 2040 | AN40: 2041 | AO40: 2042 | AP40: 2043
E41: Financial year | P41: year | R41: =R39&"-"&RIGHT(R40,2) -> 2018-19 | S41: =S39&"-"&RIGHT(S40,2) -> 2019-20 | T41: 2020-21 | U41: 2021-22 | V41: 2022-23 | W41: 2023-24 | X41: 2024-25 | Y41: 2025-26 | Z41: 2026-27 | AA41: 2027-28 | AB41: 2028-29 | AC41: 2029-30 | AD41: 2030-31 | AE41: 2031-32 | AF41: 2032-33 | AG41: =AG39&"-"&RIGHT(AG40,2) -> 2033-34 | AH41: 2034-35 | AI41: 2035-36 | AJ41: 2036-37 | AK41: 2037-38 | AL41: 2038-39 | AM41: 2039-40 | AN41: 2040-41 | AO41: 2041-42 | AP41: 2042-43
E42: Pre model start calendar year | P42: year | R42: =R39-$AF$37 -> 2003 | S42: =S39-$AF$37 -> 2004 | T42: 2005 | U42: 2006 | V42: 2007 | W42: 2008 | X42: 2009 | Y42: 2010 | Z42: 2011 | AA42: 2012 | AB42: 2013 | AC42: 2014 | AD42: 2015 | AE42: 2016 | AF42: 2017 | AG42: =AG39-$AF$37 -> 2018 | AH42: 2019 | AI42: 2020 | AJ42: 2021 | AK42: 2022 | AL42: 2023 | AM42: 2024 | AN42: 2025 | AO42: 2026 | AP42: 2027
E43: Pre model start financial year | P43: year | R43: =R40-$AF$37 -> 2004 | S43: =S40-$AF$37 -> 2005 | T43: 2006 | U43: 2007 | V43: 2008 | W43: 2009 | X43: 2010 | Y43: 2011 | Z43: 2012 | AA43: 2013 | AB43: 2014 | AC43: 2015 | AD43: 2016 | AE43: 2017 | AF43: 2018 | AG43: =AG40-$AF$37 -> 2019 | AH43: 2020 | AI43: 2021 | AJ43: 2022 | AK43: 2023 | AL43: 2024 | AM43: 2025 | AN43: 2026 | AO43: 2027 | AP43: 2028
E44: Pre model start financial year | P44: year | R44: =R42&"-"&RIGHT(R43,2) -> 2003-04 | S44: =S42&"-"&RIGHT(S43,2) -> 2004-05 | T44: 2005-06 | U44: 2006-07 | V44: 2007-08 | W44: 2008-09 | X44: 2009-10 | Y44: 2010-11 | Z44: 2011-12 | AA44: 2012-13 | AB44: 2013-14 | AC44: 2014-15 | AD44: 2015-16 | AE44: 2016-17 | AF44: 2017-18 | AG44: =AG42&"-"&RIGHT(AG43,2) -> 2018-19 | AH44: 2019-20 | AI44: 2020-21 | AJ44: 2021-22 | AK44: 2022-23 | AL44: 2023-24 | AM44: 2024-25 | AN44: 2025-26 | AO44: 2026-27 | AP44: 2027-28
E46: Pricing period | P46: num | R46: =ROUNDUP(R37/$I$17,0) -> 1 | S46: =ROUNDUP(S37/$I$17,0) -> 1 | T46: 1 | U46: 1 | V46: 1 | W46: 2 | X46: 2 | Y46: 2 | Z46: 2 | AA46: 2 | AB46: 3 | AC46: 3 | AD46: 3 | AE46: 3 | AF46: 3 | AG46: =ROUNDUP(AG37/$I$17,0) -> 4 | AH46: 4 | AI46: 4 | AJ46: 4 | AK46: 4 | AL46: 5 | AM46: 5 | AN46: 5 | AO46: 5 | AP46: 5
E47: NPV base date | P47: yes/no | R47: =IF($I$15=R$34,1,0) -> 0 | S47: 0 | T47: 0 | U47: 0 | V47: 0 | W47: 1 | X47: 0 | Y47: 0 | Z47: 0 | AA47: 0 | AB47: 0 | AC47: 0 | AD47: 0 | AE47: 0 | AF47: 0 | AG47: 0 | AH47: 0 | AI47: 0 | AJ47: 0 | AK47: 0 | AL47: 0 | AM47: 0 | AN47: 0 | AO47: 0 | AP47: 0
E48: NPV discount year | P48: num | R48: =IF(SUM($Q$47:Q47)=0,0,Q48+1) -> 0 | S48: =IF(SUM($Q$47:R47)=0,0,R48+1) -> 0 | T48: =IF(SUM($Q$47:S47)=0,0,S48+1) -> 0 | U48: =IF(SUM($Q$47:T47)=0,0,T48+1) -> 0 | V48: =IF(SUM($Q$47:U47)=0,0,U48+1) -> 0 | W48: =IF(SUM($Q$47:V47)=0,0,V48+1) -> 0 | X48: =IF(SUM($Q$47:W47)=0,0,W48+1) -> 1 | Y48: =IF(SUM($Q$47:X47)=0,0,X48+1) -> 2 | Z48: =IF(SUM($Q$47:Y47)=0,0,Y48+1) -> 3 | AA48: =IF(SUM($Q$47:Z47)=0,0,Z48+1) -> 4 | AB48: =IF(SUM($Q$47:AA47)=0,0,AA48+1) -> 5 | AC48: =IF(SUM($Q$47:AB47)=0,0,AB48+1) -> 6 | AD48: =IF(SUM($Q$47:AC47)=0,0,AC48+1) -> 7 | AE48: =IF(SUM($Q$47:AD47)=0,0,AD48+1) -> 8 | AF48: =IF(SUM($Q$47:AE47)=0,0,AE48+1) -> 9 | AG48: =IF(SUM($Q$47:AF47)=0,0,AF48+1) -> 10 | AH48: =IF(SUM($Q$47:AG47)=0,0,AG48+1) -> 11 | AI48: =IF(SUM($Q$47:AH47)=0,0,AH48+1) -> 12 | AJ48: =IF(SUM($Q$47:AI47)=0,0,AI48+1) -> 13 | AK48: =IF(SUM($Q$47:AJ47)=0,0,AJ48+1) -> 14 | AL48: =IF(SUM($Q$47:AK47)=0,0,AK48+1) -> 15 | AM48: =IF(SUM($Q$47:AL47)=0,0,AL48+1) -> 16 | AN48: =IF(SUM($Q$47:AM47)=0,0,AM48+1) -> 17 | AO48: =IF(SUM($Q$47:AN47)=0,0,AN48+1) -> 18 | AP48: =IF(SUM($Q$47:AO47)=0,0,AO48+1) -> 19
E49: NPV year adjustment | P49: num | R49: =ROUND(((BaseDate-$I$14)/R58)*SUM($Q$47:Q47),2) -> 0 | S49: =ROUND(((BaseDate-$I$14)/S58)*SUM($Q$47:R47),2) -> 0 | T49: =ROUND(((BaseDate-$I$14)/T58)*SUM($Q$47:S47),2) -> 0 | U49: =ROUND(((BaseDate-$I$14)/U58)*SUM($Q$47:T47),2) -> 0 | V49: =ROUND(((BaseDate-$I$14)/V58)*SUM($Q$47:U47),2) -> 0 | W49: =ROUND(((BaseDate-$I$14)/W58)*SUM($Q$47:V47),2) -> 0 | X49: =ROUND(((BaseDate-$I$14)/X58)*SUM($Q$47:W47),2) -> 1.5 | Y49: =ROUND(((BaseDate-$I$14)/Y58)*SUM($Q$47:X47),2) -> 1.5 | Z49: =ROUND(((BaseDate-$I$14)/Z58)*SUM($Q$47:Y47),2) -> 1.5 | AA49: =ROUND(((BaseDate-$I$14)/AA58)*SUM($Q$47:Z47),2) -> 1.49 | AB49: =ROUND(((BaseDate-$I$14)/AB58)*SUM($Q$47:AA47),2) -> 1.5 | AC49: =ROUND(((BaseDate-$I$14)/AC58)*SUM($Q$47:AB47),2) -> 1.5 | AD49: =ROUND(((BaseDate-$I$14)/AD58)*SUM($Q$47:AC47),2) -> 1.5 | AE49: =ROUND(((BaseDate-$I$14)/AE58)*SUM($Q$47:AD47),2) -> 1.49 | AF49: =ROUND(((BaseDate-$I$14)/AF58)*SUM($Q$47:AE47),2) -> 1.5 | AG49: =ROUND(((BaseDate-$I$14)/AG58)*SUM($Q$47:AF47),2) -> 1.5 | AH49: =ROUND(((BaseDate-$I$14)/AH58)*SUM($Q$47:AG47),2) -> 1.5 | AI49: =ROUND(((BaseDate-$I$14)/AI58)*SUM($Q$47:AH47),2) -> 1.49 | AJ49: =ROUND(((BaseDate-$I$14)/AJ58)*SUM($Q$47:AI47),2) -> 1.5 | AK49: =ROUND(((BaseDate-$I$14)/AK58)*SUM($Q$47:AJ47),2) -> 1.5 | AL49: =ROUND(((BaseDate-$I$14)/AL58)*SUM($Q$47:AK47),2) -> 1.5 | AM49: =ROUND(((BaseDate-$I$14)/AM58)*SUM($Q$47:AL47),2) -> 1.49 | AN49: =ROUND(((BaseDate-$I$14)/AN58)*SUM($Q$47:AM47),2) -> 1.5 | AO49: =ROUND(((BaseDate-$I$14)/AO58)*SUM($Q$47:AN47),2) -> 1.5 | AP49: =ROUND(((BaseDate-$I$14)/AP58)*SUM($Q$47:AO47),2) -> 1.5
E50: NPV adjusted discount year | P50: num | R50: =SUM(R48:R49) -> 0 | S50: =SUM(S48:S49) -> 0 | T50: 0 | U50: 0 | V50: 0 | W50: 0 | X50: 2.5 | Y50: 3.5 | Z50: 4.5 | AA50: 5.49 | AB50: 6.5 | AC50: 7.5 | AD50: 8.5 | AE50: 9.49 | AF50: 10.5 | AG50: =SUM(AG48:AG49) -> 11.5 | AH50: 12.5 | AI50: 13.49 | AJ50: 14.5 | AK50: 15.5 | AL50: 16.5 | AM50: 17.49 | AN50: 18.5 | AO50: 19.5 | AP50: 20.5
E51: Price setting year | P51: yes/no | R51: =IF($I$25=R$34,1,0) -> 0 | S51: 0 | T51: 0 | U51: 0 | V51: =IF($I$25=V$34,1,0) -> 0 | W51: 1 | X51: 0 | Y51: 0 | Z51: 0 | AA51: 0 | AB51: 0 | AC51: 0 | AD51: 0 | AE51: 0 | AF51: 0 | AG51: 0 | AH51: 0 | AI51: 0 | AJ51: 0 | AK51: 0 | AL51: 0 | AM51: 0 | AN51: 0 | AO51: 0 | AP51: 0
E52: Asset base depreciation flag | P52: yes/no | R52: =IF(Q52=1,1,R51) -> 0 | S52: =IF(R52=1,1,S51) -> 0 | T52: 0 | U52: 0 | V52: 0 | W52: 1 | X52: 1 | Y52: 1 | Z52: 1 | AA52: 1 | AB52: 1 | AC52: 1 | AD52: 1 | AE52: 1 | AF52: 1 | AG52: =IF(AF52=1,1,AG51) -> 1 | AH52: =IF(AG52=1,1,AH51) -> 1 | AI52: =IF(AH52=1,1,AI51) -> 1 | AJ52: =IF(AI52=1,1,AJ51) -> 1 | AK52: =IF(AJ52=1,1,AK51) -> 1 | AL52: =IF(AK52=1,1,AL51) -> 1 | AM52: =IF(AL52=1,1,AM51) -> 1 | AN52: =IF(AM52=1,1,AN51) -> 1 | AO52: =IF(AN52=1,1,AO51) -> 1 | AP52: =IF(AO52=1,1,AP51) -> 1
E53: Forecast year | P53: yes/no | R53: =IF(Q53=1,1,R51) -> 0 | S53: =IF(R53=1,1,S51) -> 0 | T53: 0 | U53: 0 | V53: 0 | W53: 1 | X53: 1 | Y53: 1 | Z53: 1 | AA53: 1 | AB53: 1 | AC53: 1 | AD53: 1 | AE53: 1 | AF53: 1 | AG53: =IF(AF53=1,1,AG51) -> 1 | AH53: =IF(AG53=1,1,AH51) -> 1 | AI53: =IF(AH53=1,1,AI51) -> 1 | AJ53: =IF(AI53=1,1,AJ51) -> 1 | AK53: =IF(AJ53=1,1,AK51) -> 1 | AL53: =IF(AK53=1,1,AL51) -> 1 | AM53: =IF(AL53=1,1,AM51) -> 1 | AN53: =IF(AM53=1,1,AN51) -> 1 | AO53: =IF(AN53=1,1,AO51) -> 1 | AP53: =IF(AO53=1,1,AP51) -> 1
E54: Tariff base year flag | P54: yes/no | R54: =IF($I$22=R41,1,0) -> 0 | S54: 0 | T54: 0 | U54: 0 | V54: 1 | W54: 0 | X54: 0 | Y54: 0 | Z54: 0 | AA54: 0 | AB54: 0 | AC54: 0 | AD54: 0 | AE54: 0 | AF54: 0 | AG54: =IF($I$22=AG41,1,0) -> 0 | AH54: 0 | AI54: 0 | AJ54: 0 | AK54: 0 | AL54: 0 | AM54: 0 | AN54: 0 | AO54: 0 | AP54: 0
E55: Tariff demand forecast flag | P55: yes/no | R55: =IF(Q55=1,1,R54) -> 0 | S55: =IF(R55=1,1,S54) -> 0 | T55: 0 | U55: 0 | V55: 1 | W55: 1 | X55: =IF(W55=1,1,X54) -> 1 | Y55: 1 | Z55: 1 | AA55: 1 | AB55: 1 | AC55: 1 | AD55: 1 | AE55: 1 | AF55: 1 | AG55: =IF(AF55=1,1,AG54) -> 1 | AH55: =IF(AG55=1,1,AH54) -> 1 | AI55: =IF(AH55=1,1,AI54) -> 1 | AJ55: =IF(AI55=1,1,AJ54) -> 1 | AK55: =IF(AJ55=1,1,AK54) -> 1 | AL55: =IF(AK55=1,1,AL54) -> 1 | AM55: =IF(AL55=1,1,AM54) -> 1 | AN55: =IF(AM55=1,1,AN54) -> 1 | AO55: =IF(AN55=1,1,AO54) -> 1 | AP55: =IF(AO55=1,1,AP54) -> 1
E56: Tariff base year demand growth flag | P56: yes/no | R56: =IF(Q56=1,1,Q54) -> 0 | S56: =IF(R56=1,1,R54) -> 0 | T56: 0 | U56: 0 | V56: 0 | W56: 1 | X56: 1 | Y56: 1 | Z56: 1 | AA56: 1 | AB56: 1 | AC56: 1 | AD56: 1 | AE56: 1 | AF56: 1 | AG56: =IF(AF56=1,1,AF54) -> 1 | AH56: =IF(AG56=1,1,AG54) -> 1 | AI56: =IF(AH56=1,1,AH54) -> 1 | AJ56: =IF(AI56=1,1,AI54) -> 1 | AK56: =IF(AJ56=1,1,AJ54) -> 1 | AL56: =IF(AK56=1,1,AK54) -> 1 | AM56: =IF(AL56=1,1,AL54) -> 1 | AN56: =IF(AM56=1,1,AM54) -> 1 | AO56: =IF(AN56=1,1,AN54) -> 1 | AP56: =IF(AO56=1,1,AO54) -> 1
E58: Days in period | P58: days | R58: =(R35-R34+1) -> 365 | S58: 366 | T58: 365 | U58: 365 | V58: 365 | W58: 366 | X58: 365 | Y58: 365 | Z58: 365 | AA58: 366 | AB58: 365 | AC58: 365 | AD58: 365 | AE58: 366 | AF58: 365 | AG58: =(AG35-AG34+1) -> 365 | AH58: 365 | AI58: 366 | AJ58: 365 | AK58: 365 | AL58: 365 | AM58: 366 | AN58: 365 | AO58: 365 | AP58: 365
E59: Year fraction per period | P59: % | R59: =(R58)/Days_yr -> 1 | S59: 1.002739726 | T59: 1 | U59: 1 | V59: 1 | W59: 1.002739726 | X59: 1 | Y59: 1 | Z59: 1 | AA59: 1.002739726 | AB59: 1 | AC59: 1 | AD59: 1 | AE59: 1.002739726 | AF59: 1 | AG59: =(AG58)/Days_yr -> 1 | AH59: 1 | AI59: 1.002739726 | AJ59: 1 | AK59: 1 | AL59: 1 | AM59: 1.002739726 | AN59: 1 | AO59: 1 | AP59: 1
C61: Towns/systems
E63: Ballarat
E64: Avoca
E65: Beaufort
E66: Daylesford
E67: Maryborough
E68: Remainder
E69: System7
E70: System8
E71: System9
E72: System10
A75: End

Sheet Legend
A1: =UPPER(WorkBookTitle) -> CENTRAL HIGHLANDS WATER - NCC WATER
A2: =MID(CELL("filename",A1),FIND("]",CELL("filename",A1))+1,255) -> Legend
A3: =YEAR(Setup!$I$25)&" price period" -> 2023 price period
B5: Name ranges
E7: Description | H7: Description | K7: Range name
C9: General
E10: WorkBook title | H10: =Setup!I7&" - "&Setup!I8 -> Central Highlands Water - NCC Water | K10: WorkBookTitle
C12: Timing
E13: Days in years | H13: 365 | K13: Days_yr
E14: Months per quarter | H14: 3 | K14: Months_qtr
E15: Months per half year | H15: 6 | K15: Months_hyr
E16: Quarters per year | H16: 4 | K16: Quarters_yr
E17: Months per year | H17: 12 | K17: Months_yr
E18: FY end month | H18: 6 | K18: FY_month
B20: Lists
C21: Asset classes
E22: water
C37: ESC Drivers
E38: Business Efficiency
E39: Compliance
E40: Growth
E41: Renewal
E42: Service Improvement
E43: Unregulated
C45: Towns/systems
E46: =Setup!E63 -> Ballarat
E47: =Setup!E64 -> Avoca
E48: =Setup!E65 -> Beaufort
E49: =Setup!E66 -> Daylesford
E50: =Setup!E67 -> Maryborough
E51: =Setup!E68 -> Remainder
E52: =Setup!E69 -> System7
E53: =Setup!E70 -> System8
E54: =Setup!E71 -> System9
E55: =Setup!E72 -> System10
C57: Customer class
E58: Residential
E59: Non-residential
E60: Industrial
C62: Cap Switch
E63: On
E64: Off
B66: Cell styles
C67: Header 2
D68: Header 3
A78: End

Sheet DataOPEX
A1: =UPPER(WorkBookTitle) -> CENTRAL HIGHLANDS WATER - NCC WATER
A2: =MID(CELL("filename",A1),FIND("]",CELL("filename",A1))+1,255) -> DataOPEX
A3: =YEAR(Setup!$I$25)&" price period" -> 2023 price period
B5: Timing flags
E7: =Setup!E37 -> Year counter | F7: num | R7: =Setup!R37 -> 1 | S7: =Setup!S37 -> 2 | T7: =Setup!T37 -> 3 | U7: =Setup!U37 -> 4 | V7: =Setup!V37 -> 5 | W7: =Setup!W37 -> 6 | X7: =Setup!X37 -> 7 | Y7: =Setup!Y37 -> 8 | Z7: =Setup!Z37 -> 9 | AA7: =Setup!AA37 -> 10 | AB7: =Setup!AB37 -> 11 | AC7: =Setup!AC37 -> 12 | AD7: =Setup!AD37 -> 13 | AE7: =Setup!AE37 -> 14 | AF7: =Setup!AF37 -> 15 | AG7: =Setup!AG37 -> 16 | AH7: =Setup!AH37 -> 17 | AI7: =Setup!AI37 -> 18 | AJ7: =Setup!AJ37 -> 19 | AK7: =Setup!AK37 -> 20 | AL7: =Setup!AL37 -> 21 | AM7: =Setup!AM37 -> 22 | AN7: =Setup!AN37 -> 23 | AO7: =Setup!AO37 -> 24 | AP7: =Setup!AP37 -> 25
E8: =Setup!E41 -> Financial year | F8: year | R8: =Setup!R41 -> 2018-19 | S8: =Setup!S41 -> 2019-20 | T8: =Setup!T41 -> 2020-21 | U8: =Setup!U41 -> 2021-22 | V8: =Setup!V41 -> 2022-23 | W8: =Setup!W41 -> 2023-24 | X8: =Setup!X41 -> 2024-25 | Y8: =Setup!Y41 -> 2025-26 | Z8: =Setup!Z41 -> 2026-27 | AA8: =Setup!AA41 -> 2027-28 | AB8: =Setup!AB41 -> 2028-29 | AC8: =Setup!AC41 -> 2029-30 | AD8: =Setup!AD41 -> 2030-31 | AE8: =Setup!AE41 -> 2031-32 | AF8: =Setup!AF41 -> 2032-33 | AG8: =Setup!AG41 -> 2033-34 | AH8: =Setup!AH41 -> 2034-35 | AI8: =Setup!AI41 -> 2035-36 | AJ8: =Setup!AJ41 -> 2036-37 | AK8: =Setup!AK41 -> 2037-38 | AL8: =Setup!AL41 -> 2038-39 | AM8: =Setup!AM41 -> 2039-40 | AN8: =Setup!AN41 -> 2040-41 | AO8: =Setup!AO41 -> 2041-42 | AP8: =Setup!AP41 -> 2042-43
B10: OPEX
C11: Connections opex
D12: Operating expenditure directly attributable to connecting new cusmtomers
E13: System/Town | F13: Desciption
E14: Ballarat | F14: total opex | Q14: $ | W14: =CHWdata_Opex!E64 -> 471205.6969 | X14: =CHWdata_Opex!F64 -> 482994.7274 | Y14: =CHWdata_Opex!G64 -> 495078.706 | Z14: =CHWdata_Opex!H64 -> 507465.0121 | AA14: =CHWdata_Opex!I64 -> 520161.2094 | AB14: =CHWdata_Opex!J64 -> 533175.0511 | AC14: =CHWdata_Opex!K64 -> 546514.4843 | AD14: =CHWdata_Opex!L64 -> 560187.655 | AE14: =CHWdata_Opex!M64 -> 574202.9128 | AF14: =CHWdata_Opex!N64 -> 588568.8165 | AG14: =CHWdata_Opex!O64 -> 603294.1387 | AH14: =CHWdata_Opex!P64 -> 618387.8717 | AI14: =CHWdata_Opex!Q64 -> 633859.2328 | AJ14: =CHWdata_Opex!R64 -> 649717.6697 | AK14: =CHWdata_Opex!S64 -> 665972.8667 | AL14: =CHWdata_Opex!T64 -> 682634.7502 | AM14: =CHWdata_Opex!U64 -> 699713.4951 | AN14: =CHWdata_Opex!V64 -> 717219.5307 | AO14: =CHWdata_Opex!W64 -> 735163.5474 | AP14: =CHWdata_Opex!X64 -> 753556.5031
E15: Avoca | F15: total opex | Q15: $ | W15: =CHWdata_Opex!E65 -> 0 | X15: =CHWdata_Opex!F65 -> 0 | Y15: =CHWdata_Opex!G65 -> 0 | Z15: =CHWdata_Opex!H65 -> 0 | AA15: =CHWdata_Opex!I65 -> 0 | AB15: =CHWdata_Opex!J65 -> 0 | AC15: =CHWdata_Opex!K65 -> 0 | AD15: =CHWdata_Opex!L65 -> 0 | AE15: =CHWdata_Opex!M65 -> 0 | AF15: =CHWdata_Opex!N65 -> 0 | AG15: =CHWdata_Opex!O65 -> 0 | AH15: =CHWdata_Opex!P65 -> 0 | AI15: =CHWdata_Opex!Q65 -> 0 | AJ15: =CHWdata_Opex!R65 -> 0 | AK15: =CHWdata_Opex!S65 -> 0 | AL15: =CHWdata_Opex!T65 -> 0 | AM15: =CHWdata_Opex!U65 -> 0 | AN15: =CHWdata_Opex!V65 -> 0 | AO15: =CHWdata_Opex!W65 -> 0 | AP15: =CHWdata_Opex!X65 -> 0
E16: Beaufort | F16: total opex | Q16: $ | W16: =CHWdata_Opex!E66 -> 0 | X16: =CHWdata_Opex!F66 -> 0 | Y16: =CHWdata_Opex!G66 -> 0 | Z16: =CHWdata_Opex!H66 -> 0 | AA16: =CHWdata_Opex!I66 -> 0 | AB16: =CHWdata_Opex!J66 -> 0 | AC16: =CHWdata_Opex!K66 -> 0 | AD16: =CHWdata_Opex!L66 -> 0 | AE16: =CHWdata_Opex!M66 -> 0 | AF16: =CHWdata_Opex!N66 -> 0 | AG16: =CHWdata_Opex!O66 -> 0 | AH16: =CHWdata_Opex!P66 -> 0 | AI16: =CHWdata_Opex!Q66 -> 0 | AJ16: =CHWdata_Opex!R66 -> 0 | AK16: =CHWdata_Opex!S66 -> 0 | AL16: =CHWdata_Opex!T66 -> 0 | AM16: =CHWdata_Opex!U66 -> 0 | AN16: =CHWdata_Opex!V66 -> 0 | AO16: =CHWdata_Opex!W66 -> 0 | AP16: =CHWdata_Opex!X66 -> 0
E17: Daylesford | F17: total opex | Q17: $ | W17: =CHWdata_Opex!E67 -> 22196.28659 | X17: =CHWdata_Opex!F67 -> 22407.36698 | Y17: =CHWdata_Opex!G67 -> 22620.45469 | Z17: =CHWdata_Opex!H67 -> 22835.5688 | AA17: =CHWdata_Opex!I67 -> 23052.72859 | AB17: =CHWdata_Opex!J67 -> 23271.95351 | AC17: =CHWdata_Opex!K67 -> 23493.26319 | AD17: =CHWdata_Opex!L67 -> 23716.67746 | AE17: =CHWdata_Opex!M67 -> 23942.21634 | AF17: =CHWdata_Opex!N67 -> 24169.90003 | AG17: =CHWdata_Opex!O67 -> 24399.74893 | AH17: =CHWdata_Opex!P67 -> 24631.78363 | AI17: =CHWdata_Opex!Q67 -> 24866.02491 | AJ17: =CHWdata_Opex!R67 -> 25102.49376 | AK17: =CHWdata_Opex!S67 -> 25341.21136 | AL17: =CHWdata_Opex!T67 -> 25582.1991 | AM17: =CHWdata_Opex!U67 -> 25825.47856 | AN17: =CHWdata_Opex!V67 -> 26071.07154 | AO17: =CHWdata_Opex!W67 -> 26319.00004 | AP17: =CHWdata_Opex!X67 -> 26569.28627
E18: Maryborough | F18: total opex | Q18: $ | W18: =CHWdata_Opex!E68 -> 45221.32743 | X18: =CHWdata_Opex!F68 -> 45596.53107 | Y18: =CHWdata_Opex!G68 -> 45974.8478 | Z18: =CHWdata_Opex!H68 -> 46356.30343 | AA18: =CHWdata_Opex!I68 -> 46740.92403 | AB18: =CHWdata_Opex!J68 -> 47128.73584 | AC18: =CHWdata_Opex!K68 -> 47519.76534 | AD18: =CHWdata_Opex!L68 -> 47914.03924 | AE18: =CHWdata_Opex!M68 -> 48311.58444 | AF18: =CHWdata_Opex!N68 -> 48712.4281 | AG18: =CHWdata_Opex!O68 -> 49116.59758 | AH18: =CHWdata_Opex!P68 -> 49524.12047 | AI18: =CHWdata_Opex!Q68 -> 49935.0246 | AJ18: =CHWdata_Opex!R68 -> 50349.33803 | AK18: =CHWdata_Opex!S68 -> 50767.08903 | AL18: =CHWdata_Opex!T68 -> 51188.30613 | AM18: =CHWdata_Opex!U68 -> 51613.0181 | AN18: =CHWdata_Opex!V68 -> 52041.25392 | AO18: =CHWdata_Opex!W68 -> 52473.04283 | AP18: =CHWdata_Opex!X68 -> 52908.41432
E19: Remainder | F19: total opex | Q19: $ | W19: =CHWdata_Opex!E69 -> 30364.24259 | X19: =CHWdata_Opex!F69 -> 30651.88576 | Y19: =CHWdata_Opex!G69 -> 30942.25381 | Z19: =CHWdata_Opex!H69 -> 31235.37254 | AA19: =CHWdata_Opex!I69 -> 31531.268 | AB19: =CHWdata_Opex!J69 -> 31829.96652 | AC19: =CHWdata_Opex!K69 -> 32131.49463 | AD19: =CHWdata_Opex!L69 -> 32435.87914 | AE19: =CHWdata_Opex!M69 -> 32743.14711 | AF19: =CHWdata_Opex!N69 -> 33053.32586 | AG19: =CHWdata_Opex!O69 -> 33366.44296 | AH19: =CHWdata_Opex!P69 -> 33682.52625 | AI19: =CHWdata_Opex!Q69 -> 34001.60382 | AJ19: =CHWdata_Opex!R69 -> 34323.70405 | AK19: =CHWdata_Opex!S69 -> 34648.85555 | AL19: =CHWdata_Opex!T69 -> 34977.08725 | AM19: =CHWdata_Opex!U69 -> 35308.42832 | AN19: =CHWdata_Opex!V69 -> 35642.9082 | AO19: =CHWdata_Opex!W69 -> 35980.55665 | AP19: =CHWdata_Opex!X69 -> 36321.40367
Q20: $
Q21: $
Q22: $
Q23: $
Q24: $
Q25: $
Q26: $
Q27: $
Q28: $
Q29: $
Q30: $
Q31: $
Q32: $
Q33: $
Q34: $
Q35: $
Q36: $
Q37: $
Q38: $
Q39: $
Q40: $
Q41: $
Q42: $
Q43: $
Q44: $
Q45: $
Q46: $
Q47: $
Q48: $
Q49: $
Q50: $
Q51: $
Q52: $
Q53: $
Q54: $
Q55: $
Q56: $
Q57: $
Q58: $
Q59: $
Q60: $
Q61: $
Q62: $
Q63: $
Q64: $
Q65: $
Q66: $
Q67: $
Q68: $
Q69: $
Q70: $
Q71: $
Q72: $
Q73: $
Q74: $
Q75: $
Q76: $
Q77: $
Q78: $
Q79: $
Q80: $
Q81: $
Q82: $
Q83: $
Q84: $
Q85: $
Q86: $
Q87: $
Q88: $
R89: =SUM(R14:R88) -> 0 | S89: =SUM(S14:S88) -> 0 | T89: 0 | U89: 0 | V89: 0 | W89: 568987.5535 | X89: 581650.5112 | Y89: 594616.2623 | Z89: 607892.2568 | AA89: 621486.13 | AB89: 635405.7069 | AC89: 649659.0075 | AD89: 664254.2508 | AE89: 679199.8607 | AF89: =SUM(AF14:AF88) -> 694504.4705 | AG89: =SUM(AG14:AG88) -> 710176.9282 | AH89: 726226.3021 | AI89: 742661.8861 | AJ89: 759493.2055 | AK89: 776730.0226 | AL89: 794382.3427 | AM89: 812460.42 | AN89: 830974.7644 | AO89: 849936.147 | AP89: 869355.6073
A91: End

Sheet DataCAPEX
A1: =UPPER(WorkBookTitle) -> CENTRAL HIGHLANDS WATER - NCC WATER
A2: =MID(CELL("filename",A1),FIND("]",CELL("filename",A1))+1,255) -> DataCAPEX
A3: =YEAR(Setup!$I$25)&" price period" -> 2023 price period
B5: Timing flags
E7: =Setup!E37 -> Year counter | F7: num | R7: =Setup!R37 -> 1 | S7: =Setup!S37 -> 2 | T7: =Setup!T37 -> 3 | U7: =Setup!U37 -> 4 | V7: =Setup!V37 -> 5 | W7: =Setup!W37 -> 6 | X7: =Setup!X37 -> 7 | Y7: =Setup!Y37 -> 8 | Z7: =Setup!Z37 -> 9 | AA7: =Setup!AA37 -> 10 | AB7: =Setup!AB37 -> 11 | AC7: =Setup!AC37 -> 12 | AD7: =Setup!AD37 -> 13 | AE7: =Setup!AE37 -> 14 | AF7: =Setup!AF37 -> 15 | AG7: =Setup!AG37 -> 16 | AH7: =Setup!AH37 -> 17 | AI7: =Setup!AI37 -> 18 | AJ7: =Setup!AJ37 -> 19 | AK7: =Setup!AK37 -> 20 | AL7: =Setup!AL37 -> 21 | AM7: =Setup!AM37 -> 22 | AN7: =Setup!AN37 -> 23 | AO7: =Setup!AO37 -> 24 | AP7: =Setup!AP37 -> 25
E8: =Setup!E41 -> Financial year | F8: year | R8: =Setup!R41 -> 2018-19 | S8: =Setup!S41 -> 2019-20 | T8: =Setup!T41 -> 2020-21 | U8: =Setup!U41 -> 2021-22 | V8: =Setup!V41 -> 2022-23 | W8: =Setup!W41 -> 2023-24 | X8: =Setup!X41 -> 2024-25 | Y8: =Setup!Y41 -> 2025-26 | Z8: =Setup!Z41 -> 2026-27 | AA8: =Setup!AA41 -> 2027-28 | AB8: =Setup!AB41 -> 2028-29 | AC8: =Setup!AC41 -> 2029-30 | AD8: =Setup!AD41 -> 2030-31 | AE8: =Setup!AE41 -> 2031-32 | AF8: =Setup!AF41 -> 2032-33 | AG8: =Setup!AG41 -> 2033-34 | AH8: =Setup!AH41 -> 2034-35 | AI8: =Setup!AI41 -> 2035-36 | AJ8: =Setup!AJ41 -> 2036-37 | AK8: =Setup!AK41 -> 2037-38 | AL8: =Setup!AL41 -> 2038-39 | AM8: =Setup!AM41 -> 2039-40 | AN8: =Setup!AN41 -> 2040-41 | AO8: =Setup!AO41 -> 2041-42 | AP8: =Setup!AP41 -> 2042-43
B10: CAPEX
C11: Growth Capex by system by asset class
E13: System/Town | F13: Desciption | G13: Asset Class
E14: Ballarat | F14: total capex | G14: water | Q14: $ | W14: =CHWdata_Capex!AB77 -> 1522785.806 | X14: =CHWdata_Capex!AC77 -> 2707153.202 | Y14: =CHWdata_Capex!AD77 -> 6760203.778 | Z14: =CHWdata_Capex!AE77 -> 6639165.846 | AA14: =CHWdata_Capex!AF77 -> 5946907.683 | AB14: =CHWdata_Capex!AG77 -> 17797183.66 | AC14: =CHWdata_Capex!AH77 -> 7122183.657 | AD14: =CHWdata_Capex!AI77 -> 22418389.39 | AE14: =CHWdata_Capex!AJ77 -> 8560613.557 | AF14: =CHWdata_Capex!AK77 -> 11352057.22 | AG14: =CHWdata_Capex!AL77 -> 4172183.657 | AH14: =CHWdata_Capex!AM77 -> 952689.4213 | AI14: =CHWdata_Capex!AN77 -> 25623299.77 | AJ14: =CHWdata_Capex!AO77 -> 952689.4213 | AK14: =CHWdata_Capex!AP77 -> 952689.4213 | AL14: =CHWdata_Capex!AQ77 -> 952689.4213 | AM14: =CHWdata_Capex!AR77 -> 952689.4213 | AN14: =CHWdata_Capex!AS77 -> 50989368.95 | AO14: =CHWdata_Capex!AT77 -> 952689.4213 | AP14: =CHWdata_Capex!AU77 -> 952689.4213
E15: Avoca | F15: total capex | G15: water | Q15: $ | W15: =CHWdata_Capex!AB78 -> 0 | X15: =CHWdata_Capex!AC78 -> 0 | Y15: =CHWdata_Capex!AD78 -> 0 | Z15: =CHWdata_Capex!AE78 -> 0 | AA15: =CHWdata_Capex!AF78 -> 0 | AB15: =CHWdata_Capex!AG78 -> 0 | AC15: =CHWdata_Capex!AH78 -> 0 | AD15: =CHWdata_Capex!AI78 -> 0 | AE15: =CHWdata_Capex!AJ78 -> 0 | AF15: =CHWdata_Capex!AK78 -> 0 | AG15: =CHWdata_Capex!AL78 -> 0 | AH15: =CHWdata_Capex!AM78 -> 0 | AI15: =CHWdata_Capex!AN78 -> 0 | AJ15: =CHWdata_Capex!AO78 -> 0 | AK15: =CHWdata_Capex!AP78 -> 0 | AL15: =CHWdata_Capex!AQ78 -> 0 | AM15: =CHWdata_Capex!AR78 -> 0 | AN15: =CHWdata_Capex!AS78 -> 0 | AO15: =CHWdata_Capex!AT78 -> 0 | AP15: =CHWdata_Capex!AU78 -> 0
E16: Beaufort | F16: total capex | G16: water | Q16: $ | W16: =CHWdata_Capex!AB79 -> 0 | X16: =CHWdata_Capex!AC79 -> 0 | Y16: =CHWdata_Capex!AD79 -> 0 | Z16: =CHWdata_Capex!AE79 -> 0 | AA16: =CHWdata_Capex!AF79 -> 0 | AB16: =CHWdata_Capex!AG79 -> 0 | AC16: =CHWdata_Capex!AH79 -> 0 | AD16: =CHWdata_Capex!AI79 -> 0 | AE16: =CHWdata_Capex!AJ79 -> 0 | AF16: =CHWdata_Capex!AK79 -> 0 | AG16: =CHWdata_Capex!AL79 -> 0 | AH16: =CHWdata_Capex!AM79 -> 0 | AI16: =CHWdata_Capex!AN79 -> 0 | AJ16: =CHWdata_Capex!AO79 -> 0 | AK16: =CHWdata_Capex!AP79 -> 0 | AL16: =CHWdata_Capex!AQ79 -> 0 | AM16: =CHWdata_Capex!AR79 -> 0 | AN16: =CHWdata_Capex!AS79 -> 0 | AO16: =CHWdata_Capex!AT79 -> 0 | AP16: =CHWdata_Capex!AU79 -> 0
E17: Daylesford | F17: total capex | G17: water | Q17: $ | W17: =CHWdata_Capex!AB80 -> 56565.76028 | X17: =CHWdata_Capex!AC80 -> 48763.58645 | Y17: =CHWdata_Capex!AD80 -> 48763.58645 | Z17: =CHWdata_Capex!AE80 -> 48763.58645 | AA17: =CHWdata_Capex!AF80 -> 59555.99998 | AB17: =CHWdata_Capex!AG80 -> 102436.2616 | AC17: =CHWdata_Capex!AH80 -> 656446.8228 | AD17: =CHWdata_Capex!AI80 -> 111156.3139 | AE17: =CHWdata_Capex!AJ80 -> 44876.72276 | AF17: =CHWdata_Capex!AK80 -> 44876.72276 | AG17: =CHWdata_Capex!AL80 -> 44876.72276 | AH17: =CHWdata_Capex!AM80 -> 44876.72276 | AI17: =CHWdata_Capex!AN80 -> 258652.6321 | AJ17: =CHWdata_Capex!AO80 -> 44876.72276 | AK17: =CHWdata_Capex!AP80 -> 44876.72276 | AL17: =CHWdata_Capex!AQ80 -> 44876.72276 | AM17: =CHWdata_Capex!AR80 -> 44876.72276 | AN17: =CHWdata_Capex!AS80 -> 798273.3086 | AO17: =CHWdata_Capex!AT80 -> 44876.72276 | AP17: =CHWdata_Capex!AU80 -> 44876.72276
E18: Maryborough | F18: total capex | G18: water | Q18: $ | W18: =CHWdata_Capex!AB81 -> 115243.5457 | X18: =CHWdata_Capex!AC81 -> 99347.88421 | Y18: =CHWdata_Capex!AD81 -> 99347.88421 | Z18: =CHWdata_Capex!AE81 -> 99347.88421 | AA18: =CHWdata_Capex!AF81 -> 164102.3654 | AB18: =CHWdata_Capex!AG81 -> 91429.03098 | AC18: =CHWdata_Capex!AH81 -> 91429.03098 | AD18: =CHWdata_Capex!AI81 -> 2660742.03 | AE18: =CHWdata_Capex!AJ81 -> 91429.03098 | AF18: =CHWdata_Capex!AK81 -> 91429.03098 | AG18: =CHWdata_Capex!AL81 -> 91429.03098 | AH18: =CHWdata_Capex!AM81 -> 91429.03098 | AI18: =CHWdata_Capex!AN81 -> 1095842.068 | AJ18: =CHWdata_Capex!AO81 -> 91429.03098 | AK18: =CHWdata_Capex!AP81 -> 91429.03098 | AL18: =CHWdata_Capex!AQ81 -> 91429.03098 | AM18: =CHWdata_Capex!AR81 -> 91429.03098 | AN18: =CHWdata_Capex!AS81 -> 8002986.727 | AO18: =CHWdata_Capex!AT81 -> 91429.03098 | AP18: =CHWdata_Capex!AU81 -> 91429.03098
E19: Remainder | F19: total capex | G19: water | Q19: $ | W19: =CHWdata_Capex!AB82 -> 77352.35021 | X19: =CHWdata_Capex!AC82 -> 66683.06052 | Y19: =CHWdata_Capex!AD82 -> 66683.06052 | Z19: =CHWdata_Capex!AE82 -> 66683.06052 | AA19: =CHWdata_Capex!AF82 -> 66683.06052 | AB19: =CHWdata_Capex!AG82 -> 61367.86561 | AC19: =CHWdata_Capex!AH82 -> 61367.86561 | AD19: =CHWdata_Capex!AI82 -> 467475.6523 | AE19: =CHWdata_Capex!AJ82 -> 61367.86561 | AF19: =CHWdata_Capex!AK82 -> 61367.86561 | AG19: =CHWdata_Capex!AL82 -> 61367.86561 | AH19: =CHWdata_Capex!AM82 -> 61367.86561 | AI19: =CHWdata_Capex!AN82 -> 1906464.123 | AJ19: =CHWdata_Capex!AO82 -> 61367.86561 | AK19: =CHWdata_Capex!AP82 -> 61367.86561 | AL19: =CHWdata_Capex!AQ82 -> 61367.86561 | AM19: =CHWdata_Capex!AR82 -> 61367.86561 | AN19: =CHWdata_Capex!AS82 -> 107728.5346 | AO19: =CHWdata_Capex!AT82 -> 61367.86561 | AP19: =CHWdata_Capex!AU82 -> 61367.86561
Q20: $
Q21: $
Q22: $
Q23: $
Q24: $
Q25: $
Q26: $
Q27: $
Q28: $
Q29: $
Q30: $
Q31: $
Q32: $
Q33: $
Q34: $
Q35: $
Q36: $
Q37: $
Q38: $
Q39: $
Q40: $
Q41: $
Q42: $
Q43: $
Q44: $
Q45: $
Q46: $
Q47: $
Q48: $
Q49: $
Q50: $
Q51: $
Q52: $
Q53: $
Q54: $
Q55: $
Q56: $
Q57: $
Q58: $
Q59: $
Q60: $
Q61: $
Q62: $
Q63: $
Q64: $
Q65: $
Q66: $
Q67: $
Q68: $
Q69: $
Q70: $
Q71: $
Q72: $
Q73: $
Q74: $
Q75: $
Q76: $
Q77: $
Q78: $
Q79: $
Q80: $
Q81: $
Q82: $
Q83: $
Q84: $
Q85: $
Q86: $
Q87: $
Q88: $
Q89: $
Q90: $
Q91: $
Q92: $
Q93: $
Q94: $
Q95: $
Q96: $
Q97: $
Q98: $
Q99: $
Q100: $
Q101: $
Q102: $
Q103: $
Q104: $
Q105: $
Q106: $
Q107: $
Q108: $
Q109: $
Q110: $
Q111: $
Q112: $
Q113: $
Q114: $
Q115: $
Q116: $
Q117: $
Q118: $
Q119: $
Q120: $
Q121: $
Q122: $
Q123: $
Q124: $
Q125: $
Q126: $
Q127: $
Q128: $
Q129: $
Q130: $
Q131: $
Q132: $
Q133: $
Q134: $
Q135: $
Q136: $
Q137: $
Q138: $
Q139: $
Q140: $
Q141: $
Q142: $
Q143: $
Q144: $
Q145: $
Q146: $
Q147: $
Q148: $
Q149: $
Q150: $
Q151: $
Q152: $
Q153: $
Q154: $
Q155: $
Q156: $
Q157: $
Q158: $
Q159: $
Q160: $
Q161: $
Q162: $
Q163: $
Q164: $
Q165: $
Q166: $
Q167: $
Q168: $
Q169: $
Q170: $
Q171: $
Q172: $
Q173: $
Q174: $
Q175: $
Q176: $
Q177: $
Q178: $
Q179: $
Q180: $
Q181: $
Q182: $
Q183: $
Q184: $
Q185: $
Q186: $
Q187: $
Q188: $
Q189: $
Q190: $
Q191: $
Q192: $
Q193: $
Q194: $
Q195: $
Q196: $
Q197: $
Q198: $
Q199: $
Q200: $
Q201: $
Q202: $
Q203: $
Q204: $
... 16 more rows

Sheet DataCON&ASSUMPTIONS
A1: =UPPER(WorkBookTitle) -> CENTRAL HIGHLANDS WATER - NCC WATER
A2: =MID(CELL("filename",A1),FIND("]",CELL("filename",A1))+1,255) -> DataCON&ASSUMPTIONS
A3: =YEAR(Setup!$I$25)&" price period" -> 2023 price period
B5: Timing flags
E7: =Setup!E37 -> Year counter | F7: num | R7: =Setup!R37 -> 1 | S7: =Setup!S37 -> 2 | T7: =Setup!T37 -> 3 | U7: =Setup!U37 -> 4 | V7: =Setup!V37 -> 5 | W7: =Setup!W37 -> 6 | X7: =Setup!X37 -> 7 | Y7: =Setup!Y37 -> 8 | Z7: =Setup!Z37 -> 9 | AA7: =Setup!AA37 -> 10 | AB7: =Setup!AB37 -> 11 | AC7: =Setup!AC37 -> 12 | AD7: =Setup!AD37 -> 13 | AE7: =Setup!AE37 -> 14 | AF7: =Setup!AF37 -> 15 | AG7: =Setup!AG37 -> 16 | AH7: =Setup!AH37 -> 17 | AI7: =Setup!AI37 -> 18 | AJ7: =Setup!AJ37 -> 19 | AK7: =Setup!AK37 -> 20 | AL7: =Setup!AL37 -> 21 | AM7: =Setup!AM37 -> 22 | AN7: =Setup!AN37 -> 23 | AO7: =Setup!AO37 -> 24 | AP7: =Setup!AP37 -> 25
E8: =Setup!E41 -> Financial year | F8: year | R8: =Setup!R41 -> 2018-19 | S8: =Setup!S41 -> 2019-20 | T8: =Setup!T41 -> 2020-21 | U8: =Setup!U41 -> 2021-22 | V8: =Setup!V41 -> 2022-23 | W8: =Setup!W41 -> 2023-24 | X8: =Setup!X41 -> 2024-25 | Y8: =Setup!Y41 -> 2025-26 | Z8: =Setup!Z41 -> 2026-27 | AA8: =Setup!AA41 -> 2027-28 | AB8: =Setup!AB41 -> 2028-29 | AC8: =Setup!AC41 -> 2029-30 | AD8: =Setup!AD41 -> 2030-31 | AE8: =Setup!AE41 -> 2031-32 | AF8: =Setup!AF41 -> 2032-33 | AG8: =Setup!AG41 -> 2033-34 | AH8: =Setup!AH41 -> 2034-35 | AI8: =Setup!AI41 -> 2035-36 | AJ8: =Setup!AJ41 -> 2036-37 | AK8: =Setup!AK41 -> 2037-38 | AL8: =Setup!AL41 -> 2038-39 | AM8: =Setup!AM41 -> 2039-40 | AN8: =Setup!AN41 -> 2040-41 | AO8: =Setup!AO41 -> 2041-42 | AP8: =Setup!AP41 -> 2042-43
B10: New Customers
C11: Water Connections
E13: System/Town | F13: Customer Class
E14: Ballarat | F14: Residential | Q14: Con | W14: =CHWdata_Opex!E47 -> 1615.9125 | X14: =CHWdata_Opex!F47 -> 1656.310312 | Y14: =CHWdata_Opex!G47 -> 1697.71807 | Z14: =CHWdata_Opex!H47 -> 1740.161022 | AA14: =CHWdata_Opex!I47 -> 1783.665048 | AB14: =CHWdata_Opex!J47 -> 1828.256674 | AC14: =CHWdata_Opex!K47 -> 1873.963091 | AD14: =CHWdata_Opex!L47 -> 1920.812168 | AE14: =CHWdata_Opex!M47 -> 1968.832472 | AF14: =CHWdata_Opex!N47 -> 2018.053284 | AG14: =CHWdata_Opex!O47 -> 2068.504616 | AH14: =CHWdata_Opex!P47 -> 2120.217231 | AI14: =CHWdata_Opex!Q47 -> 2173.222662 | AJ14: =CHWdata_Opex!R47 -> 2227.553229 | AK14: =CHWdata_Opex!S47 -> 2283.242059 | AL14: =CHWdata_Opex!T47 -> 2340.323111 | AM14: =CHWdata_Opex!U47 -> 2398.831189 | AN14: =CHWdata_Opex!V47 -> 2458.801968 | AO14: =CHWdata_Opex!W47 -> 2520.272018 | AP14: =CHWdata_Opex!X47 -> 2583.278818
E15: Avoca | F15: Residential | Q15: Con | W15: =CHWdata_Opex!E48 -> 0 | X15: =CHWdata_Opex!F48 -> 0 | Y15: =CHWdata_Opex!G48 -> 0 | Z15: =CHWdata_Opex!H48 -> 0 | AA15: =CHWdata_Opex!I48 -> 0 | AB15: =CHWdata_Opex!J48 -> 0 | AC15: =CHWdata_Opex!K48 -> 0 | AD15: =CHWdata_Opex!L48 -> 0 | AE15: =CHWdata_Opex!M48 -> 0 | AF15: =CHWdata_Opex!N48 -> 0 | AG15: =CHWdata_Opex!O48 -> 0 | AH15: =CHWdata_Opex!P48 -> 0 | AI15: =CHWdata_Opex!Q48 -> 0 | AJ15: =CHWdata_Opex!R48 -> 0 | AK15: =CHWdata_Opex!S48 -> 0 | AL15: =CHWdata_Opex!T48 -> 0 | AM15: =CHWdata_Opex!U48 -> 0 | AN15: =CHWdata_Opex!V48 -> 0 | AO15: =CHWdata_Opex!W48 -> 0 | AP15: =CHWdata_Opex!X48 -> 0
E16: Beaufort | F16: Residential | Q16: Con | W16: =CHWdata_Opex!E49 -> 0 | X16: =CHWdata_Opex!F49 -> 0 | Y16: =CHWdata_Opex!G49 -> 0 | Z16: =CHWdata_Opex!H49 -> 0 | AA16: =CHWdata_Opex!I49 -> 0 | AB16: =CHWdata_Opex!J49 -> 0 | AC16: =CHWdata_Opex!K49 -> 0 | AD16: =CHWdata_Opex!L49 -> 0 | AE16: =CHWdata_Opex!M49 -> 0 | AF16: =CHWdata_Opex!N49 -> 0 | AG16: =CHWdata_Opex!O49 -> 0 | AH16: =CHWdata_Opex!P49 -> 0 | AI16: =CHWdata_Opex!Q49 -> 0 | AJ16: =CHWdata_Opex!R49 -> 0 | AK16: =CHWdata_Opex!S49 -> 0 | AL16: =CHWdata_Opex!T49 -> 0 | AM16: =CHWdata_Opex!U49 -> 0 | AN16: =CHWdata_Opex!V49 -> 0 | AO16: =CHWdata_Opex!W49 -> 0 | AP16: =CHWdata_Opex!X49 -> 0
E17: Daylesford | F17: Residential | Q17: Con | W17: =CHWdata_Opex!E50 -> 28.95405626 | X17: =CHWdata_Opex!F50 -> 29.22940113 | Y17: =CHWdata_Opex!G50 -> 29.50736445 | Z17: =CHWdata_Opex!H50 -> 29.78797113 | AA17: =CHWdata_Opex!I50 -> 30.07124629 | AB17: =CHWdata_Opex!J50 -> 30.35721532 | AC17: =CHWdata_Opex!K50 -> 30.64590383 | AD17: =CHWdata_Opex!L50 -> 30.93733769 | AE17: =CHWdata_Opex!M50 -> 31.231543 | AF17: =CHWdata_Opex!N50 -> 31.52854613 | AG17: =CHWdata_Opex!O50 -> 31.82837366 | AH17: =CHWdata_Opex!P50 -> 32.13105248 | AI17: =CHWdata_Opex!Q50 -> 32.43660968 | AJ17: =CHWdata_Opex!R50 -> 32.74507264 | AK17: =CHWdata_Opex!S50 -> 33.056469 | AL17: =CHWdata_Opex!T50 -> 33.37082665 | AM17: =CHWdata_Opex!U50 -> 33.68817376 | AN17: =CHWdata_Opex!V50 -> 34.00853874 | AO17: =CHWdata_Opex!W50 -> 34.33195031 | AP17: =CHWdata_Opex!X50 -> 34.65843742
E18: Maryborough | F18: Residential | Q18: Con | W18: =CHWdata_Opex!E51 -> 51.46696514 | X18: =CHWdata_Opex!F51 -> 51.89398915 | Y18: =CHWdata_Opex!G51 -> 52.3245562 | Z18: =CHWdata_Opex!H51 -> 52.75869569 | AA18: =CHWdata_Opex!I51 -> 53.19643726 | AB18: =CHWdata_Opex!J51 -> 53.63781078 | AC18: =CHWdata_Opex!K51 -> 54.08284641 | AD18: =CHWdata_Opex!L51 -> 54.53157452 | AE18: =CHWdata_Opex!M51 -> 54.98402575 | AF18: =CHWdata_Opex!N51 -> 55.44023099 | AG18: =CHWdata_Opex!O51 -> 55.90022139 | AH18: =CHWdata_Opex!P51 -> 56.36402836 | AI18: =CHWdata_Opex!Q51 -> 56.83168355 | AJ18: =CHWdata_Opex!R51 -> 57.3032189 | AK18: =CHWdata_Opex!S51 -> 57.77866661 | AL18: =CHWdata_Opex!T51 -> 58.25805912 | AM18: =CHWdata_Opex!U51 -> 58.74142919 | AN18: =CHWdata_Opex!V51 -> 59.22880979 | AO18: =CHWdata_Opex!W51 -> 59.72023422 | AP18: =CHWdata_Opex!X51 -> 60.21573602
E19: Remainder | F19: Residential | Q19: Con | W19: =CHWdata_Opex!E52 -> 37.87163641 | X19: =CHWdata_Opex!F52 -> 38.21611831 | Y19: =CHWdata_Opex!G52 -> 38.56373364 | Z19: =CHWdata_Opex!H52 -> 38.91451089 | AA19: =CHWdata_Opex!I52 -> 39.26847883 | AB19: =CHWdata_Opex!J52 -> 39.62566647 | AC19: =CHWdata_Opex!K52 -> 39.9861031 | AD19: =CHWdata_Opex!L52 -> 40.34981828 | AE19: =CHWdata_Opex!M52 -> 40.71684183 | AF19: =CHWdata_Opex!N52 -> 41.08720384 | AG19: =CHWdata_Opex!O52 -> 41.46093468 | AH19: =CHWdata_Opex!P52 -> 41.83806498 | AI19: =CHWdata_Opex!Q52 -> 42.21862568 | AJ19: =CHWdata_Opex!R52 -> 42.60264797 | AK19: =CHWdata_Opex!S52 -> 42.99016335 | AL19: =CHWdata_Opex!T52 -> 43.38120358 | AM19: =CHWdata_Opex!U52 -> 43.77580073 | AN19: =CHWdata_Opex!V52 -> 44.17398715 | AO19: =CHWdata_Opex!W52 -> 44.57579549 | AP19: =CHWdata_Opex!X52 -> 44.98125869
Q20: Con
Q21: Con
Q22: Con
Q23: Con
Q24: Con
Q25: Con
Q26: Con
Q27: Con
Q28: Con
Q29: Con
Q30: Con
Q31: Con
Q32: Con
Q33: Con
Q34: Con
Q35: Con
Q36: Con
Q37: Con
Q38: Con
Q39: Con
Q40: Con
Q41: Con
Q42: Con
Q43: Con
B45: Finance
C46: WACC
E48: WACC | F48: 0.0309
B50: Tax
C51: Tax rate
E53: Corporate tax rate | F53: 0.3
B55: Franking credits
C56: Value of franking credits
E58: Value of franking credits | F58: 0.5
C60: Gifted assets
E62: System/Town | F62: Customer Class
E63: Ballarat | F63: Residential | Q63: Con | R63: 100 | S63: 100 | T63: 100 | U63: 100 | V63: 100 | W63: ='CHWdata_Gifted assets'!L15 -> 4369487.763 | X63: ='CHWdata_Gifted assets'!M15 -> 4478724.957 | Y63: ='CHWdata_Gifted assets'!N15 -> 4590693.081 | Z63: ='CHWdata_Gifted assets'!O15 -> 4705460.408 | AA63: ='CHWdata_Gifted assets'!P15 -> 4823096.919 | AB63: ='CHWdata_Gifted assets'!Q15 -> 4943674.342 | AC63: ='CHWdata_Gifted assets'!R15 -> 5067266.2 | AD63: ='CHWdata_Gifted assets'!S15 -> 5193947.855 | AE63: ='CHWdata_Gifted assets'!T15 -> 5323796.552 | AF63: ='CHWdata_Gifted assets'!U15 -> 5456891.465 | AG63: ='CHWdata_Gifted assets'!V15 -> 5593313.752 | AH63: ='CHWdata_Gifted assets'!W15 -> 5733146.596 | AI63: ='CHWdata_Gifted assets'!X15 -> 5876475.261 | AJ63: ='CHWdata_Gifted assets'!Y15 -> 6023387.142 | AK63: ='CHWdata_Gifted assets'!Z15 -> 6173971.821 | AL63: ='CHWdata_Gifted assets'!AA15 -> 6328321.116 | AM63: ='CHWdata_Gifted assets'!AB15 -> 6486529.144 | AN63: ='CHWdata_Gifted assets'!AC15 -> 6648692.373 | AO63: ='CHWdata_Gifted assets'!AD15 -> 6814909.682 | AP63: ='CHWdata_Gifted assets'!AE15 -> 6985282.424
E64: Avoca | F64: Residential | Q64: Con | W64: ='CHWdata_Gifted assets'!L16 -> 0 | X64: ='CHWdata_Gifted assets'!M16 -> 0 | Y64: ='CHWdata_Gifted assets'!N16 -> 0 | Z64: ='CHWdata_Gifted assets'!O16 -> 0 | AA64: ='CHWdata_Gifted assets'!P16 -> 0 | AB64: ='CHWdata_Gifted assets'!Q16 -> 0 | AC64: ='CHWdata_Gifted assets'!R16 -> 0 | AD64: ='CHWdata_Gifted assets'!S16 -> 0 | AE64: ='CHWdata_Gifted assets'!T16 -> 0 | AF64: ='CHWdata_Gifted assets'!U16 -> 0 | AG64: ='CHWdata_Gifted assets'!V16 -> 0 | AH64: ='CHWdata_Gifted assets'!W16 -> 0 | AI64: ='CHWdata_Gifted assets'!X16 -> 0 | AJ64: ='CHWdata_Gifted assets'!Y16 -> 0 | AK64: ='CHWdata_Gifted assets'!Z16 -> 0 | AL64: ='CHWdata_Gifted assets'!AA16 -> 0 | AM64: ='CHWdata_Gifted assets'!AB16 -> 0 | AN64: ='CHWdata_Gifted assets'!AC16 -> 0 | AO64: ='CHWdata_Gifted assets'!AD16 -> 0 | AP64: ='CHWdata_Gifted assets'!AE16 -> 0
E65: Beaufort | F65: Residential | Q65: Con | W65: ='CHWdata_Gifted assets'!L17 -> 0 | X65: ='CHWdata_Gifted assets'!M17 -> 0 | Y65: ='CHWdata_Gifted assets'!N17 -> 0 | Z65: ='CHWdata_Gifted assets'!O17 -> 0 | AA65: ='CHWdata_Gifted assets'!P17 -> 0 | AB65: ='CHWdata_Gifted assets'!Q17 -> 0 | AC65: ='CHWdata_Gifted assets'!R17 -> 0 | AD65: ='CHWdata_Gifted assets'!S17 -> 0 | AE65: ='CHWdata_Gifted assets'!T17 -> 0 | AF65: ='CHWdata_Gifted assets'!U17 -> 0 | AG65: ='CHWdata_Gifted assets'!V17 -> 0 | AH65: ='CHWdata_Gifted assets'!W17 -> 0 | AI65: ='CHWdata_Gifted assets'!X17 -> 0 | AJ65: ='CHWdata_Gifted assets'!Y17 -> 0 | AK65: ='CHWdata_Gifted assets'!Z17 -> 0 | AL65: ='CHWdata_Gifted assets'!AA17 -> 0 | AM65: ='CHWdata_Gifted assets'!AB17 -> 0 | AN65: ='CHWdata_Gifted assets'!AC17 -> 0 | AO65: ='CHWdata_Gifted assets'!AD17 -> 0 | AP65: ='CHWdata_Gifted assets'!AE17 -> 0
E66: Daylesford | F66: Residential | Q66: Con | W66: ='CHWdata_Gifted assets'!L18 -> 205826.04 | X66: ='CHWdata_Gifted assets'!M18 -> 210971.691 | Y66: ='CHWdata_Gifted assets'!N18 -> 216245.9833 | Z66: ='CHWdata_Gifted assets'!O18 -> 221652.1329 | AA66: ='CHWdata_Gifted assets'!P18 -> 227193.4362 | AB66: ='CHWdata_Gifted assets'!Q18 -> 232873.2721 | AC66: ='CHWdata_Gifted assets'!R18 -> 238695.1039 | AD66: ='CHWdata_Gifted assets'!S18 -> 244662.4815 | AE66: ='CHWdata_Gifted assets'!T18 -> 250779.0435 | AF66: ='CHWdata_Gifted assets'!U18 -> 257048.5196 | AG66: ='CHWdata_Gifted assets'!V18 -> 263474.7326 | AH66: ='CHWdata_Gifted assets'!W18 -> 270061.6009 | AI66: ='CHWdata_Gifted assets'!X18 -> 276813.141 | AJ66: ='CHWdata_Gifted assets'!Y18 -> 283733.4695 | AK66: ='CHWdata_Gifted assets'!Z18 -> 290826.8062 | AL66: ='CHWdata_Gifted assets'!AA18 -> 298097.4764 | AM66: ='CHWdata_Gifted assets'!AB18 -> 305549.9133 | AN66: ='CHWdata_Gifted assets'!AC18 -> 313188.6611 | AO66: ='CHWdata_Gifted assets'!AD18 -> 321018.3776 | AP66: ='CHWdata_Gifted assets'!AE18 -> 329043.8371
E67: Maryborough | F67: Residential | Q67: Con | W67: ='CHWdata_Gifted assets'!L19 -> 419337.1136 | X67: ='CHWdata_Gifted assets'!M19 -> 429820.5414 | Y67: ='CHWdata_Gifted assets'!N19 -> 440566.055 | Z67: ='CHWdata_Gifted assets'!O19 -> 451580.2064 | AA67: ='CHWdata_Gifted assets'!P19 -> 462869.7115 | AB67: ='CHWdata_Gifted assets'!Q19 -> 474441.4543 | AC67: ='CHWdata_Gifted assets'!R19 -> 486302.4907 | AD67: ='CHWdata_Gifted assets'!S19 -> 498460.0529 | AE67: ='CHWdata_Gifted assets'!T19 -> 510921.5543 | AF67: ='CHWdata_Gifted assets'!U19 -> 523694.5931 | AG67: ='CHWdata_Gifted assets'!V19 -> 536786.9579 | AH67: ='CHWdata_Gifted assets'!W19 -> 550206.6319 | AI67: ='CHWdata_Gifted assets'!X19 -> 563961.7977 | AJ67: ='CHWdata_Gifted assets'!Y19 -> 578060.8426 | AK67: ='CHWdata_Gifted assets'!Z19 -> 592512.3637 | AL67: ='CHWdata_Gifted assets'!AA19 -> 607325.1728 | AM67: ='CHWdata_Gifted assets'!AB19 -> 622508.3021 | AN67: ='CHWdata_Gifted assets'!AC19 -> 638071.0097 | AO67: ='CHWdata_Gifted assets'!AD19 -> 654022.7849 | AP67: ='CHWdata_Gifted assets'!AE19 -> 670373.3545
E68: Remainder | F68: Residential | Q68: Con | W68: ='CHWdata_Gifted assets'!L20 -> 281462.2812 | X68: ='CHWdata_Gifted assets'!M20 -> 288498.8383 | Y68: ='CHWdata_Gifted assets'!N20 -> 295711.3092 | Z68: ='CHWdata_Gifted assets'!O20 -> 303104.092 | AA68: ='CHWdata_Gifted assets'!P20 -> 310681.6943 | AB68: ='CHWdata_Gifted assets'!Q20 -> 318448.7366 | AC68: ='CHWdata_Gifted assets'!R20 -> 326409.955 | AD68: ='CHWdata_Gifted assets'!S20 -> 334570.2039 | AE68: ='CHWdata_Gifted assets'!T20 -> 342934.459 | AF68: ='CHWdata_Gifted assets'!U20 -> 351507.8205 | AG68: ='CHWdata_Gifted assets'!V20 -> 360295.516 | AH68: ='CHWdata_Gifted assets'!W20 -> 369302.9039 | AI68: ='CHWdata_Gifted assets'!X20 -> 378535.4765 | AJ68: ='CHWdata_Gifted assets'!Y20 -> 387998.8634 | AK68: ='CHWdata_Gifted assets'!Z20 -> 397698.835 | AL68: ='CHWdata_Gifted assets'!AA20 -> 407641.3059 | AM68: ='CHWdata_Gifted assets'!AB20 -> 417832.3385 | AN68: ='CHWdata_Gifted assets'!AC20 -> 428278.147 | AO68: ='CHWdata_Gifted assets'!AD20 -> 438985.1006 | AP68: ='CHWdata_Gifted assets'!AE20 -> 449959.7282
Q69: Con
Q70: Con
Q71: Con
Q72: Con
C74: Tax depreciation
E76: System/Town | F76: Customer Class
E77: Ballarat | F77: Residential | Q77: Con | R77: 100 | S77: 100 | T77: 100 | U77: 100 | V77: 100 | W77: =CHWdata_depreciation!H35 -> 447976.3908 | X77: =CHWdata_depreciation!I35 -> 461415.6825 | Y77: =CHWdata_depreciation!J35 -> 475258.153 | Z77: =CHWdata_depreciation!K35 -> 489515.8976 | AA77: =CHWdata_depreciation!L35 -> 504201.3745 | AB77: =CHWdata_depreciation!M35 -> 519327.4157 | AC77: =CHWdata_depreciation!N35 -> 534907.2382 | AD77: =CHWdata_depreciation!O35 -> 550954.4553 | AE77: =CHWdata_depreciation!P35 -> 567483.089 | AF77: =CHWdata_depreciation!Q35 -> 584507.5817 | AG77: =CHWdata_depreciation!R35 -> 602042.8091 | AH77: =CHWdata_depreciation!S35 -> 620104.0934 | AI77: =CHWdata_depreciation!T35 -> 638707.2162 | AJ77: =CHWdata_depreciation!U35 -> 657868.4327 | AK77: =CHWdata_depreciation!V35 -> 677604.4857 | AL77: =CHWdata_depreciation!W35 -> 697932.6202 | AM77: =CHWdata_depreciation!X35 -> 718870.5988 | AN77: =CHWdata_depreciation!Y35 -> 740436.7168 | AO77: =CHWdata_depreciation!Z35 -> 762649.8183 | AP77: =CHWdata_depreciation!AA35 -> 785529.3129
E78: Avoca | F78: Residential | Q78: Con | W78: =CHWdata_depreciation!H36 -> 0 | X78: =CHWdata_depreciation!I36 -> 0 | Y78: =CHWdata_depreciation!J36 -> 0 | Z78: =CHWdata_depreciation!K36 -> 0 | AA78: =CHWdata_depreciation!L36 -> 0 | AB78: =CHWdata_depreciation!M36 -> 0 | AC78: =CHWdata_depreciation!N36 -> 0 | AD78: =CHWdata_depreciation!O36 -> 0 | AE78: =CHWdata_depreciation!P36 -> 0 | AF78: =CHWdata_depreciation!Q36 -> 0 | AG78: =CHWdata_depreciation!R36 -> 0 | AH78: =CHWdata_depreciation!S36 -> 0 | AI78: =CHWdata_depreciation!T36 -> 0 | AJ78: =CHWdata_depreciation!U36 -> 0 | AK78: =CHWdata_depreciation!V36 -> 0 | AL78: =CHWdata_depreciation!W36 -> 0 | AM78: =CHWdata_depreciation!X36 -> 0 | AN78: =CHWdata_depreciation!Y36 -> 0 | AO78: =CHWdata_depreciation!Z36 -> 0 | AP78: =CHWdata_depreciation!AA36 -> 0
E79: Beaufort | F79: Residential | Q79: Con | W79: =CHWdata_depreciation!H37 -> 0 | X79: =CHWdata_depreciation!I37 -> 0 | Y79: =CHWdata_depreciation!J37 -> 0 | Z79: =CHWdata_depreciation!K37 -> 0 | AA79: =CHWdata_depreciation!L37 -> 0 | AB79: =CHWdata_depreciation!M37 -> 0 | AC79: =CHWdata_depreciation!N37 -> 0 | AD79: =CHWdata_depreciation!O37 -> 0 | AE79: =CHWdata_depreciation!P37 -> 0 | AF79: =CHWdata_depreciation!Q37 -> 0 | AG79: =CHWdata_depreciation!R37 -> 0 | AH79: =CHWdata_depreciation!S37 -> 0 | AI79: =CHWdata_depreciation!T37 -> 0 | AJ79: =CHWdata_depreciation!U37 -> 0 | AK79: =CHWdata_depreciation!V37 -> 0 | AL79: =CHWdata_depreciation!W37 -> 0 | AM79: =CHWdata_depreciation!X37 -> 0 | AN79: =CHWdata_depreciation!Y37 -> 0 | AO79: =CHWdata_depreciation!Z37 -> 0 | AP79: =CHWdata_depreciation!AA37 -> 0
E80: Daylesford | F80: Residential | Q80: Con | W80: =CHWdata_depreciation!H38 -> 21938.46341 | X80: =CHWdata_depreciation!I38 -> 22596.61731 | Y80: =CHWdata_depreciation!J38 -> 23274.51583 | Z80: =CHWdata_depreciation!K38 -> 23972.75131 | AA80: =CHWdata_depreciation!L38 -> 24691.93385 | AB80: =CHWdata_depreciation!M38 -> 25432.69186 | AC80: =CHWdata_depreciation!N38 -> 26195.67262 | AD80: =CHWdata_depreciation!O38 -> 26981.5428 | AE80: =CHWdata_depreciation!P38 -> 27790.98908 | AF80: =CHWdata_depreciation!Q38 -> 28624.71875 | AG80: =CHWdata_depreciation!R38 -> 29483.46032 | AH80: =CHWdata_depreciation!S38 -> 30367.96413 | AI80: =CHWdata_depreciation!T38 -> 31279.00305 | AJ80: =CHWdata_depreciation!U38 -> 32217.37314 | AK80: =CHWdata_depreciation!V38 -> 33183.89433 | AL80: =CHWdata_depreciation!W38 -> 34179.41116 | AM80: =CHWdata_depreciation!X38 -> 35204.7935 | AN80: =CHWdata_depreciation!Y38 -> 36260.9373 | AO80: =CHWdata_depreciation!Z38 -> 37348.76542 | AP80: =CHWdata_depreciation!AA38 -> 38469.22839
E81: Maryborough | F81: Residential | Q81: Con | W81: =CHWdata_depreciation!H39 -> 38717.34038 | X81: =CHWdata_depreciation!I39 -> 39878.8606 | Y81: =CHWdata_depreciation!J39 -> 41075.22641 | Z81: =CHWdata_depreciation!K39 -> 42307.48321 | AA81: =CHWdata_depreciation!L39 -> 43576.7077 | AB81: =CHWdata_depreciation!M39 -> 44884.00893 | AC81: =CHWdata_depreciation!N39 -> 46230.5292 | AD81: =CHWdata_depreciation!O39 -> 47617.44508 | AE81: =CHWdata_depreciation!P39 -> 49045.96843 | AF81: =CHWdata_depreciation!Q39 -> 50517.34748 | AG81: =CHWdata_depreciation!R39 -> 52032.86791 | AH81: =CHWdata_depreciation!S39 -> 53593.85394 | AI81: =CHWdata_depreciation!T39 -> 55201.66956 | AJ81: =CHWdata_depreciation!U39 -> 56857.71965 | AK81: =CHWdata_depreciation!V39 -> 58563.45124 | AL81: =CHWdata_depreciation!W39 -> 60320.35478 | AM81: =CHWdata_depreciation!X39 -> 62129.96542 | AN81: =CHWdata_depreciation!Y39 -> 63993.86438 | AO81: =CHWdata_depreciation!Z39 -> 65913.68031 | AP81: =CHWdata_depreciation!AA39 -> 67891.09072
E82: Remainder | F82: Residential | Q82: Con | W82: =CHWdata_depreciation!H40 -> 16648.04752 | X82: =CHWdata_depreciation!I40 -> 17147.48895 | Y82: =CHWdata_depreciation!J40 -> 17661.91362 | Z82: =CHWdata_depreciation!K40 -> 18191.77103 | AA82: =CHWdata_depreciation!L40 -> 18737.52416 | AB82: =CHWdata_depreciation!M40 -> 19299.64988 | AC82: =CHWdata_depreciation!N40 -> 19878.63938 | AD82: =CHWdata_depreciation!O40 -> 20474.99856 | AE82: =CHWdata_depreciation!P40 -> 21089.24852 | AF82: =CHWdata_depreciation!Q40 -> 21721.92597 | AG82: =CHWdata_depreciation!R40 -> 22373.58375 | AH82: =CHWdata_depreciation!S40 -> 23044.79126 | AI82: =CHWdata_depreciation!T40 -> 23736.135 | AJ82: =CHWdata_depreciation!U40 -> 24448.21905 | AK82: =CHWdata_depreciation!V40 -> 25181.66562 | AL82: =CHWdata_depreciation!W40 -> 25937.11559 | AM82: =CHWdata_depreciation!X40 -> 26715.22906 | AN82: =CHWdata_depreciation!Y40 -> 27516.68593 | AO82: =CHWdata_depreciation!Z40 -> 28342.18651 | AP82: =CHWdata_depreciation!AA40 -> 29192.4521
Q83: Con
Q84: Con
Q85: Con
Q86: Con
A89: End

Sheet CHWdata_Opex
D1: Growth rate | F1: 1.03
C3: 2021-22 | D3: 2022-23 | E3: 2023-24 | F3: 2024-25 | G3: 2025-26 | H3: 2026-27 | I3: 2027-28 | J3: 2028-29 | K3: 2029-30 | L3: 2030-31 | M3: 2031-32 | N3: 2032-33 | O3: 2033-34 | P3: 2034-35 | Q3: 2035-36 | R3: 2036-37 | S3: 2037-38 | T3: 2038-39 | U3: 2039-40 | V3: 2040-41 | W3: 2041-42 | X3: 2042-43
B4: Opex | C4: 70.5811076 | D4: =C4*$F$1 -> 72.69854083 | E4: =D4*$F$1 -> 74.87949706 | F4: 77.12588197 | G4: 79.43965843 | H4: 81.82284818 | I4: 84.27753362 | J4: 86.80585963 | K4: 89.41003542 | L4: 92.09233648 | M4: 94.85510658 | N4: 97.70075978 | O4: 100.6317826 | P4: 103.650736 | Q4: 106.7602581 | R4: 109.9630659 | S4: 113.2619578 | T4: 116.6598166 | U4: 120.1596111 | V4: 123.7643994 | W4: 127.4773314 | X4: 131.3016513
B6: Water % | C6: 0.54 | D6: 0.54 | E6: 0.54 | F6: 0.54 | G6: 0.54 | H6: 0.54 | I6: 0.54 | J6: 0.54 | K6: 0.54 | L6: 0.54 | M6: 0.54 | N6: 0.54 | O6: 0.54 | P6: 0.54 | Q6: 0.54 | R6: 0.54 | S6: 0.54 | T6: 0.54 | U6: 0.54 | V6: 0.54 | W6: 0.54 | X6: 0.54
B7: Wastewater % | C7: 0.46 | D7: 0.46 | E7: 0.46 | F7: 0.46 | G7: 0.46 | H7: 0.46 | I7: 0.46 | J7: 0.46 | K7: 0.46 | L7: 0.46 | M7: 0.46 | N7: 0.46 | O7: 0.46 | P7: 0.46 | Q7: 0.46 | R7: 0.46 | S7: 0.46 | T7: 0.46 | U7: 0.46 | V7: 0.46 | W7: 0.46 | X7: 0.46
B9: Water | C9: =C4*C6 -> 38.11379811 | D9: =D4*D6 -> 39.25721205 | E9: 40.43492841 | F9: 41.64797626 | G9: 42.89741555 | H9: 44.18433802 | I9: 45.50986816 | J9: 46.8751642 | K9: 48.28141913 | L9: 49.7298617 | M9: 51.22175755 | N9: 52.75841028 | O9: 54.34116259 | P9: 55.97139747 | Q9: 57.65053939 | R9: 59.38005557 | S9: 61.16145724 | T9: 62.99630096 | U9: 64.88618998 | V9: 66.83277568 | W9: 68.83775895 | X9: 70.90289172
B10: Wastewater | C10: =C4*C7 -> 32.4673095 | D10: =D4*D7 -> 33.44132878 | E10: 34.44456865 | F10: 35.4779057 | G10: 36.54224288 | H10: 37.63851016 | I10: 38.76766547 | J10: 39.93069543 | K10: 41.12861629 | L10: 42.36247478 | M10: 43.63334903 | N10: 44.9423495 | O10: 46.29061998 | P10: 47.67933858 | Q10: 49.10971874 | R10: 50.5830103 | S10: 52.10050061 | T10: 53.66351563 | U10: 55.2734211 | V10: 56.93162373 | W10: 58.63957244 | X10: 60.39875962
B14: System split
B15: Ballarat | C15: =C31/SUM($C$31:$C$36) -> 0.8258899337 | D15: 0.825885373 | E15: 0.825885373 | F15: 0.825885373 | G15: 0.825885373 | H15: 0.825885373 | I15: 0.825885373 | J15: 0.825885373 | K15: 0.825885373 | L15: 0.825885373 | M15: 0.825885373 | N15: 0.825885373 | O15: 0.825885373 | P15: 0.825885373 | Q15: 0.825885373 | R15: 0.825885373 | S15: 0.825885373 | T15: 0.825885373 | U15: 0.825885373 | V15: 0.825885373 | W15: 0.825885373 | X15: 0.825885373
B16: Avoca | C16: =C32/SUM($C$31:$C$36) -> 0 | D16: 0 | E16: 0 | F16: 0 | G16: 0 | H16: 0 | I16: 0 | J16: 0 | K16: 0 | L16: 0 | M16: 0 | N16: 0 | O16: 0 | P16: 0 | Q16: 0 | R16: 0 | S16: 0 | T16: 0 | U16: 0 | V16: 0 | W16: 0 | X16: 0
B17: Beaufort | C17: 0 | D17: 0 | E17: 0 | F17: 0 | G17: 0 | H17: 0 | I17: 0 | J17: 0 | K17: 0 | L17: 0 | M17: 0 | N17: 0 | O17: 0 | P17: 0 | Q17: 0 | R17: 0 | S17: 0 | T17: 0 | U17: 0 | V17: 0 | W17: 0 | X17: 0
B18: Daylesford | C18: 0.03950022265 | D18: 0.03950125733 | E18: 0.03950125733 | F18: 0.03950125733 | G18: 0.03950125733 | H18: 0.03950125733 | I18: 0.03950125733 | J18: 0.03950125733 | K18: 0.03950125733 | L18: 0.03950125733 | M18: 0.03950125733 | N18: 0.03950125733 | O18: 0.03950125733 | P18: 0.03950125733 | Q18: 0.03950125733 | R18: 0.03950125733 | S18: 0.03950125733 | T18: 0.03950125733 | U18: 0.03950125733 | V18: 0.03950125733 | W18: 0.03950125733 | X18: 0.03950125733
B19: Maryborough | C19: 0.08057207219 | D19: 0.08057418273 | E19: 0.08057418273 | F19: 0.08057418273 | G19: 0.08057418273 | H19: 0.08057418273 | I19: 0.08057418273 | J19: 0.08057418273 | K19: 0.08057418273 | L19: 0.08057418273 | M19: 0.08057418273 | N19: 0.08057418273 | O19: 0.08057418273 | P19: 0.08057418273 | Q19: 0.08057418273 | R19: 0.08057418273 | S19: 0.08057418273 | T19: 0.08057418273 | U19: 0.08057418273 | V19: 0.08057418273 | W19: 0.08057418273 | X19: 0.08057418273
B20: Remainder | C20: 0.05403777143 | D20: 0.05403918692 | E20: 0.05403918692 | F20: 0.05403918692 | G20: 0.05403918692 | H20: 0.05403918692 | I20: 0.05403918692 | J20: 0.05403918692 | K20: 0.05403918692 | L20: 0.05403918692 | M20: 0.05403918692 | N20: 0.05403918692 | O20: 0.05403918692 | P20: 0.05403918692 | Q20: 0.05403918692 | R20: 0.05403918692 | S20: 0.05403918692 | T20: 0.05403918692 | U20: 0.05403918692 | V20: 0.05403918692 | W20: 0.05403918692 | X20: 0.05403918692
B22: Opex per system
B23: Ballarat | C23: =C$9*C15 -> 31.47780219 | D23: =D$9*D15 -> 32.42195722 | E23: 33.39461593 | F23: 34.39645441 | G23: 35.42834804 | H23: 36.49119848 | I23: 37.58593444 | J23: 38.71351247 | K23: 39.87491785 | L23: 41.07116538 | M23: 42.30330034 | N23: 43.57239935 | O23: 44.87957133 | P23: 46.22595847 | Q23: 47.61273723 | R23: 49.04111934 | S23: 50.51235292 | T23: 52.02772351 | U23: 53.58855522 | V23: 55.19621187 | W23: 56.85209823 | X23: 58.55766118
B24: Avoca | C24: 0 | D24: =D$9*D16 -> 0 | E24: 0 | F24: 0 | G24: 0 | H24: 0 | I24: 0 | J24: 0 | K24: 0 | L24: 0 | M24: 0 | N24: 0 | O24: 0 | P24: 0 | Q24: 0 | R24: 0 | S24: 0 | T24: 0 | U24: 0 | V24: 0 | W24: 0 | X24: 0
B25: Beaufort | C25: 0 | D25: =D$9*D17 -> 0 | E25: 0 | F25: 0 | G25: 0 | H25: 0 | I25: 0 | J25: 0 | K25: 0 | L25: 0 | M25: 0 | N25: 0 | O25: 0 | P25: 0 | Q25: 0 | R25: 0 | S25: 0 | T25: 0 | U25: 0 | V25: 0 | W25: 0 | X25: 0
B26: Daylesford | C26: 1.505503511 | D26: =D$9*D18 -> 1.550709235 | E26: 1.597230512 | F26: 1.645147428 | G26: 1.694501851 | H26: 1.745336906 | I26: 1.797697013 | J26: 1.851627924 | K26: 1.907176761 | L26: 1.964392064 | M26: 2.023323826 | N26: 2.084023541 | O26: 2.146544247 | P26: 2.210940575 | Q26: 2.277268792 | R26: 2.345586856 | S26: 2.415954461 | T26: 2.488433095 | U26: 2.563086088 | V26: 2.639978671 | W26: 2.719178031 | X26: 2.800753372
B27: Maryborough | C27: 3.070907692 | D27: =D$9*D19 -> 3.163117777 | E27: 3.25801131 | F27: 3.35575165 | G27: 3.456424199 | H27: 3.560116925 | I27: 3.666920433 | J27: 3.776928046 | K27: 3.890235887 | L27: 4.006942964 | M27: 4.127151253 | N27: 4.250965791 | O27: 4.378494764 | P27: 4.509849607 | Q27: 4.645145095 | R27: 4.784499448 | S27: 4.928034432 | T27: 5.075875465 | U27: 5.228151729 | V27: 5.38499628 | W27: 5.546546169 | X27: 5.712942554
B28: Remainder | C28: 2.05958471 | D28: =D$9*D20 -> 2.12142782 | E28: 2.185070655 | F28: 2.250622774 | G28: 2.318141457 | H28: 2.387685701 | I28: 2.459316272 | J28: 2.53309576 | K28: 2.609088633 | L28: 2.687361292 | M28: 2.767982131 | N28: 2.851021595 | O28: 2.936552243 | P28: 3.02464881 | Q28: 3.115388274 | R28: 3.208849923 | S28: 3.30511542 | T28: 3.404268883 | U28: 3.506396949 | V28: 3.611588858 | W28: 3.719936524 | X28: 3.831534619
B30: Total connections
A31: 0.025 | B31: Ballarat | C31: 63060 | D31: =C31*(1+$A31) -> 64636.5 | E31: =D31*(1+$A31) -> 66252.4125 | F31: 67908.72281 | G31: 69606.44088 | H31: 71346.6019 | I31: =H31*(1+$A31) -> 73130.26695 | J31: =I31*(1+$A31) -> 74958.52363 | K31: =J31*(1+$A31) -> 76832.48672 | L31: =K31*(1+$A31) -> 78753.29888 | M31: =L31*(1+$A31) -> 80722.13136 | N31: =M31*(1+$A31) -> 82740.18464 | O31: =N31*(1+$A31) -> 84808.68926 | P31: =O31*(1+$A31) -> 86928.90649 | Q31: =P31*(1+$A31) -> 89102.12915 | R31: =Q31*(1+$A31) -> 91329.68238 | S31: =R31*(1+$A31) -> 93612.92444 | T31: =S31*(1+$A31) -> 95953.24755 | U31: =T31*(1+$A31) -> 98352.07874 | V31: =U31*(1+$A31) -> 100810.8807 | W31: =V31*(1+$A31) -> 103331.1527 | X31: =W31*(1+$A31) -> 105914.4315
A32: 0 | B32: Avoca | C32: 0 | D32: 0 | E32: 0 | F32: 0 | G32: 0 | H32: 0 | I32: 0 | J32: 0 | K32: 0 | L32: 0 | M32: 0 | N32: 0 | O32: 0 | P32: 0 | Q32: 0 | R32: 0 | S32: 0 | T32: 0 | U32: 0 | V32: 0 | W32: 0 | X32: 0
A33: 0 | B33: Beaufort | C33: 0 | D33: 0 | E33: 0 | F33: 0 | G33: 0 | H33: 0 | I33: 0 | J33: 0 | K33: 0 | L33: 0 | M33: 0 | N33: 0 | O33: 0 | P33: 0 | Q33: 0 | R33: 0 | S33: 0 | T33: 0 | U33: 0 | V33: 0 | W33: 0 | X33: 0
A34: =[7]Summary!$W$49 -> 0.009509716572 | B34: Daylesford | C34: 3016 | D34: =C34*(1+$A34) -> 3044.681305 | E34: 3073.635361 | F34: 3102.864763 | G34: 3132.372127 | H34: 3162.160098 | I34: 3192.231344 | J34: 3222.58856 | K34: 3253.234464 | L34: 3284.171801 | M34: 3315.403344 | N34: 3346.93189 | O34: 3378.760264 | P34: 3410.891317 | Q34: 3443.327926 | R34: 3476.072999 | S34: 3509.129468 | T34: 3542.500295 | U34: 3576.188468 | V34: 3610.197007 | W34: 3644.528957 | X34: 3679.187395
A35: =[7]Summary!$W$55 -> 0.008297050555 | B35: Maryborough | C35: 6152 | D35: 6203.043455 | E35: 6254.51042 | F35: 6306.404409 | G35: 6358.728966 | H35: 6411.487661 | I35: 6464.684098 | J35: 6518.321909 | K35: 6572.404756 | L35: 6626.93633 | M35: 6681.920356 | N35: 6737.360587 | O35: 6793.260808 | P35: 6849.624837 | Q35: 6906.45652 | R35: 6963.759739 | S35: 7021.538406 | T35: 7079.796465 | U35: 7138.537894 | V35: 7197.766704 | W35: 7257.486938 | X35: 7317.702674
A36: 0.009096039669 | B36: Remainder | C36: 4126 | D36: 4163.53026 | E36: 4201.401896 | F36: 4239.618014 | G36: 4278.181748 | H36: 4317.096259 | I36: 4356.364738 | J36: 4395.990404 | K36: 4435.976507 | L36: 4476.326326 | M36: 4517.043167 | N36: 4558.130371 | O36: 4599.591306 | P36: 4641.429371 | Q36: 4683.647997 | R36: 4726.250645 | S36: 4769.240808 | T36: 4812.622012 | U36: 4856.397812 | V36: 4900.571799 | W36: 4945.147595 | X36: 4990.128854
B38: Opex per connection
B39: Ballarat | D39: =D23*1000000/D31 -> 501.6044683 | E39: =E23*1000000/E31 -> 504.0513194 | F39: 506.5101063 | G39: 508.9808873 | H39: 511.4637209 | I39: 513.9586659 | J39: 516.4657813 | K39: 518.9851266 | L39: 521.5167614 | M39: 524.0607456 | N39: 526.6171394 | O39: 529.1860035 | P39: 531.7673987 | Q39: 534.361386 | R39: 536.9680269 | S39: 539.5873831 | T39: 542.2195167 | U39: 544.86449 | V39: 547.5223655 | W39: 550.1932063 | X39: 552.8770756
B40: Avoca | D40: 0 | E40: 0 | F40: 0 | G40: 0 | H40: 0 | I40: 0 | J40: 0 | K40: 0 | L40: 0 | M40: 0 | N40: 0 | O40: 0 | P40: 0 | Q40: 0 | R40: 0 | S40: 0 | T40: 0 | U40: 0 | V40: 0 | W40: 0 | X40: 0
B41: Beaufort | D41: 0 | E41: 0 | F41: 0 | G41: 0 | H41: 0 | I41: 0 | J41: 0 | K41: 0 | L41: 0 | M41: 0 | N41: 0 | O41: 0 | P41: 0 | Q41: 0 | R41: 0 | S41: 0 | T41: 0 | U41: 0 | V41: 0 | W41: 0 | X41: 0
B42: Daylesford | D42: =D26*1000000/D34 -> 509.3174227 | E42: 519.655172 | F42: 530.2027493 | G42: 540.9644135 | H42: 551.9445101 | I42: 563.1474725 | J42: 574.5778244 | K42: 586.2401812 | L42: 598.1392519 | M42: 610.2798411 | N42: 622.6668511 | O42: 635.3052834 | P42: 648.2002414 | Q42: 661.3569316 | R42: 674.7806667 | S42: 688.4768668 | T42: 702.4510623 | U42: 716.7088957 | V42: 731.2561241 | W42: 746.0986214 | X42: 761.2423808
B43: Maryborough | D43: 509.9299723 | E43: 520.905889 | F43: 532.1180552 | G43: 543.5715562 | H43: 555.2715865 | I43: 567.2234524 | J43: 579.4325746 | K43: 591.9044904 | L43: 604.6448561 | M43: 617.6594501 | N43: 630.954175 | O43: 644.5350602 | P43: 658.4082654 | Q43: 672.5800824 | R43: 687.0569387 | S43: 701.8454001 | T43: 716.9521737 | U43: 732.3841109 | V43: 748.1482107 | W43: 764.2516227 | X43: 780.7016503
B44: Remainder | D44: 509.5262164 | E44: 520.0813225 | F44: 530.8550833 | G44: 541.8520283 | H44: 553.0767808 | I44: 564.53406 | J44: 576.2286828 | K44: 588.165566 | L44: 600.349728 | M44: 612.7862915 | N44: 625.4804849 | O44: 638.4376453 | P44: 651.6632202 | Q44: 665.1627698 | R44: 678.9419698 | S44: 693.0066133 | T44: 707.3626133 | U44: 722.0160055 | V44: 736.9729504 | W44: 752.2397365 | X44: 767.8227821
B46: New connections
B47: Ballarat | D47: =D31-C31 -> 1576.5 | E47: =E31-D31 -> 1615.9125 | F47: 1656.310312 | G47: 1697.71807 | H47: 1740.161022 | I47: 1783.665048 | J47: 1828.256674 | K47: 1873.963091 | L47: 1920.812168 | M47: 1968.832472 | N47: 2018.053284 | O47: 2068.504616 | P47: 2120.217231 | Q47: 2173.222662 | R47: 2227.553229 | S47: 2283.242059 | T47: 2340.323111 | U47: 2398.831189 | V47: 2458.801968 | W47: 2520.272018 | X47: 2583.278818
B48: Avoca | D48: =D32-C32 -> 0 | E48: 0 | F48: 0 | G48: 0 | H48: 0 | I48: 0 | J48: 0 | K48: 0 | L48: 0 | M48: 0 | N48: 0 | O48: 0 | P48: 0 | Q48: 0 | R48: 0 | S48: 0 | T48: 0 | U48: 0 | V48: 0 | W48: 0 | X48: 0
B49: Beaufort | D49: 0 | E49: 0 | F49: 0 | G49: 0 | H49: 0 | I49: 0 | J49: 0 | K49: 0 | L49: 0 | M49: 0 | N49: 0 | O49: 0 | P49: 0 | Q49: 0 | R49: 0 | S49: 0 | T49: 0 | U49: 0 | V49: 0 | W49: 0 | X49: 0
B50: Daylesford | D50: 28.68130518 | E50: 28.95405626 | F50: 29.22940113 | G50: 29.50736445 | H50: 29.78797113 | I50: 30.07124629 | J50: 30.35721532 | K50: 30.64590383 | L50: 30.93733769 | M50: 31.231543 | N50: 31.52854613 | O50: 31.82837366 | P50: 32.13105248 | Q50: 32.43660968 | R50: 32.74507264 | S50: 33.056469 | T50: 33.37082665 | U50: 33.68817376 | V50: 34.00853874 | W50: 34.33195031 | X50: 34.65843742
B51: Maryborough | D51: 51.04345501 | E51: 51.46696514 | F51: 51.89398915 | G51: 52.3245562 | H51: 52.75869569 | I51: 53.19643726 | J51: 53.63781078 | K51: 54.08284641 | L51: 54.53157452 | M51: 54.98402575 | N51: 55.44023099 | O51: 55.90022139 | P51: 56.36402836 | Q51: 56.83168355 | R51: 57.3032189 | S51: 57.77866661 | T51: 58.25805912 | U51: 58.74142919 | V51: 59.22880979 | W51: 59.72023422 | X51: 60.21573602
B52: Remainder | D52: 37.53025968 | E52: 37.87163641 | F52: 38.21611831 | G52: 38.56373364 | H52: 38.91451089 | I52: 39.26847883 | J52: 39.62566647 | K52: 39.9861031 | L52: 40.34981828 | M52: 40.71684183 | N52: 41.08720384 | O52: 41.46093468 | P52: 41.83806498 | Q52: 42.21862568 | R52: 42.60264797 | S52: 42.99016335 | T52: 43.38120358 | U52: 43.77580073 | V52: 44.17398715 | W52: 44.57579549 | X52: 44.98125869
A54: 0.04 | B54: Incremental Growth Opex
B55: Ballarat | D55: =D39*D47*$A$54 -> 31631.17777 | E55: =E39*E47*$A$54 -> 32580.1131 | F55: 33557.5165 | G55: 34564.24199 | H55: 35601.16925 | I55: 36669.20433 | J55: 37769.28046 | K55: 38902.35887 | L55: 40069.42964 | M55: 41271.51253 | N55: 42509.65791 | O55: 43784.94764 | P55: 45098.49607 | Q55: 46451.45095 | R55: 47844.99448 | S55: 49280.34432 | T55: 50758.75465 | U55: 52281.51729 | V55: 53849.9628 | W55: 55465.46169 | X55: 57129.42554
B56: Avoca | D56: =D40*D48*$A$54 -> 0 | E56: 0 | F56: 0 | G56: 0 | H56: 0 | I56: 0 | J56: 0 | K56: 0 | L56: 0 | M56: 0 | N56: 0 | O56: 0 | P56: 0 | Q56: 0 | R56: 0 | S56: 0 | T56: 0 | U56: 0 | V56: 0 | W56: 0 | X56: 0
B57: Beaufort | D57: 0 | E57: 0 | F57: 0 | G57: 0 | H57: 0 | I57: 0 | J57: 0 | K57: 0 | L57: 0 | M57: 0 | N57: 0 | O57: 0 | P57: 0 | Q57: 0 | R57: 0 | S57: 0 | T57: 0 | U57: 0 | V57: 0 | W57: 0 | X57: 0
B58: Daylesford | D58: 584.3155374 | E58: 601.8450035 | F58: 619.9003536 | G58: 638.4973643 | H58: 657.6522852 | I58: 677.3818537 | J58: 697.7033093 | K58: 718.6344086 | L58: 740.1934409 | M58: 762.3992441 | N58: 785.2712214 | O58: 808.8293581 | P58: 833.0942388 | Q58: 858.087066 | R58: 883.829678 | S58: 910.3445683 | T58: 937.6549054 | U58: 965.7845525 | V58: 994.7580891 | W58: 1024.600832 | X58: 1055.338857
B59: Maryborough | D59: 1041.143504 | E59: 1072.377809 | F59: 1104.549143 | G59: 1137.685618 | H59: 1171.816186 | I59: 1206.970672 | J59: 1243.179792 | K59: 1280.475186 | L59: 1318.889441 | M59: 1358.456125 | N59: 1399.209808 | O59: 1441.186103 | P59: 1484.421686 | Q59: 1528.954336 | R59: 1574.822966 | S59: 1622.067655 | T59: 1670.729685 | U59: 1720.851575 | V59: 1772.477123 | W59: 1825.651436 | X59: 1880.420979
B60: Remainder | D60: 764.9060485 | E60: 787.85323 | F60: 811.4888268 | G60: 835.8334917 | H60: 860.9084964 | I60: 886.7357513 | J60: 913.3378238 | K60: 940.7379586 | L60: 968.9600973 | M60: 998.0289002 | N60: 1027.969767 | O60: 1058.80886 | P60: 1090.573126 | Q60: 1123.29032 | R60: 1156.989029 | S60: 1191.6987 | T60: 1227.449661 | U60: 1264.273151 | V60: 1302.201346 | W60: 1341.267386 | X60: 1381.505408
B63: Incremental Growth Opex | C63: 1030778 | D63: =C63*D6 -> 556620.12 | E63: Water total
A64: =[7]Summary!$W$45 -> 0.02501886238 | B64: Ballarat | D64: =$D$63*D15 -> 459704.4154 | E64: =D64*(1+$A$64) -> 471205.6969 | F64: =E64*(1+$A$64) -> 482994.7274 | G64: 495078.706 | H64: 507465.0121 | I64: 520161.2094 | J64: 533175.0511 | K64: 546514.4843 | L64: 560187.655 | M64: 574202.9128 | N64: 588568.8165 | O64: 603294.1387 | P64: 618387.8717 | Q64: 633859.2328 | R64: 649717.6697 | S64: 665972.8667 | T64: 682634.7502 | U64: 699713.4951 | V64: 717219.5307 | W64: 735163.5474 | X64: 753556.5031
A65: 0 | B65: Avoca
A66: =[7]Summary!$W$47 -> 0.01224986871 | B66: Beaufort
A67: =[7]Summary!$W$49 -> 0.009509716572 | B67: Daylesford | D67: =$D$63*D18 -> 21987.1946 | E67: =D67*(1+$A$67) -> 22196.28659 | F67: =E67*(1+$A$67) -> 22407.36698 | G67: 22620.45469 | H67: 22835.5688 | I67: 23052.72859 | J67: 23271.95351 | K67: 23493.26319 | L67: 23716.67746 | M67: 23942.21634 | N67: 24169.90003 | O67: 24399.74893 | P67: 24631.78363 | Q67: 24866.02491 | R67: 25102.49376 | S67: 25341.21136 | T67: 25582.1991 | U67: 25825.47856 | V67: 26071.07154 | W67: 26319.00004 | X67: 26569.28627
A68: =[7]Summary!$W$55 -> 0.008297050555 | B68: Maryborough | D68: 44849.21126 | E68: =D68*(1+$A$68) -> 45221.32743 | F68: =E68*(1+$A$68) -> 45596.53107 | G68: 45974.8478 | H68: 46356.30343 | I68: 46740.92403 | J68: 47128.73584 | K68: 47519.76534 | L68: 47914.03924 | M68: 48311.58444 | N68: 48712.4281 | O68: 49116.59758 | P68: 49524.12047 | Q68: 49935.0246 | R68: 50349.33803 | S68: 50767.08903 | T68: 51188.30613 | U68: 51613.0181 | V68: 52041.25392 | W68: 52473.04283 | X68: 52908.41432
A69: 0.009473089118 | B69: Remainder | D69: 30079.29871 | E69: =D69*(1+$A$69) -> 30364.24259 | F69: =E69*(1+$A$69) -> 30651.88576 | G69: 30942.25381 | H69: 31235.37254 | I69: 31531.268 | J69: 31829.96652 | K69: 32131.49463 | L69: 32435.87914 | M69: 32743.14711 | N69: 33053.32586 | O69: 33366.44296 | P69: 33682.52625 | Q69: 34001.60382 | R69: 34323.70405 | S69: 34648.85555 | T69: 34977.08725 | U69: 35308.42832 | V69: 35642.9082 | W69: 35980.55665 | X69: 36321.40367

Sheet CHWdata_Capex
A1: PROJECT/PROGRAM NAME | B1: Sub Projects | C1: Product | D1: System | E1: Driver | F1: 2024 | G1: 2025 | H1: 2026 | I1: 2027 | J1: 2028 | K1: 2029 | L1: 2030 | M1: 2031 | N1: 2032 | O1: 2033 | P1: 2034 | Q1: 2035 | R1: 2036 | S1: 2037 | T1: 2038 | U1: 2039 | V1: 2040 | W1: 2041 | X1: 2042 | Y1: 2043 | Z1: TOTAL | AA1: Column1 | AB1: Year 1 | AC1: Year 2 | AD1: Year 3 | AE1: Year 4 | AF1: Year 5 | AG1: Year 6 | AH1: Year 7 | AI1: Year 8 | AJ1: Year 9 | AK1: Year 10 | AL1: Year 11 | AM1: Year 12 | AN1: Year 13 | AO1: Year 14 | AP1: Year 15 | AQ1: Year 16 | AR1: Year 17 | AS1: Year 18 | AT1: Year 19 | AU1: Year 20 | AV1: Total2
A2: Growth & Development - Upsizing & Efficiency Program | B2: Growth & Development - Upsizing & Efficiency Program | C2: ALL | D2: System Apportioned | E2: Growth | F2: 2800000 | G2: 2400000 | H2: 2400000 | I2: 2400000 | J2: 2400000 | K2: 2000000 | L2: 2000000 | M2: 2000000 | N2: 2000000 | O2: 2000000 | P2: 2000000 | Q2: 2000000 | R2: 2000000 | S2: 2000000 | T2: 2000000 | U2: 2000000 | V2: 2000000 | W2: 2000000 | X2: 2000000 | Y2: 2000000 | Z2: 42400000 | AA2: 1 | AB2: =F2*Table13[[#This Row],[Column1]] -> 2800000 | AC2: =G2*Table13[[#This Row],[Column1]] -> 2400000 | AD2: =H2*Table13[[#This Row],[Column1]] -> 2400000 | AE2: =I2*Table13[[#This Row],[Column1]] -> 2400000 | AF2: =J2*Table13[[#This Row],[Column1]] -> 2400000 | AG2: =K2*Table13[[#This Row],[Column1]] -> 2000000 | AH2: =L2*Table13[[#This Row],[Column1]] -> 2000000 | AI2: =M2*Table13[[#This Row],[Column1]] -> 2000000 | AJ2: =N2*Table13[[#This Row],[Column1]] -> 2000000 | AK2: =O2*Table13[[#This Row],[Column1]] -> 2000000 | AL2: =P2*Table13[[#This Row],[Column1]] -> 2000000 | AM2: =Q2*Table13[[#This Row],[Column1]] -> 2000000 | AN2: =R2*Table13[[#This Row],[Column1]] -> 2000000 | AO2: =S2*Table13[[#This Row],[Column1]] -> 2000000 | AP2: =T2*Table13[[#This Row],[Column1]] -> 2000000 | AQ2: =U2*Table13[[#This Row],[Column1]] -> 2000000 | AR2: =V2*Table13[[#This Row],[Column1]] -> 2000000 | AS2: =W2*Table13[[#This Row],[Column1]] -> 2000000 | AT2: =X2*Table13[[#This Row],[Column1]] -> 2000000 | AU2: =Y2*Table13[[#This Row],[Column1]] -> 2000000 | AV2: =SUM(Table13[[#This Row],[Year 1]:[Year 20]]) -> 42400000
A3: Land Acquisition - Strategic General | B3: Land Acquisition - Avoca Reuse | C3: Corporate | D3: Avoca | E3: Growth | I3: 1250000 | M3: 0 | R3: 0 | W3: 0 | Z3: 1250000 | AA3: =$O$76 -> 0.3654028738 | AB3: =F3*Table13[[#This Row],[Column1]] -> 0 | AC3: =G3*Table13[[#This Row],[Column1]] -> 0 | AD3: =H3*Table13[[#This Row],[Column1]] -> 0 | AE3: =I3*Table13[[#This Row],[Column1]] -> 456753.5922 | AF3: =J3*Table13[[#This Row],[Column1]] -> 0 | AG3: =K3*Table13[[#This Row],[Column1]] -> 0 | AH3: =L3*Table13[[#This Row],[Column1]] -> 0 | AI3: =M3*Table13[[#This Row],[Column1]] -> 0 | AJ3: =N3*Table13[[#This Row],[Column1]] -> 0 | AK3: =O3*Table13[[#This Row],[Column1]] -> 0 | AL3: =P3*Table13[[#This Row],[Column1]] -> 0 | AM3: =Q3*Table13[[#This Row],[Column1]] -> 0 | AN3: =R3*Table13[[#This Row],[Column1]] -> 0 | AO3: =S3*Table13[[#This Row],[Column1]] -> 0 | AP3: =T3*Table13[[#This Row],[Column1]] -> 0 | AQ3: =U3*Table13[[#This Row],[Column1]] -> 0 | AR3: =V3*Table13[[#This Row],[Column1]] -> 0 | AS3: =W3*Table13[[#This Row],[Column1]] -> 0 | AT3: =X3*Table13[[#This Row],[Column1]] -> 0 | AU3: =Y3*Table13[[#This Row],[Column1]] -> 0 | AV3: =SUM(Table13[[#This Row],[Year 1]:[Year 20]]) -> 456753.5922
A4: Land Acquisition - Strategic General | B4: Land Acquisition - Ballarat 3rd STP | C4: Corporate | D4: Ballarat | E4: Growth | M4: 1500000 | R4: 1500000 | W4: 7000000 | Z4: 10000000 | AA4: 1 | AB4: =F4*Table13[[#This Row],[Column1]] -> 0 | AC4: =G4*Table13[[#This Row],[Column1]] -> 0 | AD4: =H4*Table13[[#This Row],[Column1]] -> 0 | AE4: =I4*Table13[[#This Row],[Column1]] -> 0 | AF4: =J4*Table13[[#This Row],[Column1]] -> 0 | AG4: =K4*Table13[[#This Row],[Column1]] -> 0 | AH4: =L4*Table13[[#This Row],[Column1]] -> 0 | AI4: =M4*Table13[[#This Row],[Column1]] -> 1500000 | AJ4: =N4*Table13[[#This Row],[Column1]] -> 0 | AK4: =O4*Table13[[#This Row],[Column1]] -> 0 | AL4: =P4*Table13[[#This Row],[Column1]] -> 0 | AM4: =Q4*Table13[[#This Row],[Column1]] -> 0 | AN4: =R4*Table13[[#This Row],[Column1]] -> 1500000 | AO4: =S4*Table13[[#This Row],[Column1]] -> 0 | AP4: =T4*Table13[[#This Row],[Column1]] -> 0 | AQ4: =U4*Table13[[#This Row],[Column1]] -> 0 | AR4: =V4*Table13[[#This Row],[Column1]] -> 0 | AS4: =W4*Table13[[#This Row],[Column1]] -> 7000000 | AT4: =X4*Table13[[#This Row],[Column1]] -> 0 | AU4: =Y4*Table13[[#This Row],[Column1]] -> 0 | AV4: =SUM(Table13[[#This Row],[Year 1]:[Year 20]]) -> 10000000
A5: Land Acquisition - Strategic General | B5: Land Acquisition - Beaufort Reuse | C5: Corporate | D5: Beaufort | E5: Growth | I5: 1500000 | M5: 0 | R5: 0 | W5: 0 | Z5: 1500000 | AA5: =$O$76 -> 0.3654028738 | AB5: =F5*Table13[[#This Row],[Column1]] -> 0 | AC5: =G5*Table13[[#This Row],[Column1]] -> 0 | AD5: =H5*Table13[[#This Row],[Column1]] -> 0 | AE5: =I5*Table13[[#This Row],[Column1]] -> 548104.3107 | AF5: =J5*Table13[[#This Row],[Column1]] -> 0 | AG5: =K5*Table13[[#This Row],[Column1]] -> 0 | AH5: =L5*Table13[[#This Row],[Column1]] -> 0 | AI5: =M5*Table13[[#This Row],[Column1]] -> 0 | AJ5: =N5*Table13[[#This Row],[Column1]] -> 0 | AK5: =O5*Table13[[#This Row],[Column1]] -> 0 | AL5: =P5*Table13[[#This Row],[Column1]] -> 0 | AM5: =Q5*Table13[[#This Row],[Column1]] -> 0 | AN5: =R5*Table13[[#This Row],[Column1]] -> 0 | AO5: =S5*Table13[[#This Row],[Column1]] -> 0 | AP5: =T5*Table13[[#This Row],[Column1]] -> 0 | AQ5: =U5*Table13[[#This Row],[Column1]] -> 0 | AR5: =V5*Table13[[#This Row],[Column1]] -> 0 | AS5: =W5*Table13[[#This Row],[Column1]] -> 0 | AT5: =X5*Table13[[#This Row],[Column1]] -> 0 | AU5: =Y5*Table13[[#This Row],[Column1]] -> 0 | AV5: =SUM(Table13[[#This Row],[Year 1]:[Year 20]]) -> 548104.3107
A6: Land Acquisition - Strategic General | B6: Land Acquisition - Other | C6: Corporate | D6: System Apportioned | E6: Growth | M6: 0 | R6: 0 | W6: 0 | Z6: 0 | AA6: =$O$76 -> 0.3654028738 | AB6: =F6*Table13[[#This Row],[Column1]] -> 0 | AC6: =G6*Table13[[#This Row],[Column1]] -> 0 | AD6: =H6*Table13[[#This Row],[Column1]] -> 0 | AE6: =I6*Table13[[#This Row],[Column1]] -> 0 | AF6: =J6*Table13[[#This Row],[Column1]] -> 0 | AG6: =K6*Table13[[#This Row],[Column1]] -> 0 | AH6: =L6*Table13[[#This Row],[Column1]] -> 0 | AI6: =M6*Table13[[#This Row],[Column1]] -> 0 | AJ6: =N6*Table13[[#This Row],[Column1]] -> 0 | AK6: =O6*Table13[[#This Row],[Column1]] -> 0 | AL6: =P6*Table13[[#This Row],[Column1]] -> 0 | AM6: =Q6*Table13[[#This Row],[Column1]] -> 0 | AN6: =R6*Table13[[#This Row],[Column1]] -> 0 | AO6: =S6*Table13[[#This Row],[Column1]] -> 0 | AP6: =T6*Table13[[#This Row],[Column1]] -> 0 | AQ6: =U6*Table13[[#This Row],[Column1]] -> 0 | AR6: =V6*Table13[[#This Row],[Column1]] -> 0 | AS6: =W6*Table13[[#This Row],[Column1]] -> 0 | AT6: =X6*Table13[[#This Row],[Column1]] -> 0 | AU6: =Y6*Table13[[#This Row],[Column1]] -> 0 | AV6: =SUM(Table13[[#This Row],[Year 1]:[Year 20]]) -> 0
A7: Land Acquisition - Strategic General | B7: Land Acquisition - Future Works - PR28 & Beyond | C7: Corporate | D7: System Apportioned | E7: Growth | M7: 2000000 | R7: 2000000 | W7: 2000000 | Z7: 6000000 | AA7: 0.3654028738 | AB7: =F7*Table13[[#This Row],[Column1]] -> 0 | AC7: =G7*Table13[[#This Row],[Column1]] -> 0 | AD7: =H7*Table13[[#This Row],[Column1]] -> 0 | AE7: =I7*Table13[[#This Row],[Column1]] -> 0 | AF7: =J7*Table13[[#This Row],[Column1]] -> 0 | AG7: =K7*Table13[[#This Row],[Column1]] -> 0 | AH7: =L7*Table13[[#This Row],[Column1]] -> 0 | AI7: =M7*Table13[[#This Row],[Column1]] -> 730805.7476 | AJ7: =N7*Table13[[#This Row],[Column1]] -> 0 | AK7: =O7*Table13[[#This Row],[Column1]] -> 0 | AL7: =P7*Table13[[#This Row],[Column1]] -> 0 | AM7: =Q7*Table13[[#This Row],[Column1]] -> 0 | AN7: =R7*Table13[[#This Row],[Column1]] -> 730805.7476 | AO7: =S7*Table13[[#This Row],[Column1]] -> 0 | AP7: =T7*Table13[[#This Row],[Column1]] -> 0 | AQ7: =U7*Table13[[#This Row],[Column1]] -> 0 | AR7: =V7*Table13[[#This Row],[Column1]] -> 0 | AS7: =W7*Table13[[#This Row],[Column1]] -> 730805.7476 | AT7: =X7*Table13[[#This Row],[Column1]] -> 0 | AU7: =Y7*Table13[[#This Row],[Column1]] -> 0 | AV7: =SUM(Table13[[#This Row],[Year 1]:[Year 20]]) -> 2192417.243
A8: IWM - Integrated water management program | B8: IWM - Integrated water management program (Incl BN Class A Expansion) | C8: Recycled Water | D8: Ballarat | E8: Growth | F8: 2400000 | G8: 500000 | H8: 100000 | I8: 300000 | J8: 1200000 | M8: 8000000 | R8: 10000000 | W8: 10000000 | Z8: 32500000 | AA8: 0.3654028738 | AB8: =F8*Table13[[#This Row],[Column1]] -> 876966.8971 | AC8: =G8*Table13[[#This Row],[Column1]] -> 182701.4369 | AD8: =H8*Table13[[#This Row],[Column1]] -> 36540.28738 | AE8: =I8*Table13[[#This Row],[Column1]] -> 109620.8621 | AF8: =J8*Table13[[#This Row],[Column1]] -> 438483.4485 | AG8: =K8*Table13[[#This Row],[Column1]] -> 0 | AH8: =L8*Table13[[#This Row],[Column1]] -> 0 | AI8: =M8*Table13[[#This Row],[Column1]] -> 2923222.99 | AJ8: =N8*Table13[[#This Row],[Column1]] -> 0 | AK8: =O8*Table13[[#This Row],[Column1]] -> 0 | AL8: =P8*Table13[[#This Row],[Column1]] -> 0 | AM8: =Q8*Table13[[#This Row],[Column1]] -> 0 | AN8: =R8*Table13[[#This Row],[Column1]] -> 3654028.738 | AO8: =S8*Table13[[#This Row],[Column1]] -> 0 | AP8: =T8*Table13[[#This Row],[Column1]] -> 0 | AQ8: =U8*Table13[[#This Row],[Column1]] -> 0 | AR8: =V8*Table13[[#This Row],[Column1]] -> 0 | AS8: =W8*Table13[[#This Row],[Column1]] -> 3654028.738 | AT8: =X8*Table13[[#This Row],[Column1]] -> 0 | AU8: =Y8*Table13[[#This Row],[Column1]] -> 0 | AV8: =SUM(Table13[[#This Row],[Year 1]:[Year 20]]) -> 11875593.4
A9: Regional Recycled Water Scheme Upgrades | B9: Future Works - PR28 & Beyond | C9: Recycled Water | D9: System Apportioned | E9: Growth | M9: 5000000 | R9: 5000000 | W9: 5000000 | Z9: 15000000 | AA9: 0.3654028738 | AB9: =F9*Table13[[#This Row],[Column1]] -> 0 | AC9: =G9*Table13[[#This Row],[Column1]] -> 0 | AD9: =H9*Table13[[#This Row],[Column1]] -> 0 | AE9: =I9*Table13[[#This Row],[Column1]] -> 0 | AF9: =J9*Table13[[#This Row],[Column1]] -> 0 | AG9: =K9*Table13[[#This Row],[Column1]] -> 0 | AH9: =L9*Table13[[#This Row],[Column1]] -> 0 | AI9: =M9*Table13[[#This Row],[Column1]] -> 1827014.369 | AJ9: =N9*Table13[[#This Row],[Column1]] -> 0 | AK9: =O9*Table13[[#This Row],[Column1]] -> 0 | AL9: =P9*Table13[[#This Row],[Column1]] -> 0 | AM9: =Q9*Table13[[#This Row],[Column1]] -> 0 | AN9: =R9*Table13[[#This Row],[Column1]] -> 1827014.369 | AO9: =S9*Table13[[#This Row],[Column1]] -> 0 | AP9: =T9*Table13[[#This Row],[Column1]] -> 0 | AQ9: =U9*Table13[[#This Row],[Column1]] -> 0 | AR9: =V9*Table13[[#This Row],[Column1]] -> 0 | AS9: =W9*Table13[[#This Row],[Column1]] -> 1827014.369 | AT9: =X9*Table13[[#This Row],[Column1]] -> 0 | AU9: =Y9*Table13[[#This Row],[Column1]] -> 0 | AV9: =SUM(Table13[[#This Row],[Year 1]:[Year 20]]) -> 5481043.107
A10: Regional Recycled Water Scheme Upgrades | B10: Ballan WWTP Irrigation Upgrade | C10: Sewer | D10: Ballan | E10: Growth | H10: 200000 | I10: 3300000 | W10: 3000000 | Z10: 6500000 | AA10: 0.3654028738 | AB10: =F10*Table13[[#This Row],[Column1]] -> 0 | AC10: =G10*Table13[[#This Row],[Column1]] -> 0 | AD10: =H10*Table13[[#This Row],[Column1]] -> 73080.57476 | AE10: =I10*Table13[[#This Row],[Column1]] -> 1205829.484 | AF10: =J10*Table13[[#This Row],[Column1]] -> 0 | AG10: =K10*Table13[[#This Row],[Column1]] -> 0 | AH10: =L10*Table13[[#This Row],[Column1]] -> 0 | AI10: =M10*Table13[[#This Row],[Column1]] -> 0 | AJ10: =N10*Table13[[#This Row],[Column1]] -> 0 | AK10: =O10*Table13[[#This Row],[Column1]] -> 0 | AL10: =P10*Table13[[#This Row],[Column1]] -> 0 | AM10: =Q10*Table13[[#This Row],[Column1]] -> 0 | AN10: =R10*Table13[[#This Row],[Column1]] -> 0 | AO10: =S10*Table13[[#This Row],[Column1]] -> 0 | AP10: =T10*Table13[[#This Row],[Column1]] -> 0 | AQ10: =U10*Table13[[#This Row],[Column1]] -> 0 | AR10: =V10*Table13[[#This Row],[Column1]] -> 0 | AS10: =W10*Table13[[#This Row],[Column1]] -> 1096208.621 | AT10: =X10*Table13[[#This Row],[Column1]] -> 0 | AU10: =Y10*Table13[[#This Row],[Column1]] -> 0 | AV10: =SUM(Table13[[#This Row],[Year 1]:[Year 20]]) -> 2375118.68
A11: Regional Water Network Growth Project | B11: Sewer Network - Ballan Network Upgrades | C11: Sewer | D11: Ballan | E11: Growth | H11: 200000 | I11: 800000 | M11: 0 | R11: 0 | W11: 0 | Z11: 1000000 | AA11: 0.3654028738 | AB11: =F11*Table13[[#This Row],[Column1]] -> 0 | AC11: =G11*Table13[[#This Row],[Column1]] -> 0 | AD11: =H11*Table13[[#This Row],[Column1]] -> 73080.57476 | AE11: =I11*Table13[[#This Row],[Column1]] -> 292322.299 | AF11: =J11*Table13[[#This Row],[Column1]] -> 0 | AG11: =K11*Table13[[#This Row],[Column1]] -> 0 | AH11: =L11*Table13[[#This Row],[Column1]] -> 0 | AI11: =M11*Table13[[#This Row],[Column1]] -> 0 | AJ11: =N11*Table13[[#This Row],[Column1]] -> 0 | AK11: =O11*Table13[[#This Row],[Column1]] -> 0 | AL11: =P11*Table13[[#This Row],[Column1]] -> 0 | AM11: =Q11*Table13[[#This Row],[Column1]] -> 0 | AN11: =R11*Table13[[#This Row],[Column1]] -> 0 | AO11: =S11*Table13[[#This Row],[Column1]] -> 0 | AP11: =T11*Table13[[#This Row],[Column1]] -> 0 | AQ11: =U11*Table13[[#This Row],[Column1]] -> 0 | AR11: =V11*Table13[[#This Row],[Column1]] -> 0 | AS11: =W11*Table13[[#This Row],[Column1]] -> 0 | AT11: =X11*Table13[[#This Row],[Column1]] -> 0 | AU11: =Y11*Table13[[#This Row],[Column1]] -> 0 | AV11: =SUM(Table13[[#This Row],[Year 1]:[Year 20]]) -> 365402.8738
A12: Ballarat Sewer Build - Ballarat South Outfall Project | B12: Ballarat Sewer Flow Containment Project - B.South Outfall | C12: Sewer | D12: Ballarat | E12: Growth | F12: 11840000 | G12: 300000 | M12: 0 | R12: 0 | W12: 0 | Z12: 12140000 | AA12: 0.3654028738 | AB12: =F12*Table13[[#This Row],[Column1]] -> 4326370.026 | AC12: =G12*Table13[[#This Row],[Column1]] -> 109620.8621 | AD12: =H12*Table13[[#This Row],[Column1]] -> 0 | AE12: =I12*Table13[[#This Row],[Column1]] -> 0 | AF12: =J12*Table13[[#This Row],[Column1]] -> 0 | AG12: =K12*Table13[[#This Row],[Column1]] -> 0 | AH12: =L12*Table13[[#This Row],[Column1]] -> 0 | AI12: =M12*Table13[[#This Row],[Column1]] -> 0 | AJ12: =N12*Table13[[#This Row],[Column1]] -> 0 | AK12: =O12*Table13[[#This Row],[Column1]] -> 0 | AL12: =P12*Table13[[#This Row],[Column1]] -> 0 | AM12: =Q12*Table13[[#This Row],[Column1]] -> 0 | AN12: =R12*Table13[[#This Row],[Column1]] -> 0 | AO12: =S12*Table13[[#This Row],[Column1]] -> 0 | AP12: =T12*Table13[[#This Row],[Column1]] -> 0 | AQ12: =U12*Table13[[#This Row],[Column1]] -> 0 | AR12: =V12*Table13[[#This Row],[Column1]] -> 0 | AS12: =W12*Table13[[#This Row],[Column1]] -> 0 | AT12: =X12*Table13[[#This Row],[Column1]] -> 0 | AU12: =Y12*Table13[[#This Row],[Column1]] -> 0 | AV12: =SUM(Table13[[#This Row],[Year 1]:[Year 20]]) -> 4435990.888
A13: Ballarat Sewer Growth Project - Ballarat West UGZ southern section | B13: Sewer Network - Sewer Main - Gravity Augmentation - Winter Ck Trunk Sewer Pt 1 | C13: Sewer | D13: Ballarat | E13: Growth | F13: 0 | H13: 300000 | I13: 4200000 | J13: 7800000 | K13: 1300000 | M13: 0 | R13: 0 | W13: 0 | Z13: 13600000 | AA13: 1 | AB13: =F13*Table13[[#This Row],[Column1]] -> 0 | AC13: =G13*Table13[[#This Row],[Column1]] -> 0 | AD13: =H13*Table13[[#This Row],[Column1]] -> 300000 | AE13: =I13*Table13[[#This Row],[Column1]] -> 4200000 | AF13: =J13*Table13[[#This Row],[Column1]] -> 7800000 | AG13: =K13*Table13[[#This Row],[Column1]] -> 1300000 | AH13: =L13*Table13[[#This Row],[Column1]] -> 0 | AI13: =M13*Table13[[#This Row],[Column1]] -> 0 | AJ13: =N13*Table13[[#This Row],[Column1]] -> 0 | AK13: =O13*Table13[[#This Row],[Column1]] -> 0 | AL13: =P13*Table13[[#This Row],[Column1]] -> 0 | AM13: =Q13*Table13[[#This Row],[Column1]] -> 0 | AN13: =R13*Table13[[#This Row],[Column1]] -> 0 | AO13: =S13*Table13[[#This Row],[Column1]] -> 0 | AP13: =T13*Table13[[#This Row],[Column1]] -> 0 | AQ13: =U13*Table13[[#This Row],[Column1]] -> 0 | AR13: =V13*Table13[[#This Row],[Column1]] -> 0 | AS13: =W13*Table13[[#This Row],[Column1]] -> 0 | AT13: =X13*Table13[[#This Row],[Column1]] -> 0 | AU13: =Y13*Table13[[#This Row],[Column1]] -> 0 | AV13: =SUM(Table13[[#This Row],[Year 1]:[Year 20]]) -> 13600000
A14: Ballarat Sewer Growth Project - Ballarat West UGZ southern section | B14: Sewer Network - Sewer Pumping Station - Winter Creek SPS | C14: Sewer | D14: Ballarat | E14: Growth | F14: 0 | G14: 300000 | H14: 2700000 | I14: 2000000 | M14: 14800000 | R14: 0 | W14: 0 | Z14: 19800000 | AA14: 1 | AB14: =F14*Table13[[#This Row],[Column1]] -> 0 | AC14: =G14*Table13[[#This Row],[Column1]] -> 300000 | AD14: =H14*Table13[[#This Row],[Column1]] -> 2700000 | AE14: =I14*Table13[[#This Row],[Column1]] -> 2000000 | AF14: =J14*Table13[[#This Row],[Column1]] -> 0 | AG14: =K14*Table13[[#This Row],[Column1]] -> 0 | AH14: =L14*Table13[[#This Row],[Column1]] -> 0 | AI14: =M14*Table13[[#This Row],[Column1]] -> 14800000 | AJ14: =N14*Table13[[#This Row],[Column1]] -> 0 | AK14: =O14*Table13[[#This Row],[Column1]] -> 0 | AL14: =P14*Table13[[#This Row],[Column1]] -> 0 | AM14: =Q14*Table13[[#This Row],[Column1]] -> 0 | AN14: =R14*Table13[[#This Row],[Column1]] -> 0 | AO14: =S14*Table13[[#This Row],[Column1]] -> 0 | AP14: =T14*Table13[[#This Row],[Column1]] -> 0 | AQ14: =U14*Table13[[#This Row],[Column1]] -> 0 | AR14: =V14*Table13[[#This Row],[Column1]] -> 0 | AS14: =W14*Table13[[#This Row],[Column1]] -> 0 | AT14: =X14*Table13[[#This Row],[Column1]] -> 0 | AU14: =Y14*Table13[[#This Row],[Column1]] -> 0 | AV14: =SUM(Table13[[#This Row],[Year 1]:[Year 20]]) -> 19800000
A15: Ballarat Sewer Growth Project - Future Growth Areas | B15: Future Works - Future Growth Areas - Sewer Network | C15: Sewer | D15: Ballarat | E15: Growth | M15: 0 | R15: 10000000 | W15: 15000000 | Z15: 25000000 | AA15: 1 | AB15: =F15*Table13[[#This Row],[Column1]] -> 0 | AC15: =G15*Table13[[#This Row],[Column1]] -> 0 | AD15: =H15*Table13[[#This Row],[Column1]] -> 0 | AE15: =I15*Table13[[#This Row],[Column1]] -> 0 | AF15: =J15*Table13[[#This Row],[Column1]] -> 0 | AG15: =K15*Table13[[#This Row],[Column1]] -> 0 | AH15: =L15*Table13[[#This Row],[Column1]] -> 0 | AI15: =M15*Table13[[#This Row],[Column1]] -> 0 | AJ15: =N15*Table13[[#This Row],[Column1]] -> 0 | AK15: =O15*Table13[[#This Row],[Column1]] -> 0 | AL15: =P15*Table13[[#This Row],[Column1]] -> 0 | AM15: =Q15*Table13[[#This Row],[Column1]] -> 0 | AN15: =R15*Table13[[#This Row],[Column1]] -> 10000000 | AO15: =S15*Table13[[#This Row],[Column1]] -> 0 | AP15: =T15*Table13[[#This Row],[Column1]] -> 0 | AQ15: =U15*Table13[[#This Row],[Column1]] -> 0 | AR15: =V15*Table13[[#This Row],[Column1]] -> 0 | AS15: =W15*Table13[[#This Row],[Column1]] -> 15000000 | AT15: =X15*Table13[[#This Row],[Column1]] -> 0 | AU15: =Y15*Table13[[#This Row],[Column1]] -> 0 | AV15: =SUM(Table13[[#This Row],[Year 1]:[Year 20]]) -> 25000000
A16: Ballarat Sewer Growth Project - Northern growth area | B16: Sewer Network - Network Improvements - Miners Rest Network | C16: Sewer | D16: Ballarat | E16: Growth | H16: 200000 | I16: 3830000 | M16: 0 | R16: 0 | W16: 0 | Z16: 4030000 | AA16: =$O$76 -> 0.3654028738 | AB16: =F16*Table13[[#This Row],[Column1]] -> 0 | AC16: =G16*Table13[[#This Row],[Column1]] -> 0 | AD16: =H16*Table13[[#This Row],[Column1]] -> 73080.57476 | AE16: =I16*Table13[[#This Row],[Column1]] -> 1399493.007 | AF16: =J16*Table13[[#This Row],[Column1]] -> 0 | AG16: =K16*Table13[[#This Row],[Column1]] -> 0 | AH16: =L16*Table13[[#This Row],[Column1]] -> 0 | AI16: =M16*Table13[[#This Row],[Column1]] -> 0 | AJ16: =N16*Table13[[#This Row],[Column1]] -> 0 | AK16: =O16*Table13[[#This Row],[Column1]] -> 0 | AL16: =P16*Table13[[#This Row],[Column1]] -> 0 | AM16: =Q16*Table13[[#This Row],[Column1]] -> 0 | AN16: =R16*Table13[[#This Row],[Column1]] -> 0 | AO16: =S16*Table13[[#This Row],[Column1]] -> 0 | AP16: =T16*Table13[[#This Row],[Column1]] -> 0 | AQ16: =U16*Table13[[#This Row],[Column1]] -> 0 | AR16: =V16*Table13[[#This Row],[Column1]] -> 0 | AS16: =W16*Table13[[#This Row],[Column1]] -> 0 | AT16: =X16*Table13[[#This Row],[Column1]] -> 0 | AU16: =Y16*Table13[[#This Row],[Column1]] -> 0 | AV16: =SUM(Table13[[#This Row],[Year 1]:[Year 20]]) -> 1472573.581
A17: Ballarat Sewer Growth Project - Northern growth area | B17: Sewer Network - Gravity Upgrades - Cummins Rd SPS Upgrades | C17: Sewer | D17: Ballarat | E17: Growth | I17: 200000 | J17: 2000000 | M17: 0 | R17: 0 | W17: 0 | Z17: 2200000 | AA17: 0.3654028738 | AB17: =F17*Table13[[#This Row],[Column1]] -> 0 | AC17: =G17*Table13[[#This Row],[Column1]] -> 0 | AD17: =H17*Table13[[#This Row],[Column1]] -> 0 | AE17: =I17*Table13[[#This Row],[Column1]] -> 73080.57476 | AF17: =J17*Table13[[#This Row],[Column1]] -> 730805.7476 | AG17: =K17*Table13[[#This Row],[Column1]] -> 0 | AH17: =L17*Table13[[#This Row],[Column1]] -> 0 | AI17: =M17*Table13[[#This Row],[Column1]] -> 0 | AJ17: =N17*Table13[[#This Row],[Column1]] -> 0 | AK17: =O17*Table13[[#This Row],[Column1]] -> 0 | AL17: =P17*Table13[[#This Row],[Column1]] -> 0 | AM17: =Q17*Table13[[#This Row],[Column1]] -> 0 | AN17: =R17*Table13[[#This Row],[Column1]] -> 0 | AO17: =S17*Table13[[#This Row],[Column1]] -> 0 | AP17: =T17*Table13[[#This Row],[Column1]] -> 0 | AQ17: =U17*Table13[[#This Row],[Column1]] -> 0 | AR17: =V17*Table13[[#This Row],[Column1]] -> 0 | AS17: =W17*Table13[[#This Row],[Column1]] -> 0 | AT17: =X17*Table13[[#This Row],[Column1]] -> 0 | AU17: =Y17*Table13[[#This Row],[Column1]] -> 0 | AV17: =SUM(Table13[[#This Row],[Year 1]:[Year 20]]) -> 803886.3223
A18: Growth & Development - Future GIA sewer growth projects | B18: Sewer Network - Brewery Tap Rd Precinct Design & Construct | C18: Sewer | D18: Ballarat | E18: Growth | J18: 100000 | K18: 1000000 | L18: 2875000 | M18: 0 | R18: 0 | W18: 0 | Z18: 3975000 | AA18: 1 | AB18: =F18*Table13[[#This Row],[Column1]] -> 0 | AC18: =G18*Table13[[#This Row],[Column1]] -> 0 | AD18: =H18*Table13[[#This Row],[Column1]] -> 0 | AE18: =I18*Table13[[#This Row],[Column1]] -> 0 | AF18: =J18*Table13[[#This Row],[Column1]] -> 100000 | AG18: =K18*Table13[[#This Row],[Column1]] -> 1000000 | AH18: =L18*Table13[[#This Row],[Column1]] -> 2875000 | AI18: =M18*Table13[[#This Row],[Column1]] -> 0 | AJ18: =N18*Table13[[#This Row],[Column1]] -> 0 | AK18: =O18*Table13[[#This Row],[Column1]] -> 0 | AL18: =P18*Table13[[#This Row],[Column1]] -> 0 | AM18: =Q18*Table13[[#This Row],[Column1]] -> 0 | AN18: =R18*Table13[[#This Row],[Column1]] -> 0 | AO18: =S18*Table13[[#This Row],[Column1]] -> 0 | AP18: =T18*Table13[[#This Row],[Column1]] -> 0 | AQ18: =U18*Table13[[#This Row],[Column1]] -> 0 | AR18: =V18*Table13[[#This Row],[Column1]] -> 0 | AS18: =W18*Table13[[#This Row],[Column1]] -> 0 | AT18: =X18*Table13[[#This Row],[Column1]] -> 0 | AU18: =Y18*Table13[[#This Row],[Column1]] -> 0 | AV18: =SUM(Table13[[#This Row],[Year 1]:[Year 20]]) -> 3975000
A19: Growth & Development - Northern GIA sewer growth project | B19: Sewer Network - Sewer Main - SPS Rationalisation Program | C19: Sewer | D19: Ballarat | E19: Growth | I19: 100000 | J19: 440000 | K19: 1430000 | L19: 1000000 | M19: 0 | R19: 0 | W19: 0 | Z19: 2970000 | AA19: 0.3654028738 | AB19: =F19*Table13[[#This Row],[Column1]] -> 0 | AC19: =G19*Table13[[#This Row],[Column1]] -> 0 | AD19: =H19*Table13[[#This Row],[Column1]] -> 0 | AE19: =I19*Table13[[#This Row],[Column1]] -> 36540.28738 | AF19: =J19*Table13[[#This Row],[Column1]] -> 160777.2645 | AG19: =K19*Table13[[#This Row],[Column1]] -> 522526.1095 | AH19: =L19*Table13[[#This Row],[Column1]] -> 365402.8738 | AI19: =M19*Table13[[#This Row],[Column1]] -> 0 | AJ19: =N19*Table13[[#This Row],[Column1]] -> 0 | AK19: =O19*Table13[[#This Row],[Column1]] -> 0 | AL19: =P19*Table13[[#This Row],[Column1]] -> 0 | AM19: =Q19*Table13[[#This Row],[Column1]] -> 0 | AN19: =R19*Table13[[#This Row],[Column1]] -> 0 | AO19: =S19*Table13[[#This Row],[Column1]] -> 0 | AP19: =T19*Table13[[#This Row],[Column1]] -> 0 | AQ19: =U19*Table13[[#This Row],[Column1]] -> 0 | AR19: =V19*Table13[[#This Row],[Column1]] -> 0 | AS19: =W19*Table13[[#This Row],[Column1]] -> 0 | AT19: =X19*Table13[[#This Row],[Column1]] -> 0 | AU19: =Y19*Table13[[#This Row],[Column1]] -> 0 | AV19: =SUM(Table13[[#This Row],[Year 1]:[Year 20]]) -> 1085246.535
A20: Growth & Development - Northern GIA sewer growth project | B20: Sewer Network - Sewer Main - Gravity Augmentation - Winter Ck Trunk Sewer Pt 3 | C20: Sewer | D20: Ballarat | E20: Growth | J20: 250000 | M20: 0 | R20: 14250000 | W20: 0 | Z20: 14500000 | AA20: 1 | AB20: =F20*Table13[[#This Row],[Column1]] -> 0 | AC20: =G20*Table13[[#This Row],[Column1]] -> 0 | AD20: =H20*Table13[[#This Row],[Column1]] -> 0 | AE20: =I20*Table13[[#This Row],[Column1]] -> 0 | AF20: =J20*Table13[[#This Row],[Column1]] -> 250000 | AG20: =K20*Table13[[#This Row],[Column1]] -> 0 | AH20: =L20*Table13[[#This Row],[Column1]] -> 0 | AI20: =M20*Table13[[#This Row],[Column1]] -> 0 | AJ20: =N20*Table13[[#This Row],[Column1]] -> 0 | AK20: =O20*Table13[[#This Row],[Column1]] -> 0 | AL20: =P20*Table13[[#This Row],[Column1]] -> 0 | AM20: =Q20*Table13[[#This Row],[Column1]] -> 0 | AN20: =R20*Table13[[#This Row],[Column1]] -> 14250000 | AO20: =S20*Table13[[#This Row],[Column1]] -> 0 | AP20: =T20*Table13[[#This Row],[Column1]] -> 0 | AQ20: =U20*Table13[[#This Row],[Column1]] -> 0 | AR20: =V20*Table13[[#This Row],[Column1]] -> 0 | AS20: =W20*Table13[[#This Row],[Column1]] -> 0 | AT20: =X20*Table13[[#This Row],[Column1]] -> 0 | AU20: =Y20*Table13[[#This Row],[Column1]] -> 0 | AV20: =SUM(Table13[[#This Row],[Year 1]:[Year 20]]) -> 14500000
A21: Growth & Development - Regional sewer systems growth projects | B21: Sewer Network - Sewer Main - North West GA SPS Scheme | C21: Sewer | D21: Ballarat | E21: Growth | F21: 0 | J21: 80000 | K21: 100000 | L21: 3000000 | M21: 3000000 | Z21: 6180000 | AA21: 1 | AB21: =F21*Table13[[#This Row],[Column1]] -> 0 | AC21: =G21*Table13[[#This Row],[Column1]] -> 0 | AD21: =H21*Table13[[#This Row],[Column1]] -> 0 | AE21: =I21*Table13[[#This Row],[Column1]] -> 0 | AF21: =J21*Table13[[#This Row],[Column1]] -> 80000 | AG21: =K21*Table13[[#This Row],[Column1]] -> 100000 | AH21: =L21*Table13[[#This Row],[Column1]] -> 3000000 | AI21: =M21*Table13[[#This Row],[Column1]] -> 3000000 | AJ21: =N21*Table13[[#This Row],[Column1]] -> 0 | AK21: =O21*Table13[[#This Row],[Column1]] -> 0 | AL21: =P21*Table13[[#This Row],[Column1]] -> 0 | AM21: =Q21*Table13[[#This Row],[Column1]] -> 0 | AN21: =R21*Table13[[#This Row],[Column1]] -> 0 | AO21: =S21*Table13[[#This Row],[Column1]] -> 0 | AP21: =T21*Table13[[#This Row],[Column1]] -> 0 | AQ21: =U21*Table13[[#This Row],[Column1]] -> 0 | AR21: =V21*Table13[[#This Row],[Column1]] -> 0 | AS21: =W21*Table13[[#This Row],[Column1]] -> 0 | AT21: =X21*Table13[[#This Row],[Column1]] -> 0 | AU21: =Y21*Table13[[#This Row],[Column1]] -> 0 | AV21: =SUM(Table13[[#This Row],[Year 1]:[Year 20]]) -> 6180000
A22: Growth & Development - Western and North-Western GIA sewer growth projects | B22: Sewer Network - Sewer Main - Gravity Augmentation - Winter Ck Trunk Sewer Pt 2 | C22: Sewer | D22: Ballarat | E22: Growth | F22: 0 | I22: 250000 | K22: 2150000 | L22: 2150000 | M22: 2150000 | N22: 2150000 | O22: 2150000 | Z22: 11000000 | AA22: 1 | AB22: =F22*Table13[[#This Row],[Column1]] -> 0 | AC22: =G22*Table13[[#This Row],[Column1]] -> 0 | AD22: =H22*Table13[[#This Row],[Column1]] -> 0 | AE22: =I22*Table13[[#This Row],[Column1]] -> 250000 | AF22: =J22*Table13[[#This Row],[Column1]] -> 0 | AG22: =K22*Table13[[#This Row],[Column1]] -> 2150000 | AH22: =L22*Table13[[#This Row],[Column1]] -> 2150000 | AI22: =M22*Table13[[#This Row],[Column1]] -> 2150000 | AJ22: =N22*Table13[[#This Row],[Column1]] -> 2150000 | AK22: =O22*Table13[[#This Row],[Column1]] -> 2150000 | AL22: =P22*Table13[[#This Row],[Column1]] -> 0 | AM22: =Q22*Table13[[#This Row],[Column1]] -> 0 | AN22: =R22*Table13[[#This Row],[Column1]] -> 0 | AO22: =S22*Table13[[#This Row],[Column1]] -> 0 | AP22: =T22*Table13[[#This Row],[Column1]] -> 0 | AQ22: =U22*Table13[[#This Row],[Column1]] -> 0 | AR22: =V22*Table13[[#This Row],[Column1]] -> 0 | AS22: =W22*Table13[[#This Row],[Column1]] -> 0 | AT22: =X22*Table13[[#This Row],[Column1]] -> 0 | AU22: =Y22*Table13[[#This Row],[Column1]] -> 0 | AV22: =SUM(Table13[[#This Row],[Year 1]:[Year 20]]) -> 11000000
A23: Ballarat Sewer Build - Ballarat East Trunk Sewer | B23: Sewer Network - Ballarat East trunk sewer | C23: Sewer | D23: Ballarat | E23: Growth | F23: 200000 | G23: 7000000 | H23: 6300000 | I23: 1000000 | Z23: 14500000 | AA23: =$O$76 -> 0.3654028738 | AB23: =F23*Table13[[#This Row],[Column1]] -> 73080.57476 | AC23: =G23*Table13[[#This Row],[Column1]] -> 2557820.117 | AD23: =H23*Table13[[#This Row],[Column1]] -> 2302038.105 | AE23: =I23*Table13[[#This Row],[Column1]] -> 365402.8738 | AF23: =J23*Table13[[#This Row],[Column1]] -> 0 | AG23: =K23*Table13[[#This Row],[Column1]] -> 0 | AH23: =L23*Table13[[#This Row],[Column1]] -> 0 | AI23: =M23*Table13[[#This Row],[Column1]] -> 0 | AJ23: =N23*Table13[[#This Row],[Column1]] -> 0 | AK23: =O23*Table13[[#This Row],[Column1]] -> 0 | AL23: =P23*Table13[[#This Row],[Column1]] -> 0 | AM23: =Q23*Table13[[#This Row],[Column1]] -> 0 | AN23: =R23*Table13[[#This Row],[Column1]] -> 0 | AO23: =S23*Table13[[#This Row],[Column1]] -> 0 | AP23: =T23*Table13[[#This Row],[Column1]] -> 0 | AQ23: =U23*Table13[[#This Row],[Column1]] -> 0 | AR23: =V23*Table13[[#This Row],[Column1]] -> 0 | AS23: =W23*Table13[[#This Row],[Column1]] -> 0 | AT23: =X23*Table13[[#This Row],[Column1]] -> 0 | AU23: =Y23*Table13[[#This Row],[Column1]] -> 0 | AV23: =SUM(Table13[[#This Row],[Year 1]:[Year 20]]) -> 5298341.67
A24: Growth & Development - Western and North-Western GIA sewer growth projects | B24: Sewer Network - Ballarat North Trunk Sewer Augmentation | C24: Sewer | D24: Ballarat | E24: Growth | M24: 0 | R24: 0 | W24: 0 | Z24: 0 | AA24: 1 | AB24: =F24*Table13[[#This Row],[Column1]] -> 0 | AC24: =G24*Table13[[#This Row],[Column1]] -> 0 | AD24: =H24*Table13[[#This Row],[Column1]] -> 0 | AE24: =I24*Table13[[#This Row],[Column1]] -> 0 | AF24: =J24*Table13[[#This Row],[Column1]] -> 0 | AG24: =K24*Table13[[#This Row],[Column1]] -> 0 | AH24: =L24*Table13[[#This Row],[Column1]] -> 0 | AI24: =M24*Table13[[#This Row],[Column1]] -> 0 | AJ24: =N24*Table13[[#This Row],[Column1]] -> 0 | AK24: =O24*Table13[[#This Row],[Column1]] -> 0 | AL24: =P24*Table13[[#This Row],[Column1]] -> 0 | AM24: =Q24*Table13[[#This Row],[Column1]] -> 0 | AN24: =R24*Table13[[#This Row],[Column1]] -> 0 | AO24: =S24*Table13[[#This Row],[Column1]] -> 0 | AP24: =T24*Table13[[#This Row],[Column1]] -> 0 | AQ24: =U24*Table13[[#This Row],[Column1]] -> 0 | AR24: =V24*Table13[[#This Row],[Column1]] -> 0 | AS24: =W24*Table13[[#This Row],[Column1]] -> 0 | AT24: =X24*Table13[[#This Row],[Column1]] -> 0 | AU24: =Y24*Table13[[#This Row],[Column1]] -> 0 | AV24: =SUM(Table13[[#This Row],[Year 1]:[Year 20]]) -> 0
A25: Sewer Network - Sewer Main - Gravity Augmentation - Specimen Vale Upgrade | B25: Sewer Network - Sewer Main - Gravity Augmentation - Specimen Vale Upgrade | C25: Sewer | D25: Ballarat | E25: Growth | K25: 3500000 | L25: 3500000 | Z25: 7000000 | AA25: =$O$76 -> 0.3654028738 | AB25: =F25*Table13[[#This Row],[Column1]] -> 0 | AC25: =G25*Table13[[#This Row],[Column1]] -> 0 | AD25: =H25*Table13[[#This Row],[Column1]] -> 0 | AE25: =I25*Table13[[#This Row],[Column1]] -> 0 | AF25: =J25*Table13[[#This Row],[Column1]] -> 0 | AG25: =K25*Table13[[#This Row],[Column1]] -> 1278910.058 | AH25: =L25*Table13[[#This Row],[Column1]] -> 1278910.058 | AI25: =M25*Table13[[#This Row],[Column1]] -> 0 | AJ25: =N25*Table13[[#This Row],[Column1]] -> 0 | AK25: =O25*Table13[[#This Row],[Column1]] -> 0 | AL25: =P25*Table13[[#This Row],[Column1]] -> 0 | AM25: =Q25*Table13[[#This Row],[Column1]] -> 0 | AN25: =R25*Table13[[#This Row],[Column1]] -> 0 | AO25: =S25*Table13[[#This Row],[Column1]] -> 0 | AP25: =T25*Table13[[#This Row],[Column1]] -> 0 | AQ25: =U25*Table13[[#This Row],[Column1]] -> 0 | AR25: =V25*Table13[[#This Row],[Column1]] -> 0 | AS25: =W25*Table13[[#This Row],[Column1]] -> 0 | AT25: =X25*Table13[[#This Row],[Column1]] -> 0 | AU25: =Y25*Table13[[#This Row],[Column1]] -> 0 | AV25: =SUM(Table13[[#This Row],[Year 1]:[Year 20]]) -> 2557820.117
A26: Sewer Network - Ballarat East trunk sewer (Stage 2) | B26: Burrumbeet Pump Station | C26: Sewer | D26: Ballarat | E26: Growth | F26: 0 | H26: 200000 | I26: 800000 | J26: 3160000 | Z26: 4160000 | AA26: 0.3654028738 | AB26: =F26*Table13[[#This Row],[Column1]] -> 0 | AC26: =G26*Table13[[#This Row],[Column1]] -> 0 | AD26: =H26*Table13[[#This Row],[Column1]] -> 73080.57476 | AE26: =I26*Table13[[#This Row],[Column1]] -> 292322.299 | AF26: =J26*Table13[[#This Row],[Column1]] -> 1154673.081 | AG26: =K26*Table13[[#This Row],[Column1]] -> 0 | AH26: =L26*Table13[[#This Row],[Column1]] -> 0 | AI26: =M26*Table13[[#This Row],[Column1]] -> 0 | AJ26: =N26*Table13[[#This Row],[Column1]] -> 0 | AK26: =O26*Table13[[#This Row],[Column1]] -> 0 | AL26: =P26*Table13[[#This Row],[Column1]] -> 0 | AM26: =Q26*Table13[[#This Row],[Column1]] -> 0 | AN26: =R26*Table13[[#This Row],[Column1]] -> 0 | AO26: =S26*Table13[[#This Row],[Column1]] -> 0 | AP26: =T26*Table13[[#This Row],[Column1]] -> 0 | AQ26: =U26*Table13[[#This Row],[Column1]] -> 0 | AR26: =V26*Table13[[#This Row],[Column1]] -> 0 | AS26: =W26*Table13[[#This Row],[Column1]] -> 0 | AT26: =X26*Table13[[#This Row],[Column1]] -> 0 | AU26: =Y26*Table13[[#This Row],[Column1]] -> 0 | AV26: =SUM(Table13[[#This Row],[Year 1]:[Year 20]]) -> 1520075.955
A27: Sewer Network - Ballarat North Trunk Sewer Augmentation | B27: Class A expansion to 5ML/d capacity | C27: Sewer | D27: Ballarat | E27: Growth | M27: 0 | R27: 0 | W27: 0 | Z27: 0 | AA27: 0.3654028738 | AB27: =F27*Table13[[#This Row],[Column1]] -> 0 | AC27: =G27*Table13[[#This Row],[Column1]] -> 0 | AD27: =H27*Table13[[#This Row],[Column1]] -> 0 | AE27: =I27*Table13[[#This Row],[Column1]] -> 0 | AF27: =J27*Table13[[#This Row],[Column1]] -> 0 | AG27: =K27*Table13[[#This Row],[Column1]] -> 0 | AH27: =L27*Table13[[#This Row],[Column1]] -> 0 | AI27: =M27*Table13[[#This Row],[Column1]] -> 0 | AJ27: =N27*Table13[[#This Row],[Column1]] -> 0 | AK27: =O27*Table13[[#This Row],[Column1]] -> 0 | AL27: =P27*Table13[[#This Row],[Column1]] -> 0 | AM27: =Q27*Table13[[#This Row],[Column1]] -> 0 | AN27: =R27*Table13[[#This Row],[Column1]] -> 0 | AO27: =S27*Table13[[#This Row],[Column1]] -> 0 | AP27: =T27*Table13[[#This Row],[Column1]] -> 0 | AQ27: =U27*Table13[[#This Row],[Column1]] -> 0 | AR27: =V27*Table13[[#This Row],[Column1]] -> 0 | AS27: =W27*Table13[[#This Row],[Column1]] -> 0 | AT27: =X27*Table13[[#This Row],[Column1]] -> 0 | AU27: =Y27*Table13[[#This Row],[Column1]] -> 0 | AV27: =SUM(Table13[[#This Row],[Year 1]:[Year 20]]) -> 0
A28: STP - Ballarat South - Upgrade program | B28: Future Works - PR28 & Beyond | C28: Sewer | D28: Ballarat | E28: Growth | M28: 5000000 | R28: 22000000 | W28: 2000000 | Z28: 29000000 | AA28: 0.3654028738 | AB28: =F28*Table13[[#This Row],[Column1]] -> 0 | AC28: =G28*Table13[[#This Row],[Column1]] -> 0 | AD28: =H28*Table13[[#This Row],[Column1]] -> 0 | AE28: =I28*Table13[[#This Row],[Column1]] -> 0 | AF28: =J28*Table13[[#This Row],[Column1]] -> 0 | AG28: =K28*Table13[[#This Row],[Column1]] -> 0 | AH28: =L28*Table13[[#This Row],[Column1]] -> 0 | AI28: =M28*Table13[[#This Row],[Column1]] -> 1827014.369 | AJ28: =N28*Table13[[#This Row],[Column1]] -> 0 | AK28: =O28*Table13[[#This Row],[Column1]] -> 0 | AL28: =P28*Table13[[#This Row],[Column1]] -> 0 | AM28: =Q28*Table13[[#This Row],[Column1]] -> 0 | AN28: =R28*Table13[[#This Row],[Column1]] -> 8038863.223 | AO28: =S28*Table13[[#This Row],[Column1]] -> 0 | AP28: =T28*Table13[[#This Row],[Column1]] -> 0 | AQ28: =U28*Table13[[#This Row],[Column1]] -> 0 | AR28: =V28*Table13[[#This Row],[Column1]] -> 0 | AS28: =W28*Table13[[#This Row],[Column1]] -> 730805.7476 | AT28: =X28*Table13[[#This Row],[Column1]] -> 0 | AU28: =Y28*Table13[[#This Row],[Column1]] -> 0 | AV28: =SUM(Table13[[#This Row],[Year 1]:[Year 20]]) -> 10596683.34
A29: STP - Ballarat North Upgrades | B29: Future Works - PR28 & Beyond | C29: Sewer | D29: Ballarat | E29: Growth | M29: 11500000 | R29: 26000000 | W29: 26000000 | Z29: 63500000 | AA29: 0.3654028738 | AB29: =F29*Table13[[#This Row],[Column1]] -> 0 | AC29: =G29*Table13[[#This Row],[Column1]] -> 0 | AD29: =H29*Table13[[#This Row],[Column1]] -> 0 | AE29: =I29*Table13[[#This Row],[Column1]] -> 0 | AF29: =J29*Table13[[#This Row],[Column1]] -> 0 | AG29: =K29*Table13[[#This Row],[Column1]] -> 0 | AH29: =L29*Table13[[#This Row],[Column1]] -> 0 | AI29: =M29*Table13[[#This Row],[Column1]] -> 4202133.049 | AJ29: =N29*Table13[[#This Row],[Column1]] -> 0 | AK29: =O29*Table13[[#This Row],[Column1]] -> 0 | AL29: =P29*Table13[[#This Row],[Column1]] -> 0 | AM29: =Q29*Table13[[#This Row],[Column1]] -> 0 | AN29: =R29*Table13[[#This Row],[Column1]] -> 9500474.719 | AO29: =S29*Table13[[#This Row],[Column1]] -> 0 | AP29: =T29*Table13[[#This Row],[Column1]] -> 0 | AQ29: =U29*Table13[[#This Row],[Column1]] -> 0 | AR29: =V29*Table13[[#This Row],[Column1]] -> 0 | AS29: =W29*Table13[[#This Row],[Column1]] -> 9500474.719 | AT29: =X29*Table13[[#This Row],[Column1]] -> 0 | AU29: =Y29*Table13[[#This Row],[Column1]] -> 0 | AV29: =SUM(Table13[[#This Row],[Year 1]:[Year 20]]) -> 23203082.49
A30: Cardigan Village Sewer Treatment Plant Capacity Improvements | B30: STP - Cardigan Village upgrade | C30: Sewer | D30: Cardigan Village | E30: Growth | F30: 100000 | I30: 110000 | J30: 3200000 | K30: 3100000 | Z30: 6510000 | AA30: 0.3654028738 | AB30: =F30*Table13[[#This Row],[Column1]] -> 36540.28738 | AC30: =G30*Table13[[#This Row],[Column1]] -> 0 | AD30: =H30*Table13[[#This Row],[Column1]] -> 0 | AE30: =I30*Table13[[#This Row],[Column1]] -> 40194.31612 | AF30: =J30*Table13[[#This Row],[Column1]] -> 1169289.196 | AG30: =K30*Table13[[#This Row],[Column1]] -> 1132748.909 | AH30: =L30*Table13[[#This Row],[Column1]] -> 0 | AI30: =M30*Table13[[#This Row],[Column1]] -> 0 | AJ30: =N30*Table13[[#This Row],[Column1]] -> 0 | AK30: =O30*Table13[[#This Row],[Column1]] -> 0 | AL30: =P30*Table13[[#This Row],[Column1]] -> 0 | AM30: =Q30*Table13[[#This Row],[Column1]] -> 0 | AN30: =R30*Table13[[#This Row],[Column1]] -> 0 | AO30: =S30*Table13[[#This Row],[Column1]] -> 0 | AP30: =T30*Table13[[#This Row],[Column1]] -> 0 | AQ30: =U30*Table13[[#This Row],[Column1]] -> 0 | AR30: =V30*Table13[[#This Row],[Column1]] -> 0 | AS30: =W30*Table13[[#This Row],[Column1]] -> 0 | AT30: =X30*Table13[[#This Row],[Column1]] -> 0 | AU30: =Y30*Table13[[#This Row],[Column1]] -> 0 | AV30: =SUM(Table13[[#This Row],[Year 1]:[Year 20]]) -> 2378772.708
A31: Regional Recycled Water Scheme Upgrades | B31: Beaufort winter storage upgrade | C31: Sewer | D31: Beaufort | E31: Growth | G31: 500000 | Z31: 500000 | AA31: 0.3654028738 | AB31: =F31*Table13[[#This Row],[Column1]] -> 0 | AC31: =G31*Table13[[#This Row],[Column1]] -> 182701.4369 | AD31: =H31*Table13[[#This Row],[Column1]] -> 0 | AE31: =I31*Table13[[#This Row],[Column1]] -> 0 | AF31: =J31*Table13[[#This Row],[Column1]] -> 0 | AG31: =K31*Table13[[#This Row],[Column1]] -> 0 | AH31: =L31*Table13[[#This Row],[Column1]] -> 0 | AI31: =M31*Table13[[#This Row],[Column1]] -> 0 | AJ31: =N31*Table13[[#This Row],[Column1]] -> 0 | AK31: =O31*Table13[[#This Row],[Column1]] -> 0 | AL31: =P31*Table13[[#This Row],[Column1]] -> 0 | AM31: =Q31*Table13[[#This Row],[Column1]] -> 0 | AN31: =R31*Table13[[#This Row],[Column1]] -> 0 | AO31: =S31*Table13[[#This Row],[Column1]] -> 0 | AP31: =T31*Table13[[#This Row],[Column1]] -> 0 | AQ31: =U31*Table13[[#This Row],[Column1]] -> 0 | AR31: =V31*Table13[[#This Row],[Column1]] -> 0 | AS31: =W31*Table13[[#This Row],[Column1]] -> 0 | AT31: =X31*Table13[[#This Row],[Column1]] -> 0 | AU31: =Y31*Table13[[#This Row],[Column1]] -> 0 | AV31: =SUM(Table13[[#This Row],[Year 1]:[Year 20]]) -> 182701.4369
A32: Regional Water Network Growth Project | B32: Sewer Network - Daylesford Network Upgrades | C32: Sewer | D32: Daylesford | E32: Growth | F32: 0 | I32: 200000 | J32: 800000 | R32: 1000000 | Z32: 2000000 | AA32: 0.3654028738 | AB32: =F32*Table13[[#This Row],[Column1]] -> 0 | AC32: =G32*Table13[[#This Row],[Column1]] -> 0 | AD32: =H32*Table13[[#This Row],[Column1]] -> 0 | AE32: =I32*Table13[[#This Row],[Column1]] -> 73080.57476 | AF32: =J32*Table13[[#This Row],[Column1]] -> 292322.299 | AG32: =K32*Table13[[#This Row],[Column1]] -> 0 | AH32: =L32*Table13[[#This Row],[Column1]] -> 0 | AI32: =M32*Table13[[#This Row],[Column1]] -> 0 | AJ32: =N32*Table13[[#This Row],[Column1]] -> 0 | AK32: =O32*Table13[[#This Row],[Column1]] -> 0 | AL32: =P32*Table13[[#This Row],[Column1]] -> 0 | AM32: =Q32*Table13[[#This Row],[Column1]] -> 0 | AN32: =R32*Table13[[#This Row],[Column1]] -> 365402.8738 | AO32: =S32*Table13[[#This Row],[Column1]] -> 0 | AP32: =T32*Table13[[#This Row],[Column1]] -> 0 | AQ32: =U32*Table13[[#This Row],[Column1]] -> 0 | AR32: =V32*Table13[[#This Row],[Column1]] -> 0 | AS32: =W32*Table13[[#This Row],[Column1]] -> 0 | AT32: =X32*Table13[[#This Row],[Column1]] -> 0 | AU32: =Y32*Table13[[#This Row],[Column1]] -> 0 | AV32: =SUM(Table13[[#This Row],[Year 1]:[Year 20]]) -> 730805.7476
A33: Regional Recycled Water Scheme Upgrades | B33: Daylesford WWTP Irrigation Upgrade | C33: Sewer | D33: Daylesford | E33: Growth | H33: 250000 | I33: 1000000 | W33: 1250000 | Z33: 2500000 | AA33: 0.3654028738 | AB33: =F33*Table13[[#This Row],[Column1]] -> 0 | AC33: =G33*Table13[[#This Row],[Column1]] -> 0 | AD33: =H33*Table13[[#This Row],[Column1]] -> 91350.71845 | AE33: =I33*Table13[[#This Row],[Column1]] -> 365402.8738 | AF33: =J33*Table13[[#This Row],[Column1]] -> 0 | AG33: =K33*Table13[[#This Row],[Column1]] -> 0 | AH33: =L33*Table13[[#This Row],[Column1]] -> 0 | AI33: =M33*Table13[[#This Row],[Column1]] -> 0 | AJ33: =N33*Table13[[#This Row],[Column1]] -> 0 | AK33: =O33*Table13[[#This Row],[Column1]] -> 0 | AL33: =P33*Table13[[#This Row],[Column1]] -> 0 | AM33: =Q33*Table13[[#This Row],[Column1]] -> 0 | AN33: =R33*Table13[[#This Row],[Column1]] -> 0 | AO33: =S33*Table13[[#This Row],[Column1]] -> 0 | AP33: =T33*Table13[[#This Row],[Column1]] -> 0 | AQ33: =U33*Table13[[#This Row],[Column1]] -> 0 | AR33: =V33*Table13[[#This Row],[Column1]] -> 0 | AS33: =W33*Table13[[#This Row],[Column1]] -> 456753.5922 | AT33: =X33*Table13[[#This Row],[Column1]] -> 0 | AU33: =Y33*Table13[[#This Row],[Column1]] -> 0 | AV33: =SUM(Table13[[#This Row],[Year 1]:[Year 20]]) -> 913507.1845
A34: Regional Recycled Water Scheme Upgrades | B34: MWWTP irrigation expansion | C34: Sewer | D34: Maryborough | E34: Growth | F34: 150000 | G34: 2300000 | M34: 0 | R34: 0 | W34: 2100000 | Z34: 4550000 | AA34: 0.3654028738 | AB34: =F34*Table13[[#This Row],[Column1]] -> 54810.43107 | AC34: =G34*Table13[[#This Row],[Column1]] -> 840426.6097 | AD34: =H34*Table13[[#This Row],[Column1]] -> 0 | AE34: =I34*Table13[[#This Row],[Column1]] -> 0 | AF34: =J34*Table13[[#This Row],[Column1]] -> 0 | AG34: =K34*Table13[[#This Row],[Column1]] -> 0 | AH34: =L34*Table13[[#This Row],[Column1]] -> 0 | AI34: =M34*Table13[[#This Row],[Column1]] -> 0 | AJ34: =N34*Table13[[#This Row],[Column1]] -> 0 | AK34: =O34*Table13[[#This Row],[Column1]] -> 0 | AL34: =P34*Table13[[#This Row],[Column1]] -> 0 | AM34: =Q34*Table13[[#This Row],[Column1]] -> 0 | AN34: =R34*Table13[[#This Row],[Column1]] -> 0 | AO34: =S34*Table13[[#This Row],[Column1]] -> 0 | AP34: =T34*Table13[[#This Row],[Column1]] -> 0 | AQ34: =U34*Table13[[#This Row],[Column1]] -> 0 | AR34: =V34*Table13[[#This Row],[Column1]] -> 0 | AS34: =W34*Table13[[#This Row],[Column1]] -> 767346.035 | AT34: =X34*Table13[[#This Row],[Column1]] -> 0 | AU34: =Y34*Table13[[#This Row],[Column1]] -> 0 | AV34: =SUM(Table13[[#This Row],[Year 1]:[Year 20]]) -> 1662583.076
A35: Growth & Development - Sewer network monitoring | B35: Growth & Development - Sewer network monitoring | C35: Sewer | D35: System Apportioned | E35: Growth | F35: 0 | K35: 125000 | L35: 125000 | M35: 125000 | N35: 125000 | O35: 125000 | P35: 125000 | Q35: 125000 | R35: 125000 | S35: 125000 | T35: 125000 | U35: 125000 | V35: 125000 | W35: 125000 | X35: 125000 | Y35: 125000 | Z35: 1875000 | AA35: 0.3654028738 | AB35: =F35*Table13[[#This Row],[Column1]] -> 0 | AC35: =G35*Table13[[#This Row],[Column1]] -> 0 | AD35: =H35*Table13[[#This Row],[Column1]] -> 0 | AE35: =I35*Table13[[#This Row],[Column1]] -> 0 | AF35: =J35*Table13[[#This Row],[Column1]] -> 0 | AG35: =K35*Table13[[#This Row],[Column1]] -> 45675.35922 | AH35: =L35*Table13[[#This Row],[Column1]] -> 45675.35922 | AI35: =M35*Table13[[#This Row],[Column1]] -> 45675.35922 | AJ35: =N35*Table13[[#This Row],[Column1]] -> 45675.35922 | AK35: =O35*Table13[[#This Row],[Column1]] -> 45675.35922 | AL35: =P35*Table13[[#This Row],[Column1]] -> 45675.35922 | AM35: =Q35*Table13[[#This Row],[Column1]] -> 45675.35922 | AN35: =R35*Table13[[#This Row],[Column1]] -> 45675.35922 | AO35: =S35*Table13[[#This Row],[Column1]] -> 45675.35922 | AP35: =T35*Table13[[#This Row],[Column1]] -> 45675.35922 | AQ35: =U35*Table13[[#This Row],[Column1]] -> 45675.35922 | AR35: =V35*Table13[[#This Row],[Column1]] -> 45675.35922 | AS35: =W35*Table13[[#This Row],[Column1]] -> 45675.35922 | AT35: =X35*Table13[[#This Row],[Column1]] -> 45675.35922 | AU35: =Y35*Table13[[#This Row],[Column1]] -> 45675.35922 | AV35: =SUM(Table13[[#This Row],[Year 1]:[Year 20]]) -> 685130.3884
A36: STP - Regional Treatment Plant Upgrades | B36: Future Works - PR28 & Beyond | C36: Sewer | D36: System Apportioned | E36: Growth | K36: 200000 | L36: 200000 | M36: 200000 | N36: 200000 | O36: 200000 | P36: 1400000 | Q36: 1400000 | R36: 1400000 | S36: 1400000 | T36: 1400000 | U36: 200000 | V36: 200000 | W36: 200000 | X36: 200000 | Y36: 200000 | Z36: 9000000 | AA36: =$O$76 -> 0.3654028738 | AB36: =F36*Table13[[#This Row],[Column1]] -> 0 | AC36: =G36*Table13[[#This Row],[Column1]] -> 0 | AD36: =H36*Table13[[#This Row],[Column1]] -> 0 | AE36: =I36*Table13[[#This Row],[Column1]] -> 0 | AF36: =J36*Table13[[#This Row],[Column1]] -> 0 | AG36: =K36*Table13[[#This Row],[Column1]] -> 73080.57476 | AH36: =L36*Table13[[#This Row],[Column1]] -> 73080.57476 | AI36: =M36*Table13[[#This Row],[Column1]] -> 73080.57476 | AJ36: =N36*Table13[[#This Row],[Column1]] -> 73080.57476 | AK36: =O36*Table13[[#This Row],[Column1]] -> 73080.57476 | AL36: =P36*Table13[[#This Row],[Column1]] -> 511564.0233 | AM36: =Q36*Table13[[#This Row],[Column1]] -> 511564.0233 | AN36: =R36*Table13[[#This Row],[Column1]] -> 511564.0233 | AO36: =S36*Table13[[#This Row],[Column1]] -> 511564.0233 | AP36: =T36*Table13[[#This Row],[Column1]] -> 511564.0233 | AQ36: =U36*Table13[[#This Row],[Column1]] -> 73080.57476 | AR36: =V36*Table13[[#This Row],[Column1]] -> 73080.57476 | AS36: =W36*Table13[[#This Row],[Column1]] -> 73080.57476 | AT36: =X36*Table13[[#This Row],[Column1]] -> 73080.57476 | AU36: =Y36*Table13[[#This Row],[Column1]] -> 73080.57476 | AV36: =SUM(Table13[[#This Row],[Year 1]:[Year 20]]) -> 3288625.864
A37: Growth & Development - Regional water systems growth projects | B37: Water Networks - Ballan Networks Upgrade | C37: Water | D37: Ballan | E37: Growth | I37: 100000 | J37: 300000 | K37: 2000000 | L37: 2000000 | Z37: 4400000 | AA37: =$O$75 -> 0.3597471177 | AB37: =F37*Table13[[#This Row],[Column1]] -> 0 | AC37: =G37*Table13[[#This Row],[Column1]] -> 0 | AD37: =H37*Table13[[#This Row],[Column1]] -> 0 | AE37: =I37*Table13[[#This Row],[Column1]] -> 35974.71177 | AF37: =J37*Table13[[#This Row],[Column1]] -> 107924.1353 | AG37: =K37*Table13[[#This Row],[Column1]] -> 719494.2354 | AH37: =L37*Table13[[#This Row],[Column1]] -> 719494.2354 | AI37: =M37*Table13[[#This Row],[Column1]] -> 0 | AJ37: =N37*Table13[[#This Row],[Column1]] -> 0 | AK37: =O37*Table13[[#This Row],[Column1]] -> 0 | AL37: =P37*Table13[[#This Row],[Column1]] -> 0 | AM37: =Q37*Table13[[#This Row],[Column1]] -> 0 | AN37: =R37*Table13[[#This Row],[Column1]] -> 0 | AO37: =S37*Table13[[#This Row],[Column1]] -> 0 | AP37: =T37*Table13[[#This Row],[Column1]] -> 0 | AQ37: =U37*Table13[[#This Row],[Column1]] -> 0 | AR37: =V37*Table13[[#This Row],[Column1]] -> 0 | AS37: =W37*Table13[[#This Row],[Column1]] -> 0 | AT37: =X37*Table13[[#This Row],[Column1]] -> 0 | AU37: =Y37*Table13[[#This Row],[Column1]] -> 0 | AV37: =SUM(Table13[[#This Row],[Year 1]:[Year 20]]) -> 1582887.318
A38: Growth & Development - Cambrian Hill water growth project | B38: Growth & Development - Cambrian Hill water growth project | C38: Water | D38: Ballarat | E38: Growth | F38: 0 | G38: 300000 | H38: 2225000 | I38: 500000 | K38: 0 | Z38: 3025000 | AA38: 1 | AB38: =F38*Table13[[#This Row],[Column1]] -> 0 | AC38: =G38*Table13[[#This Row],[Column1]] -> 300000 | AD38: =H38*Table13[[#This Row],[Column1]] -> 2225000 | AE38: =I38*Table13[[#This Row],[Column1]] -> 500000 | AF38: =J38*Table13[[#This Row],[Column1]] -> 0 | AG38: =K38*Table13[[#This Row],[Column1]] -> 0 | AH38: =L38*Table13[[#This Row],[Column1]] -> 0 | AI38: =M38*Table13[[#This Row],[Column1]] -> 0 | AJ38: =N38*Table13[[#This Row],[Column1]] -> 0 | AK38: =O38*Table13[[#This Row],[Column1]] -> 0 | AL38: =P38*Table13[[#This Row],[Column1]] -> 0 | AM38: =Q38*Table13[[#This Row],[Column1]] -> 0 | AN38: =R38*Table13[[#This Row],[Column1]] -> 0 | AO38: =S38*Table13[[#This Row],[Column1]] -> 0 | AP38: =T38*Table13[[#This Row],[Column1]] -> 0 | AQ38: =U38*Table13[[#This Row],[Column1]] -> 0 | AR38: =V38*Table13[[#This Row],[Column1]] -> 0 | AS38: =W38*Table13[[#This Row],[Column1]] -> 0 | AT38: =X38*Table13[[#This Row],[Column1]] -> 0 | AU38: =Y38*Table13[[#This Row],[Column1]] -> 0 | AV38: =SUM(Table13[[#This Row],[Year 1]:[Year 20]]) -> 3025000
A39: Growth & Development - Future GIA water growth projects | B39: Future Works - Future Growth Areas - Water Network | C39: Water | D39: Ballarat | E39: Growth | R39: 10000000 | W39: 15000000 | Z39: 25000000 | AA39: 1 | AB39: =F39*Table13[[#This Row],[Column1]] -> 0 | AC39: =G39*Table13[[#This Row],[Column1]] -> 0 | AD39: =H39*Table13[[#This Row],[Column1]] -> 0 | AE39: =I39*Table13[[#This Row],[Column1]] -> 0 | AF39: =J39*Table13[[#This Row],[Column1]] -> 0 | AG39: =K39*Table13[[#This Row],[Column1]] -> 0 | AH39: =L39*Table13[[#This Row],[Column1]] -> 0 | AI39: =M39*Table13[[#This Row],[Column1]] -> 0 | AJ39: =N39*Table13[[#This Row],[Column1]] -> 0 | AK39: =O39*Table13[[#This Row],[Column1]] -> 0 | AL39: =P39*Table13[[#This Row],[Column1]] -> 0 | AM39: =Q39*Table13[[#This Row],[Column1]] -> 0 | AN39: =R39*Table13[[#This Row],[Column1]] -> 10000000 | AO39: =S39*Table13[[#This Row],[Column1]] -> 0 | AP39: =T39*Table13[[#This Row],[Column1]] -> 0 | AQ39: =U39*Table13[[#This Row],[Column1]] -> 0 | AR39: =V39*Table13[[#This Row],[Column1]] -> 0 | AS39: =W39*Table13[[#This Row],[Column1]] -> 15000000 | AT39: =X39*Table13[[#This Row],[Column1]] -> 0 | AU39: =Y39*Table13[[#This Row],[Column1]] -> 0 | AV39: =SUM(Table13[[#This Row],[Year 1]:[Year 20]]) -> 25000000
A40: Growth & Development - Northern GIA water growth project | B40: Water Network - Main Renewals - Augmentation Invermay stage 1 | C40: Water | D40: Ballarat | E40: Growth | F40: 100000 | G40: 1300000 | H40: 3500000 | I40: 4500000 | J40: 650000 | K40: 0 | Z40: 10050000 | AA40: 1 | AB40: =F40*Table13[[#This Row],[Column1]] -> 100000 | AC40: =G40*Table13[[#This Row],[Column1]] -> 1300000 | AD40: =H40*Table13[[#This Row],[Column1]] -> 3500000 | AE40: =I40*Table13[[#This Row],[Column1]] -> 4500000 | AF40: =J40*Table13[[#This Row],[Column1]] -> 650000 | AG40: =K40*Table13[[#This Row],[Column1]] -> 0 | AH40: =L40*Table13[[#This Row],[Column1]] -> 0 | AI40: =M40*Table13[[#This Row],[Column1]] -> 0 | AJ40: =N40*Table13[[#This Row],[Column1]] -> 0 | AK40: =O40*Table13[[#This Row],[Column1]] -> 0 | AL40: =P40*Table13[[#This Row],[Column1]] -> 0 | AM40: =Q40*Table13[[#This Row],[Column1]] -> 0 | AN40: =R40*Table13[[#This Row],[Column1]] -> 0 | AO40: =S40*Table13[[#This Row],[Column1]] -> 0 | AP40: =T40*Table13[[#This Row],[Column1]] -> 0 | AQ40: =U40*Table13[[#This Row],[Column1]] -> 0 | AR40: =V40*Table13[[#This Row],[Column1]] -> 0 | AS40: =W40*Table13[[#This Row],[Column1]] -> 0 | AT40: =X40*Table13[[#This Row],[Column1]] -> 0 | AU40: =Y40*Table13[[#This Row],[Column1]] -> 0 | AV40: =SUM(Table13[[#This Row],[Year 1]:[Year 20]]) -> 10050000
A41: Growth & Development - Northern GIA water growth project | B41: Water Network - Main Renewals - Augmentation Invermay stage 2 | C41: Water | D41: Ballarat | E41: Growth | F41: 0 | J41: 250000 | K41: 7500000 | Z41: 7750000 | AA41: 1 | AB41: =F41*Table13[[#This Row],[Column1]] -> 0 | AC41: =G41*Table13[[#This Row],[Column1]] -> 0 | AD41: =H41*Table13[[#This Row],[Column1]] -> 0 | AE41: =I41*Table13[[#This Row],[Column1]] -> 0 | AF41: =J41*Table13[[#This Row],[Column1]] -> 250000 | AG41: =K41*Table13[[#This Row],[Column1]] -> 7500000 | AH41: =L41*Table13[[#This Row],[Column1]] -> 0 | AI41: =M41*Table13[[#This Row],[Column1]] -> 0 | AJ41: =N41*Table13[[#This Row],[Column1]] -> 0 | AK41: =O41*Table13[[#This Row],[Column1]] -> 0 | AL41: =P41*Table13[[#This Row],[Column1]] -> 0 | AM41: =Q41*Table13[[#This Row],[Column1]] -> 0 | AN41: =R41*Table13[[#This Row],[Column1]] -> 0 | AO41: =S41*Table13[[#This Row],[Column1]] -> 0 | AP41: =T41*Table13[[#This Row],[Column1]] -> 0 | AQ41: =U41*Table13[[#This Row],[Column1]] -> 0 | AR41: =V41*Table13[[#This Row],[Column1]] -> 0 | AS41: =W41*Table13[[#This Row],[Column1]] -> 0 | AT41: =X41*Table13[[#This Row],[Column1]] -> 0 | AU41: =Y41*Table13[[#This Row],[Column1]] -> 0 | AV41: =SUM(Table13[[#This Row],[Year 1]:[Year 20]]) -> 7750000
A42: Growth & Development - Northern GIA water growth project | B42: Water Network - Main Renewals - Augmentation Miners Rest | C42: Water | D42: Ballarat | E42: Growth | F42: 0 | I42: 150000 | J42: 2500000 | K42: 1500000 | Z42: 4150000 | AA42: 1 | AB42: =F42*Table13[[#This Row],[Column1]] -> 0 | AC42: =G42*Table13[[#This Row],[Column1]] -> 0 | AD42: =H42*Table13[[#This Row],[Column1]] -> 0 | AE42: =I42*Table13[[#This Row],[Column1]] -> 150000 | AF42: =J42*Table13[[#This Row],[Column1]] -> 2500000 | AG42: =K42*Table13[[#This Row],[Column1]] -> 1500000 | AH42: =L42*Table13[[#This Row],[Column1]] -> 0 | AI42: =M42*Table13[[#This Row],[Column1]] -> 0 | AJ42: =N42*Table13[[#This Row],[Column1]] -> 0 | AK42: =O42*Table13[[#This Row],[Column1]] -> 0 | AL42: =P42*Table13[[#This Row],[Column1]] -> 0 | AM42: =Q42*Table13[[#This Row],[Column1]] -> 0 | AN42: =R42*Table13[[#This Row],[Column1]] -> 0 | AO42: =S42*Table13[[#This Row],[Column1]] -> 0 | AP42: =T42*Table13[[#This Row],[Column1]] -> 0 | AQ42: =U42*Table13[[#This Row],[Column1]] -> 0 | AR42: =V42*Table13[[#This Row],[Column1]] -> 0 | AS42: =W42*Table13[[#This Row],[Column1]] -> 0 | AT42: =X42*Table13[[#This Row],[Column1]] -> 0 | AU42: =Y42*Table13[[#This Row],[Column1]] -> 0 | AV42: =SUM(Table13[[#This Row],[Year 1]:[Year 20]]) -> 4150000
A43: Growth & Development - Regional water systems growth projects | B43: Water Networks - Ballarat's system additional upgrades | C43: Water | D43: Ballarat | E43: Growth | M43: 900000 | Z43: 900000 | AA43: =$O$75 -> 0.3597471177 | AB43: =F43*Table13[[#This Row],[Column1]] -> 0 | AC43: =G43*Table13[[#This Row],[Column1]] -> 0 | AD43: =H43*Table13[[#This Row],[Column1]] -> 0 | AE43: =I43*Table13[[#This Row],[Column1]] -> 0 | AF43: =J43*Table13[[#This Row],[Column1]] -> 0 | AG43: =K43*Table13[[#This Row],[Column1]] -> 0 | AH43: =L43*Table13[[#This Row],[Column1]] -> 0 | AI43: =M43*Table13[[#This Row],[Column1]] -> 323772.4059 | AJ43: =N43*Table13[[#This Row],[Column1]] -> 0 | AK43: =O43*Table13[[#This Row],[Column1]] -> 0 | AL43: =P43*Table13[[#This Row],[Column1]] -> 0 | AM43: =Q43*Table13[[#This Row],[Column1]] -> 0 | AN43: =R43*Table13[[#This Row],[Column1]] -> 0 | AO43: =S43*Table13[[#This Row],[Column1]] -> 0 | AP43: =T43*Table13[[#This Row],[Column1]] -> 0 | AQ43: =U43*Table13[[#This Row],[Column1]] -> 0 | AR43: =V43*Table13[[#This Row],[Column1]] -> 0 | AS43: =W43*Table13[[#This Row],[Column1]] -> 0 | AT43: =X43*Table13[[#This Row],[Column1]] -> 0 | AU43: =Y43*Table13[[#This Row],[Column1]] -> 0 | AV43: =SUM(Table13[[#This Row],[Year 1]:[Year 20]]) -> 323772.4059
A44: Growth & Development - Water redundancy and contingency program | B44: Water Network - West Bores WTP restarting works | C44: Water | D44: Ballarat | E44: Growth | F44: 200000 | M44: 0 | R44: 0 | W44: 0 | Z44: 200000 | AA44: =$O$75 -> 0.3597471177 | AB44: =F44*Table13[[#This Row],[Column1]] -> 71949.42354 | AC44: =G44*Table13[[#This Row],[Column1]] -> 0 | AD44: =H44*Table13[[#This Row],[Column1]] -> 0 | AE44: =I44*Table13[[#This Row],[Column1]] -> 0 | AF44: =J44*Table13[[#This Row],[Column1]] -> 0 | AG44: =K44*Table13[[#This Row],[Column1]] -> 0 | AH44: =L44*Table13[[#This Row],[Column1]] -> 0 | AI44: =M44*Table13[[#This Row],[Column1]] -> 0 | AJ44: =N44*Table13[[#This Row],[Column1]] -> 0 | AK44: =O44*Table13[[#This Row],[Column1]] -> 0 | AL44: =P44*Table13[[#This Row],[Column1]] -> 0 | AM44: =Q44*Table13[[#This Row],[Column1]] -> 0 | AN44: =R44*Table13[[#This Row],[Column1]] -> 0 | AO44: =S44*Table13[[#This Row],[Column1]] -> 0 | AP44: =T44*Table13[[#This Row],[Column1]] -> 0 | AQ44: =U44*Table13[[#This Row],[Column1]] -> 0 | AR44: =V44*Table13[[#This Row],[Column1]] -> 0 | AS44: =W44*Table13[[#This Row],[Column1]] -> 0 | AT44: =X44*Table13[[#This Row],[Column1]] -> 0 | AU44: =Y44*Table13[[#This Row],[Column1]] -> 0 | AV44: =SUM(Table13[[#This Row],[Year 1]:[Year 20]]) -> 71949.42354
A45: Growth & Development - Water redundancy and contingency program | B45: Water Network - Redundancy Lal Lal - White Swan WTPs trunk mains (Springs Rd & Warrenheip) | C45: Water | D45: Ballarat | E45: Growth | F45: 0 | G45: 100000 | M45: 10200000 | R45: 0 | W45: 0 | Z45: 10300000 | AA45: 0.3597471177 | AB45: =F45*Table13[[#This Row],[Column1]] -> 0 | AC45: =G45*Table13[[#This Row],[Column1]] -> 35974.71177 | AD45: =H45*Table13[[#This Row],[Column1]] -> 0 | AE45: =I45*Table13[[#This Row],[Column1]] -> 0 | AF45: =J45*Table13[[#This Row],[Column1]] -> 0 | AG45: =K45*Table13[[#This Row],[Column1]] -> 0 | AH45: =L45*Table13[[#This Row],[Column1]] -> 0 | AI45: =M45*Table13[[#This Row],[Column1]] -> 3669420.6 | AJ45: =N45*Table13[[#This Row],[Column1]] -> 0 | AK45: =O45*Table13[[#This Row],[Column1]] -> 0 | AL45: =P45*Table13[[#This Row],[Column1]] -> 0 | AM45: =Q45*Table13[[#This Row],[Column1]] -> 0 | AN45: =R45*Table13[[#This Row],[Column1]] -> 0 | AO45: =S45*Table13[[#This Row],[Column1]] -> 0 | AP45: =T45*Table13[[#This Row],[Column1]] -> 0 | AQ45: =U45*Table13[[#This Row],[Column1]] -> 0 | AR45: =V45*Table13[[#This Row],[Column1]] -> 0 | AS45: =W45*Table13[[#This Row],[Column1]] -> 0 | AT45: =X45*Table13[[#This Row],[Column1]] -> 0 | AU45: =Y45*Table13[[#This Row],[Column1]] -> 0 | AV45: =SUM(Table13[[#This Row],[Year 1]:[Year 20]]) -> 3705395.312
A46: Growth & Development - Water redundancy and contingency program | B46: Water Networks - Lal Lal Main Upgrades | C46: Water | D46: Ballarat | E46: Growth | G46: 100000 | M46: 15200000 | R46: 15000000 | W46: 0 | Z46: 30300000 | AA46: 0.3597471177 | AB46: =F46*Table13[[#This Row],[Column1]] -> 0 | AC46: =G46*Table13[[#This Row],[Column1]] -> 35974.71177 | AD46: =H46*Table13[[#This Row],[Column1]] -> 0 | AE46: =I46*Table13[[#This Row],[Column1]] -> 0 | AF46: =J46*Table13[[#This Row],[Column1]] -> 0 | AG46: =K46*Table13[[#This Row],[Column1]] -> 0 | AH46: =L46*Table13[[#This Row],[Column1]] -> 0 | AI46: =M46*Table13[[#This Row],[Column1]] -> 5468156.189 | AJ46: =N46*Table13[[#This Row],[Column1]] -> 0 | AK46: =O46*Table13[[#This Row],[Column1]] -> 0 | AL46: =P46*Table13[[#This Row],[Column1]] -> 0 | AM46: =Q46*Table13[[#This Row],[Column1]] -> 0 | AN46: =R46*Table13[[#This Row],[Column1]] -> 5396206.765 | AO46: =S46*Table13[[#This Row],[Column1]] -> 0 | AP46: =T46*Table13[[#This Row],[Column1]] -> 0 | AQ46: =U46*Table13[[#This Row],[Column1]] -> 0 | AR46: =V46*Table13[[#This Row],[Column1]] -> 0 | AS46: =W46*Table13[[#This Row],[Column1]] -> 0 | AT46: =X46*Table13[[#This Row],[Column1]] -> 0 | AU46: =Y46*Table13[[#This Row],[Column1]] -> 0 | AV46: =SUM(Table13[[#This Row],[Year 1]:[Year 20]]) -> 10900337.67
A47: Growth & Development - Water redundancy and contingency program | B47: Water Network - Wilson St Tank Duplication - additional 9ML | C47: Water | D47: Ballarat | E47: Growth | I47: 25000 | M47: 300000 | R47: 6000000 | W47: 0 | Z47: 6325000 | AA47: 0.3597471177 | AB47: =F47*Table13[[#This Row],[Column1]] -> 0 | AC47: =G47*Table13[[#This Row],[Column1]] -> 0 | AD47: =H47*Table13[[#This Row],[Column1]] -> 0 | AE47: =I47*Table13[[#This Row],[Column1]] -> 8993.677942 | AF47: =J47*Table13[[#This Row],[Column1]] -> 0 | AG47: =K47*Table13[[#This Row],[Column1]] -> 0 | AH47: =L47*Table13[[#This Row],[Column1]] -> 0 | AI47: =M47*Table13[[#This Row],[Column1]] -> 107924.1353 | AJ47: =N47*Table13[[#This Row],[Column1]] -> 0 | AK47: =O47*Table13[[#This Row],[Column1]] -> 0 | AL47: =P47*Table13[[#This Row],[Column1]] -> 0 | AM47: =Q47*Table13[[#This Row],[Column1]] -> 0 | AN47: =R47*Table13[[#This Row],[Column1]] -> 2158482.706 | AO47: =S47*Table13[[#This Row],[Column1]] -> 0 | AP47: =T47*Table13[[#This Row],[Column1]] -> 0 | AQ47: =U47*Table13[[#This Row],[Column1]] -> 0 | AR47: =V47*Table13[[#This Row],[Column1]] -> 0 | AS47: =W47*Table13[[#This Row],[Column1]] -> 0 | AT47: =X47*Table13[[#This Row],[Column1]] -> 0 | AU47: =Y47*Table13[[#This Row],[Column1]] -> 0 | AV47: =SUM(Table13[[#This Row],[Year 1]:[Year 20]]) -> 2275400.519
A48: Growth & Development - Water redundancy and contingency program | B48: Water Network - Redundacy Tinworth PZ - Functional and detailed designs | C48: Water | D48: Ballarat | E48: Growth | I48: 25000 | N48: 300000 | O48: 2500000 | P48: 2000000 | W48: 0 | Z48: 4825000 | AA48: 0.3597471177 | AB48: =F48*Table13[[#This Row],[Column1]] -> 0 | AC48: =G48*Table13[[#This Row],[Column1]] -> 0 | AD48: =H48*Table13[[#This Row],[Column1]] -> 0 | AE48: =I48*Table13[[#This Row],[Column1]] -> 8993.677942 | AF48: =J48*Table13[[#This Row],[Column1]] -> 0 | AG48: =K48*Table13[[#This Row],[Column1]] -> 0 | AH48: =L48*Table13[[#This Row],[Column1]] -> 0 | AI48: =M48*Table13[[#This Row],[Column1]] -> 0 | AJ48: =N48*Table13[[#This Row],[Column1]] -> 107924.1353 | AK48: =O48*Table13[[#This Row],[Column1]] -> 899367.7942 | AL48: =P48*Table13[[#This Row],[Column1]] -> 719494.2354 | AM48: =Q48*Table13[[#This Row],[Column1]] -> 0 | AN48: =R48*Table13[[#This Row],[Column1]] -> 0 | AO48: =S48*Table13[[#This Row],[Column1]] -> 0 | AP48: =T48*Table13[[#This Row],[Column1]] -> 0 | AQ48: =U48*Table13[[#This Row],[Column1]] -> 0 | AR48: =V48*Table13[[#This Row],[Column1]] -> 0 | AS48: =W48*Table13[[#This Row],[Column1]] -> 0 | AT48: =X48*Table13[[#This Row],[Column1]] -> 0 | AU48: =Y48*Table13[[#This Row],[Column1]] -> 0 | AV48: =SUM(Table13[[#This Row],[Year 1]:[Year 20]]) -> 1735779.843
A49: Growth & Development - Water redundancy and contingency program | B49: Water Network - West Bores WTP Water Networks | C49: Water | D49: Ballarat | E49: Growth | J49: 80000 | M49: 3300000 | R49: 0 | W49: 0 | Z49: 3380000 | AA49: 0.3597471177 | AB49: =F49*Table13[[#This Row],[Column1]] -> 0 | AC49: =G49*Table13[[#This Row],[Column1]] -> 0 | AD49: =H49*Table13[[#This Row],[Column1]] -> 0 | AE49: =I49*Table13[[#This Row],[Column1]] -> 0 | AF49: =J49*Table13[[#This Row],[Column1]] -> 28779.76941 | AG49: =K49*Table13[[#This Row],[Column1]] -> 0 | AH49: =L49*Table13[[#This Row],[Column1]] -> 0 | AI49: =M49*Table13[[#This Row],[Column1]] -> 1187165.488 | AJ49: =N49*Table13[[#This Row],[Column1]] -> 0 | AK49: =O49*Table13[[#This Row],[Column1]] -> 0 | AL49: =P49*Table13[[#This Row],[Column1]] -> 0 | AM49: =Q49*Table13[[#This Row],[Column1]] -> 0 | AN49: =R49*Table13[[#This Row],[Column1]] -> 0 | AO49: =S49*Table13[[#This Row],[Column1]] -> 0 | AP49: =T49*Table13[[#This Row],[Column1]] -> 0 | AQ49: =U49*Table13[[#This Row],[Column1]] -> 0 | AR49: =V49*Table13[[#This Row],[Column1]] -> 0 | AS49: =W49*Table13[[#This Row],[Column1]] -> 0 | AT49: =X49*Table13[[#This Row],[Column1]] -> 0 | AU49: =Y49*Table13[[#This Row],[Column1]] -> 0 | AV49: =SUM(Table13[[#This Row],[Year 1]:[Year 20]]) -> 1215945.258
A50: Growth & Development - Water redundancy and contingency program | B50: Water Network - Augmentation Water Supply - Growing & Redundancy Stage 1 | C50: Water | D50: Ballarat | E50: Growth | Z50: 0 | AA50: 0.3597471177 | AB50: =F50*Table13[[#This Row],[Column1]] -> 0 | AC50: =G50*Table13[[#This Row],[Column1]] -> 0 | AD50: =H50*Table13[[#This Row],[Column1]] -> 0 | AE50: =I50*Table13[[#This Row],[Column1]] -> 0 | AF50: =J50*Table13[[#This Row],[Column1]] -> 0 | AG50: =K50*Table13[[#This Row],[Column1]] -> 0 | AH50: =L50*Table13[[#This Row],[Column1]] -> 0 | AI50: =M50*Table13[[#This Row],[Column1]] -> 0 | AJ50: =N50*Table13[[#This Row],[Column1]] -> 0 | AK50: =O50*Table13[[#This Row],[Column1]] -> 0 | AL50: =P50*Table13[[#This Row],[Column1]] -> 0 | AM50: =Q50*Table13[[#This Row],[Column1]] -> 0 | AN50: =R50*Table13[[#This Row],[Column1]] -> 0 | AO50: =S50*Table13[[#This Row],[Column1]] -> 0 | AP50: =T50*Table13[[#This Row],[Column1]] -> 0 | AQ50: =U50*Table13[[#This Row],[Column1]] -> 0 | AR50: =V50*Table13[[#This Row],[Column1]] -> 0 | AS50: =W50*Table13[[#This Row],[Column1]] -> 0 | AT50: =X50*Table13[[#This Row],[Column1]] -> 0 | AU50: =Y50*Table13[[#This Row],[Column1]] -> 0 | AV50: =SUM(Table13[[#This Row],[Year 1]:[Year 20]]) -> 0
A51: Growth & Development - Water redundancy and contingency program | B51: Water Network - Augmentation Water Supply - Growing & Redundancy Stage 2 - Functional and detailed designs | C51: Water | D51: Ballarat | E51: Growth | Z51: 0 | AA51: 0.3597471177 | AB51: =F51*Table13[[#This Row],[Column1]] -> 0 | AC51: =G51*Table13[[#This Row],[Column1]] -> 0 | AD51: =H51*Table13[[#This Row],[Column1]] -> 0 | AE51: =I51*Table13[[#This Row],[Column1]] -> 0 | AF51: =J51*Table13[[#This Row],[Column1]] -> 0 | AG51: =K51*Table13[[#This Row],[Column1]] -> 0 | AH51: =L51*Table13[[#This Row],[Column1]] -> 0 | AI51: =M51*Table13[[#This Row],[Column1]] -> 0 | AJ51: =N51*Table13[[#This Row],[Column1]] -> 0 | AK51: =O51*Table13[[#This Row],[Column1]] -> 0 | AL51: =P51*Table13[[#This Row],[Column1]] -> 0 | AM51: =Q51*Table13[[#This Row],[Column1]] -> 0 | AN51: =R51*Table13[[#This Row],[Column1]] -> 0 | AO51: =S51*Table13[[#This Row],[Column1]] -> 0 | AP51: =T51*Table13[[#This Row],[Column1]] -> 0 | AQ51: =U51*Table13[[#This Row],[Column1]] -> 0 | AR51: =V51*Table13[[#This Row],[Column1]] -> 0 | AS51: =W51*Table13[[#This Row],[Column1]] -> 0 | AT51: =X51*Table13[[#This Row],[Column1]] -> 0 | AU51: =Y51*Table13[[#This Row],[Column1]] -> 0 | AV51: =SUM(Table13[[#This Row],[Year 1]:[Year 20]]) -> 0
A52: Growth & Development - Western and North-Western GIA water growth projects | B52: Water Network - White Swan trunk mains augmentation - Functional and detailed designs | C52: Water | D52: Ballarat | E52: Growth | M52: 4700000 | R52: 2000000 | W52: 2000000 | Z52: 8700000 | AA52: 0.3597471177 | AB52: =F52*Table13[[#This Row],[Column1]] -> 0 | AC52: =G52*Table13[[#This Row],[Column1]] -> 0 | AD52: =H52*Table13[[#This Row],[Column1]] -> 0 | AE52: =I52*Table13[[#This Row],[Column1]] -> 0 | AF52: =J52*Table13[[#This Row],[Column1]] -> 0 | AG52: =K52*Table13[[#This Row],[Column1]] -> 0 | AH52: =L52*Table13[[#This Row],[Column1]] -> 0 | AI52: =M52*Table13[[#This Row],[Column1]] -> 1690811.453 | AJ52: =N52*Table13[[#This Row],[Column1]] -> 0 | AK52: =O52*Table13[[#This Row],[Column1]] -> 0 | AL52: =P52*Table13[[#This Row],[Column1]] -> 0 | AM52: =Q52*Table13[[#This Row],[Column1]] -> 0 | AN52: =R52*Table13[[#This Row],[Column1]] -> 719494.2354 | AO52: =S52*Table13[[#This Row],[Column1]] -> 0 | AP52: =T52*Table13[[#This Row],[Column1]] -> 0 | AQ52: =U52*Table13[[#This Row],[Column1]] -> 0 | AR52: =V52*Table13[[#This Row],[Column1]] -> 0 | AS52: =W52*Table13[[#This Row],[Column1]] -> 719494.2354 | AT52: =X52*Table13[[#This Row],[Column1]] -> 0 | AU52: =Y52*Table13[[#This Row],[Column1]] -> 0 | AV52: =SUM(Table13[[#This Row],[Year 1]:[Year 20]]) -> 3129799.924
A53: Growth & Development - Western and North-Western GIA water growth projects | B53: Water Network - Main Renewals - Ballarat Ring Road Water Main Duplication - Extension | C53: Water | D53: Ballarat | E53: Growth | F53: 0 | J53: 100000 | K53: 250000 | L53: 2450000 | M53: 6000000 | Z53: 8800000 | AA53: 1 | AB53: =F53*Table13[[#This Row],[Column1]] -> 0 | AC53: =G53*Table13[[#This Row],[Column1]] -> 0 | AD53: =H53*Table13[[#This Row],[Column1]] -> 0 | AE53: =I53*Table13[[#This Row],[Column1]] -> 0 | AF53: =J53*Table13[[#This Row],[Column1]] -> 100000 | AG53: =K53*Table13[[#This Row],[Column1]] -> 250000 | AH53: =L53*Table13[[#This Row],[Column1]] -> 2450000 | AI53: =M53*Table13[[#This Row],[Column1]] -> 6000000 | AJ53: =N53*Table13[[#This Row],[Column1]] -> 0 | AK53: =O53*Table13[[#This Row],[Column1]] -> 0 | AL53: =P53*Table13[[#This Row],[Column1]] -> 0 | AM53: =Q53*Table13[[#This Row],[Column1]] -> 0 | AN53: =R53*Table13[[#This Row],[Column1]] -> 0 | AO53: =S53*Table13[[#This Row],[Column1]] -> 0 | AP53: =T53*Table13[[#This Row],[Column1]] -> 0 | AQ53: =U53*Table13[[#This Row],[Column1]] -> 0 | AR53: =V53*Table13[[#This Row],[Column1]] -> 0 | AS53: =W53*Table13[[#This Row],[Column1]] -> 0 | AT53: =X53*Table13[[#This Row],[Column1]] -> 0 | AU53: =Y53*Table13[[#This Row],[Column1]] -> 0 | AV53: =SUM(Table13[[#This Row],[Year 1]:[Year 20]]) -> 8800000
A54: Growth & Development - Western and North-Western GIA water growth projects | B54: Water Network - Glenelg Hwy Augmentation and Construction - Functional and detailed designs | C54: Water | D54: Ballarat | E54: Growth | F54: 0 | J54: 50000 | M54: 125000 | O54: 2000000 | P54: 2500000 | Z54: 4675000 | AA54: 1 | AB54: =F54*Table13[[#This Row],[Column1]] -> 0 | AC54: =G54*Table13[[#This Row],[Column1]] -> 0 | AD54: =H54*Table13[[#This Row],[Column1]] -> 0 | AE54: =I54*Table13[[#This Row],[Column1]] -> 0 | AF54: =J54*Table13[[#This Row],[Column1]] -> 50000 | AG54: =K54*Table13[[#This Row],[Column1]] -> 0 | AH54: =L54*Table13[[#This Row],[Column1]] -> 0 | AI54: =M54*Table13[[#This Row],[Column1]] -> 125000 | AJ54: =N54*Table13[[#This Row],[Column1]] -> 0 | AK54: =O54*Table13[[#This Row],[Column1]] -> 2000000 | AL54: =P54*Table13[[#This Row],[Column1]] -> 2500000 | AM54: =Q54*Table13[[#This Row],[Column1]] -> 0 | AN54: =R54*Table13[[#This Row],[Column1]] -> 0 | AO54: =S54*Table13[[#This Row],[Column1]] -> 0 | AP54: =T54*Table13[[#This Row],[Column1]] -> 0 | AQ54: =U54*Table13[[#This Row],[Column1]] -> 0 | AR54: =V54*Table13[[#This Row],[Column1]] -> 0 | AS54: =W54*Table13[[#This Row],[Column1]] -> 0 | AT54: =X54*Table13[[#This Row],[Column1]] -> 0 | AU54: =Y54*Table13[[#This Row],[Column1]] -> 0 | AV54: =SUM(Table13[[#This Row],[Year 1]:[Year 20]]) -> 4675000
A55: Growth & Development - Western and North-Western GIA water growth projects | B55: Water Network - Main Renewals - Augmentation and construction - Northwest | C55: Water | D55: Ballarat | E55: Growth | F55: 0 | J55: 50000 | M55: 125000 | N55: 2000000 | O55: 2000000 | Z55: 4175000 | AA55: 1 | AB55: =F55*Table13[[#This Row],[Column1]] -> 0 | AC55: =G55*Table13[[#This Row],[Column1]] -> 0 | AD55: =H55*Table13[[#This Row],[Column1]] -> 0 | AE55: =I55*Table13[[#This Row],[Column1]] -> 0 | AF55: =J55*Table13[[#This Row],[Column1]] -> 50000 | AG55: =K55*Table13[[#This Row],[Column1]] -> 0 | AH55: =L55*Table13[[#This Row],[Column1]] -> 0 | AI55: =M55*Table13[[#This Row],[Column1]] -> 125000 | AJ55: =N55*Table13[[#This Row],[Column1]] -> 2000000 | AK55: =O55*Table13[[#This Row],[Column1]] -> 2000000 | AL55: =P55*Table13[[#This Row],[Column1]] -> 0 | AM55: =Q55*Table13[[#This Row],[Column1]] -> 0 | AN55: =R55*Table13[[#This Row],[Column1]] -> 0 | AO55: =S55*Table13[[#This Row],[Column1]] -> 0 | AP55: =T55*Table13[[#This Row],[Column1]] -> 0 | AQ55: =U55*Table13[[#This Row],[Column1]] -> 0 | AR55: =V55*Table13[[#This Row],[Column1]] -> 0 | AS55: =W55*Table13[[#This Row],[Column1]] -> 0 | AT55: =X55*Table13[[#This Row],[Column1]] -> 0 | AU55: =Y55*Table13[[#This Row],[Column1]] -> 0 | AV55: =SUM(Table13[[#This Row],[Year 1]:[Year 20]]) -> 4175000
A56: Growth & Development - Western and North-Western GIA water growth projects | B56: Water Network - Sturt St/Learmonth St Augmentation and Construction - Functional and detailed designs | C56: Water | D56: Ballarat | E56: Growth | F56: 0 | J56: 50000 | M56: 125000 | N56: 2500000 | O56: 2500000 | Z56: 5175000 | AA56: 1 | AB56: =F56*Table13[[#This Row],[Column1]] -> 0 | AC56: =G56*Table13[[#This Row],[Column1]] -> 0 | AD56: =H56*Table13[[#This Row],[Column1]] -> 0 | AE56: =I56*Table13[[#This Row],[Column1]] -> 0 | AF56: =J56*Table13[[#This Row],[Column1]] -> 50000 | AG56: =K56*Table13[[#This Row],[Column1]] -> 0 | AH56: =L56*Table13[[#This Row],[Column1]] -> 0 | AI56: =M56*Table13[[#This Row],[Column1]] -> 125000 | AJ56: =N56*Table13[[#This Row],[Column1]] -> 2500000 | AK56: =O56*Table13[[#This Row],[Column1]] -> 2500000 | AL56: =P56*Table13[[#This Row],[Column1]] -> 0 | AM56: =Q56*Table13[[#This Row],[Column1]] -> 0 | AN56: =R56*Table13[[#This Row],[Column1]] -> 0 | AO56: =S56*Table13[[#This Row],[Column1]] -> 0 | AP56: =T56*Table13[[#This Row],[Column1]] -> 0 | AQ56: =U56*Table13[[#This Row],[Column1]] -> 0 | AR56: =V56*Table13[[#This Row],[Column1]] -> 0 | AS56: =W56*Table13[[#This Row],[Column1]] -> 0 | AT56: =X56*Table13[[#This Row],[Column1]] -> 0 | AU56: =Y56*Table13[[#This Row],[Column1]] -> 0 | AV56: =SUM(Table13[[#This Row],[Year 1]:[Year 20]]) -> 5175000
A57: Growth & Development - Western and North-Western GIA water growth projects | B57: Water Network - Wilson St / Eyre St trunk mains augmentation and construction - Functional and detailed designs | C57: Water | D57: Ballarat | E57: Growth | F57: 0 | J57: 50000 | M57: 125000 | N57: 3000000 | O57: 3000000 | Z57: 6175000 | AA57: 1 | AB57: =F57*Table13[[#This Row],[Column1]] -> 0 | AC57: =G57*Table13[[#This Row],[Column1]] -> 0 | AD57: =H57*Table13[[#This Row],[Column1]] -> 0 | AE57: =I57*Table13[[#This Row],[Column1]] -> 0 | AF57: =J57*Table13[[#This Row],[Column1]] -> 50000 | AG57: =K57*Table13[[#This Row],[Column1]] -> 0 | AH57: =L57*Table13[[#This Row],[Column1]] -> 0 | AI57: =M57*Table13[[#This Row],[Column1]] -> 125000 | AJ57: =N57*Table13[[#This Row],[Column1]] -> 3000000 | AK57: =O57*Table13[[#This Row],[Column1]] -> 3000000 | AL57: =P57*Table13[[#This Row],[Column1]] -> 0 | AM57: =Q57*Table13[[#This Row],[Column1]] -> 0 | AN57: =R57*Table13[[#This Row],[Column1]] -> 0 | AO57: =S57*Table13[[#This Row],[Column1]] -> 0 | AP57: =T57*Table13[[#This Row],[Column1]] -> 0 | AQ57: =U57*Table13[[#This Row],[Column1]] -> 0 | AR57: =V57*Table13[[#This Row],[Column1]] -> 0 | AS57: =W57*Table13[[#This Row],[Column1]] -> 0 | AT57: =X57*Table13[[#This Row],[Column1]] -> 0 | AU57: =Y57*Table13[[#This Row],[Column1]] -> 0 | AV57: =SUM(Table13[[#This Row],[Year 1]:[Year 20]]) -> 6175000
A58: Growth & Development - Western and North-Western GIA water growth projects | B58: Water Network - Main Renewals - Ballarat Ring Road Water Main Duplication | C58: Water | D58: Ballarat | E58: Growth | F58: 0 | J58: 125000 | K58: 4375000 | L58: 3000000 | Z58: 7500000 | AA58: 1 | AB58: =F58*Table13[[#This Row],[Column1]] -> 0 | AC58: =G58*Table13[[#This Row],[Column1]] -> 0 | AD58: =H58*Table13[[#This Row],[Column1]] -> 0 | AE58: =I58*Table13[[#This Row],[Column1]] -> 0 | AF58: =J58*Table13[[#This Row],[Column1]] -> 125000 | AG58: =K58*Table13[[#This Row],[Column1]] -> 4375000 | AH58: =L58*Table13[[#This Row],[Column1]] -> 3000000 | AI58: =M58*Table13[[#This Row],[Column1]] -> 0 | AJ58: =N58*Table13[[#This Row],[Column1]] -> 0 | AK58: =O58*Table13[[#This Row],[Column1]] -> 0 | AL58: =P58*Table13[[#This Row],[Column1]] -> 0 | AM58: =Q58*Table13[[#This Row],[Column1]] -> 0 | AN58: =R58*Table13[[#This Row],[Column1]] -> 0 | AO58: =S58*Table13[[#This Row],[Column1]] -> 0 | AP58: =T58*Table13[[#This Row],[Column1]] -> 0 | AQ58: =U58*Table13[[#This Row],[Column1]] -> 0 | AR58: =V58*Table13[[#This Row],[Column1]] -> 0 | AS58: =W58*Table13[[#This Row],[Column1]] -> 0 | AT58: =X58*Table13[[#This Row],[Column1]] -> 0 | AU58: =Y58*Table13[[#This Row],[Column1]] -> 0 | AV58: =SUM(Table13[[#This Row],[Year 1]:[Year 20]]) -> 7500000
A59: Water Network - Main Renewals - White Swan water main upgrade/replacement | B59: Water Network - Main Renewals - White Swan water main upgrade/replacement | C59: Water | D59: Ballarat | E59: Growth | F59: 150000 | I59: 400000 | J59: 950000 | K59: 2500000 | Z59: 4000000 | AA59: 1 | AB59: =F59*Table13[[#This Row],[Column1]] -> 150000 | AC59: =G59*Table13[[#This Row],[Column1]] -> 0 | AD59: =H59*Table13[[#This Row],[Column1]] -> 0 | AE59: =I59*Table13[[#This Row],[Column1]] -> 400000 | AF59: =J59*Table13[[#This Row],[Column1]] -> 950000 | AG59: =K59*Table13[[#This Row],[Column1]] -> 2500000 | AH59: =L59*Table13[[#This Row],[Column1]] -> 0 | AI59: =M59*Table13[[#This Row],[Column1]] -> 0 | AJ59: =N59*Table13[[#This Row],[Column1]] -> 0 | AK59: =O59*Table13[[#This Row],[Column1]] -> 0 | AL59: =P59*Table13[[#This Row],[Column1]] -> 0 | AM59: =Q59*Table13[[#This Row],[Column1]] -> 0 | AN59: =R59*Table13[[#This Row],[Column1]] -> 0 | AO59: =S59*Table13[[#This Row],[Column1]] -> 0 | AP59: =T59*Table13[[#This Row],[Column1]] -> 0 | AQ59: =U59*Table13[[#This Row],[Column1]] -> 0 | AR59: =V59*Table13[[#This Row],[Column1]] -> 0 | AS59: =W59*Table13[[#This Row],[Column1]] -> 0 | AT59: =X59*Table13[[#This Row],[Column1]] -> 0 | AU59: =Y59*Table13[[#This Row],[Column1]] -> 0 | AV59: =SUM(Table13[[#This Row],[Year 1]:[Year 20]]) -> 4000000
A60: WTP - Ballarat West WTP Facility Upgrade | B60: WTP - Ballarat West WTP Facility Upgrade | C60: Water | D60: Ballarat | E60: Growth | M60: 5000000 | R60: 10000000 | W60: 0 | Z60: 15000000 | AA60: =$O$75 -> 0.3597471177 | AB60: =F60*Table13[[#This Row],[Column1]] -> 0 | AC60: =G60*Table13[[#This Row],[Column1]] -> 0 | AD60: =H60*Table13[[#This Row],[Column1]] -> 0 | AE60: =I60*Table13[[#This Row],[Column1]] -> 0 | AF60: =J60*Table13[[#This Row],[Column1]] -> 0 | AG60: =K60*Table13[[#This Row],[Column1]] -> 0 | AH60: =L60*Table13[[#This Row],[Column1]] -> 0 | AI60: =M60*Table13[[#This Row],[Column1]] -> 1798735.588 | AJ60: =N60*Table13[[#This Row],[Column1]] -> 0 | AK60: =O60*Table13[[#This Row],[Column1]] -> 0 | AL60: =P60*Table13[[#This Row],[Column1]] -> 0 | AM60: =Q60*Table13[[#This Row],[Column1]] -> 0 | AN60: =R60*Table13[[#This Row],[Column1]] -> 3597471.177 | AO60: =S60*Table13[[#This Row],[Column1]] -> 0 | AP60: =T60*Table13[[#This Row],[Column1]] -> 0 | AQ60: =U60*Table13[[#This Row],[Column1]] -> 0 | AR60: =V60*Table13[[#This Row],[Column1]] -> 0 | AS60: =W60*Table13[[#This Row],[Column1]] -> 0 | AT60: =X60*Table13[[#This Row],[Column1]] -> 0 | AU60: =Y60*Table13[[#This Row],[Column1]] -> 0 | AV60: =SUM(Table13[[#This Row],[Year 1]:[Year 20]]) -> 5396206.765
A61: WTP - White Swan - Lal Lal interconnection | B61: WTP - White Swan - Lal Lal interconnection | C61: Water | D61: Ballarat | E61: Growth | M61: 0 | R61: 1000000 | W61: 30000000 | Z61: 31000000 | AA61: 1 | AB61: =F61*Table13[[#This Row],[Column1]] -> 0 | AC61: =G61*Table13[[#This Row],[Column1]] -> 0 | AD61: =H61*Table13[[#This Row],[Column1]] -> 0 | AE61: =I61*Table13[[#This Row],[Column1]] -> 0 | AF61: =J61*Table13[[#This Row],[Column1]] -> 0 | AG61: =K61*Table13[[#This Row],[Column1]] -> 0 | AH61: =L61*Table13[[#This Row],[Column1]] -> 0 | AI61: =M61*Table13[[#This Row],[Column1]] -> 0 | AJ61: =N61*Table13[[#This Row],[Column1]] -> 0 | AK61: =O61*Table13[[#This Row],[Column1]] -> 0 | AL61: =P61*Table13[[#This Row],[Column1]] -> 0 | AM61: =Q61*Table13[[#This Row],[Column1]] -> 0 | AN61: =R61*Table13[[#This Row],[Column1]] -> 1000000 | AO61: =S61*Table13[[#This Row],[Column1]] -> 0 | AP61: =T61*Table13[[#This Row],[Column1]] -> 0 | AQ61: =U61*Table13[[#This Row],[Column1]] -> 0 | AR61: =V61*Table13[[#This Row],[Column1]] -> 0 | AS61: =W61*Table13[[#This Row],[Column1]] -> 30000000 | AT61: =X61*Table13[[#This Row],[Column1]] -> 0 | AU61: =Y61*Table13[[#This Row],[Column1]] -> 0 | AV61: =SUM(Table13[[#This Row],[Year 1]:[Year 20]]) -> 31000000
A62: WTP - White Swan WTP capacity upgrade | B62: WTP - White Swan WTP capacity upgrade | C62: Water | D62: Ballarat | E62: Growth | M62: 0 | R62: 3000000 | W62: 10000000 | Z62: 13000000 | AA62: 0.3597471177 | AB62: =F62*Table13[[#This Row],[Column1]] -> 0 | AC62: =G62*Table13[[#This Row],[Column1]] -> 0 | AD62: =H62*Table13[[#This Row],[Column1]] -> 0 | AE62: =I62*Table13[[#This Row],[Column1]] -> 0 | AF62: =J62*Table13[[#This Row],[Column1]] -> 0 | AG62: =K62*Table13[[#This Row],[Column1]] -> 0 | AH62: =L62*Table13[[#This Row],[Column1]] -> 0 | AI62: =M62*Table13[[#This Row],[Column1]] -> 0 | AJ62: =N62*Table13[[#This Row],[Column1]] -> 0 | AK62: =O62*Table13[[#This Row],[Column1]] -> 0 | AL62: =P62*Table13[[#This Row],[Column1]] -> 0 | AM62: =Q62*Table13[[#This Row],[Column1]] -> 0 | AN62: =R62*Table13[[#This Row],[Column1]] -> 1079241.353 | AO62: =S62*Table13[[#This Row],[Column1]] -> 0 | AP62: =T62*Table13[[#This Row],[Column1]] -> 0 | AQ62: =U62*Table13[[#This Row],[Column1]] -> 0 | AR62: =V62*Table13[[#This Row],[Column1]] -> 0 | AS62: =W62*Table13[[#This Row],[Column1]] -> 3597471.177 | AT62: =X62*Table13[[#This Row],[Column1]] -> 0 | AU62: =Y62*Table13[[#This Row],[Column1]] -> 0 | AV62: =SUM(Table13[[#This Row],[Year 1]:[Year 20]]) -> 4676712.53
A63: Growth & Development - Regional water systems growth projects | B63: Water Networks - Daylesford Networks upgrade | C63: Water | D63: Daylesford | E63: Growth | J63: 30000 | K63: 160000 | L63: 1700000 | M63: 90000 | R63: 500000 | W63: 2000000 | Z63: 4480000 | AA63: 0.3597471177 | AB63: =F63*Table13[[#This Row],[Column1]] -> 0 | AC63: =G63*Table13[[#This Row],[Column1]] -> 0 | AD63: =H63*Table13[[#This Row],[Column1]] -> 0 | AE63: =I63*Table13[[#This Row],[Column1]] -> 0 | AF63: =J63*Table13[[#This Row],[Column1]] -> 10792.41353 | AG63: =K63*Table13[[#This Row],[Column1]] -> 57559.53883 | AH63: =L63*Table13[[#This Row],[Column1]] -> 611570.1 | AI63: =M63*Table13[[#This Row],[Column1]] -> 32377.24059 | AJ63: =N63*Table13[[#This Row],[Column1]] -> 0 | AK63: =O63*Table13[[#This Row],[Column1]] -> 0 | AL63: =P63*Table13[[#This Row],[Column1]] -> 0 | AM63: =Q63*Table13[[#This Row],[Column1]] -> 0 | AN63: =R63*Table13[[#This Row],[Column1]] -> 179873.5588 | AO63: =S63*Table13[[#This Row],[Column1]] -> 0 | AP63: =T63*Table13[[#This Row],[Column1]] -> 0 | AQ63: =U63*Table13[[#This Row],[Column1]] -> 0 | AR63: =V63*Table13[[#This Row],[Column1]] -> 0 | AS63: =W63*Table13[[#This Row],[Column1]] -> 719494.2354 | AT63: =X63*Table13[[#This Row],[Column1]] -> 0 | AU63: =Y63*Table13[[#This Row],[Column1]] -> 0 | AV63: =SUM(Table13[[#This Row],[Year 1]:[Year 20]]) -> 1611667.087
A64: Water Network - Forest Hill water supply upgrade | B64: Water Network - Forest Hill water supply upgrade | C64: Water | D64: Forest Hill | E64: Growth | M64: 1000000 | R64: 5000000 | W64: 0 | Z64: 6000000 | AA64: 0.3597471177 | AB64: =F64*Table13[[#This Row],[Column1]] -> 0 | AC64: =G64*Table13[[#This Row],[Column1]] -> 0 | AD64: =H64*Table13[[#This Row],[Column1]] -> 0 | AE64: =I64*Table13[[#This Row],[Column1]] -> 0 | AF64: =J64*Table13[[#This Row],[Column1]] -> 0 | AG64: =K64*Table13[[#This Row],[Column1]] -> 0 | AH64: =L64*Table13[[#This Row],[Column1]] -> 0 | AI64: =M64*Table13[[#This Row],[Column1]] -> 359747.1177 | AJ64: =N64*Table13[[#This Row],[Column1]] -> 0 | AK64: =O64*Table13[[#This Row],[Column1]] -> 0 | AL64: =P64*Table13[[#This Row],[Column1]] -> 0 | AM64: =Q64*Table13[[#This Row],[Column1]] -> 0 | AN64: =R64*Table13[[#This Row],[Column1]] -> 1798735.588 | AO64: =S64*Table13[[#This Row],[Column1]] -> 0 | AP64: =T64*Table13[[#This Row],[Column1]] -> 0 | AQ64: =U64*Table13[[#This Row],[Column1]] -> 0 | AR64: =V64*Table13[[#This Row],[Column1]] -> 0 | AS64: =W64*Table13[[#This Row],[Column1]] -> 0 | AT64: =X64*Table13[[#This Row],[Column1]] -> 0 | AU64: =Y64*Table13[[#This Row],[Column1]] -> 0 | AV64: =SUM(Table13[[#This Row],[Year 1]:[Year 20]]) -> 2158482.706
A65: Growth & Development - Regional water systems growth projects | B65: Water Network - Main Renewals - Maryborough Duplication and Renewal | C65: Water | D65: Maryborough | E65: Growth | J65: 150000 | M65: 5000000 | R65: 0 | W65: 0 | Z65: 5150000 | AA65: 0.3597471177 | AB65: =F65*Table13[[#This Row],[Column1]] -> 0 | AC65: =G65*Table13[[#This Row],[Column1]] -> 0 | AD65: =H65*Table13[[#This Row],[Column1]] -> 0 | AE65: =I65*Table13[[#This Row],[Column1]] -> 0 | AF65: =J65*Table13[[#This Row],[Column1]] -> 53962.06765 | AG65: =K65*Table13[[#This Row],[Column1]] -> 0 | AH65: =L65*Table13[[#This Row],[Column1]] -> 0 | AI65: =M65*Table13[[#This Row],[Column1]] -> 1798735.588 | AJ65: =N65*Table13[[#This Row],[Column1]] -> 0 | AK65: =O65*Table13[[#This Row],[Column1]] -> 0 | AL65: =P65*Table13[[#This Row],[Column1]] -> 0 | AM65: =Q65*Table13[[#This Row],[Column1]] -> 0 | AN65: =R65*Table13[[#This Row],[Column1]] -> 0 | AO65: =S65*Table13[[#This Row],[Column1]] -> 0 | AP65: =T65*Table13[[#This Row],[Column1]] -> 0 | AQ65: =U65*Table13[[#This Row],[Column1]] -> 0 | AR65: =V65*Table13[[#This Row],[Column1]] -> 0 | AS65: =W65*Table13[[#This Row],[Column1]] -> 0 | AT65: =X65*Table13[[#This Row],[Column1]] -> 0 | AU65: =Y65*Table13[[#This Row],[Column1]] -> 0 | AV65: =SUM(Table13[[#This Row],[Year 1]:[Year 20]]) -> 1852697.656
A66: Growth & Development - Regional water systems growth projects | B66: Water Networks - Maryborough Additional Networks Upgrade and improvement | C66: Water | D66: Maryborough | E66: Growth | J66: 30000 | M66: 1950000 | R66: 600000 | W66: 1800000 | Z66: 4380000 | AA66: 0.3597471177 | AB66: =F66*Table13[[#This Row],[Column1]] -> 0 | AC66: =G66*Table13[[#This Row],[Column1]] -> 0 | AD66: =H66*Table13[[#This Row],[Column1]] -> 0 | AE66: =I66*Table13[[#This Row],[Column1]] -> 0 | AF66: =J66*Table13[[#This Row],[Column1]] -> 10792.41353 | AG66: =K66*Table13[[#This Row],[Column1]] -> 0 | AH66: =L66*Table13[[#This Row],[Column1]] -> 0 | AI66: =M66*Table13[[#This Row],[Column1]] -> 701506.8795 | AJ66: =N66*Table13[[#This Row],[Column1]] -> 0 | AK66: =O66*Table13[[#This Row],[Column1]] -> 0 | AL66: =P66*Table13[[#This Row],[Column1]] -> 0 | AM66: =Q66*Table13[[#This Row],[Column1]] -> 0 | AN66: =R66*Table13[[#This Row],[Column1]] -> 215848.2706 | AO66: =S66*Table13[[#This Row],[Column1]] -> 0 | AP66: =T66*Table13[[#This Row],[Column1]] -> 0 | AQ66: =U66*Table13[[#This Row],[Column1]] -> 0 | AR66: =V66*Table13[[#This Row],[Column1]] -> 0 | AS66: =W66*Table13[[#This Row],[Column1]] -> 647544.8118 | AT66: =X66*Table13[[#This Row],[Column1]] -> 0 | AU66: =Y66*Table13[[#This Row],[Column1]] -> 0 | AV66: =SUM(Table13[[#This Row],[Year 1]:[Year 20]]) -> 1575692.375
A67: WTP - Maryborough-GSP interconnection | B67: WTP - Maryborough-GSP interconnection | C67: Water | D67: Maryborough | E67: Growth | M67: 0 | R67: 2000000 | W67: 20000000 | Z67: 22000000 | AA67: 0.3597471177 | AB67: =F67*Table13[[#This Row],[Column1]] -> 0 | AC67: =G67*Table13[[#This Row],[Column1]] -> 0 | AD67: =H67*Table13[[#This Row],[Column1]] -> 0 | AE67: =I67*Table13[[#This Row],[Column1]] -> 0 | AF67: =J67*Table13[[#This Row],[Column1]] -> 0 | AG67: =K67*Table13[[#This Row],[Column1]] -> 0 | AH67: =L67*Table13[[#This Row],[Column1]] -> 0 | AI67: =M67*Table13[[#This Row],[Column1]] -> 0 | AJ67: =N67*Table13[[#This Row],[Column1]] -> 0 | AK67: =O67*Table13[[#This Row],[Column1]] -> 0 | AL67: =P67*Table13[[#This Row],[Column1]] -> 0 | AM67: =Q67*Table13[[#This Row],[Column1]] -> 0 | AN67: =R67*Table13[[#This Row],[Column1]] -> 719494.2354 | AO67: =S67*Table13[[#This Row],[Column1]] -> 0 | AP67: =T67*Table13[[#This Row],[Column1]] -> 0 | AQ67: =U67*Table13[[#This Row],[Column1]] -> 0 | AR67: =V67*Table13[[#This Row],[Column1]] -> 0 | AS67: =W67*Table13[[#This Row],[Column1]] -> 7194942.354 | AT67: =X67*Table13[[#This Row],[Column1]] -> 0 | AU67: =Y67*Table13[[#This Row],[Column1]] -> 0 | AV67: =SUM(Table13[[#This Row],[Year 1]:[Year 20]]) -> 7914436.589
A68: Growth & Development - New Water Meter Program | B68: Growth & Development - New Water Meter Program | C68: Water | D68: System Apportioned | E68: Growth | F68: 50000 | G68: 50000 | H68: 50000 | I68: 50000 | J68: 50000 | K68: 100000 | L68: 100000 | M68: 100000 | N68: 100000 | O68: 100000 | P68: 100000 | Q68: 100000 | R68: 100000 | S68: 100000 | T68: 100000 | U68: 100000 | V68: 100000 | W68: 100000 | X68: 100000 | Y68: 100000 | Z68: 1750000 | AA68: 1 | AB68: =F68*Table13[[#This Row],[Column1]] -> 50000 | AC68: =G68*Table13[[#This Row],[Column1]] -> 50000 | AD68: =H68*Table13[[#This Row],[Column1]] -> 50000 | AE68: =I68*Table13[[#This Row],[Column1]] -> 50000 | AF68: =J68*Table13[[#This Row],[Column1]] -> 50000 | AG68: =K68*Table13[[#This Row],[Column1]] -> 100000 | AH68: =L68*Table13[[#This Row],[Column1]] -> 100000 | AI68: =M68*Table13[[#This Row],[Column1]] -> 100000 | AJ68: =N68*Table13[[#This Row],[Column1]] -> 100000 | AK68: =O68*Table13[[#This Row],[Column1]] -> 100000 | AL68: =P68*Table13[[#This Row],[Column1]] -> 100000 | AM68: =Q68*Table13[[#This Row],[Column1]] -> 100000 | AN68: =R68*Table13[[#This Row],[Column1]] -> 100000 | AO68: =S68*Table13[[#This Row],[Column1]] -> 100000 | AP68: =T68*Table13[[#This Row],[Column1]] -> 100000 | AQ68: =U68*Table13[[#This Row],[Column1]] -> 100000 | AR68: =V68*Table13[[#This Row],[Column1]] -> 100000 | AS68: =W68*Table13[[#This Row],[Column1]] -> 100000 | AT68: =X68*Table13[[#This Row],[Column1]] -> 100000 | AU68: =Y68*Table13[[#This Row],[Column1]] -> 100000 | AV68: =SUM(Table13[[#This Row],[Year 1]:[Year 20]]) -> 1750000
A69: Growth & Development - Regional water systems growth projects | B69: Water Networks - Minor systems Networks upgrade | C69: Water | D69: System Apportioned | E69: Growth | M69: 900000 | R69: 900000 | W69: 900000 | Z69: 2700000 | AA69: 0.3597471177 | AB69: =F69*Table13[[#This Row],[Column1]] -> 0 | AC69: =G69*Table13[[#This Row],[Column1]] -> 0 | AD69: =H69*Table13[[#This Row],[Column1]] -> 0 | AE69: =I69*Table13[[#This Row],[Column1]] -> 0 | AF69: =J69*Table13[[#This Row],[Column1]] -> 0 | AG69: =K69*Table13[[#This Row],[Column1]] -> 0 | AH69: =L69*Table13[[#This Row],[Column1]] -> 0 | AI69: =M69*Table13[[#This Row],[Column1]] -> 323772.4059 | AJ69: =N69*Table13[[#This Row],[Column1]] -> 0 | AK69: =O69*Table13[[#This Row],[Column1]] -> 0 | AL69: =P69*Table13[[#This Row],[Column1]] -> 0 | AM69: =Q69*Table13[[#This Row],[Column1]] -> 0 | AN69: =R69*Table13[[#This Row],[Column1]] -> 323772.4059 | AO69: =S69*Table13[[#This Row],[Column1]] -> 0 | AP69: =T69*Table13[[#This Row],[Column1]] -> 0 | AQ69: =U69*Table13[[#This Row],[Column1]] -> 0 | AR69: =V69*Table13[[#This Row],[Column1]] -> 0 | AS69: =W69*Table13[[#This Row],[Column1]] -> 323772.4059 | AT69: =X69*Table13[[#This Row],[Column1]] -> 0 | AU69: =Y69*Table13[[#This Row],[Column1]] -> 0 | AV69: =SUM(Table13[[#This Row],[Year 1]:[Year 20]]) -> 971317.2177
A70: Growth & Development - Water network monitoring | B70: Growth & Development - Water network monitoring | C70: Water | D70: System Apportioned | E70: Growth | K70: 140000 | L70: 140000 | M70: 140000 | N70: 140000 | O70: 140000 | P70: 140000 | Q70: 140000 | R70: 140000 | S70: 140000 | T70: 140000 | U70: 140000 | V70: 140000 | W70: 140000 | X70: 140000 | Y70: 140000 | Z70: 2100000 | AA70: 0.3597471177 | AB70: =F70*Table13[[#This Row],[Column1]] -> 0 | AC70: =G70*Table13[[#This Row],[Column1]] -> 0 | AD70: =H70*Table13[[#This Row],[Column1]] -> 0 | AE70: =I70*Table13[[#This Row],[Column1]] -> 0 | AF70: =J70*Table13[[#This Row],[Column1]] -> 0 | AG70: =K70*Table13[[#This Row],[Column1]] -> 50364.59647 | AH70: =L70*Table13[[#This Row],[Column1]] -> 50364.59647 | AI70: =M70*Table13[[#This Row],[Column1]] -> 50364.59647 | AJ70: =N70*Table13[[#This Row],[Column1]] -> 50364.59647 | AK70: =O70*Table13[[#This Row],[Column1]] -> 50364.59647 | AL70: =P70*Table13[[#This Row],[Column1]] -> 50364.59647 | AM70: =Q70*Table13[[#This Row],[Column1]] -> 50364.59647 | AN70: =R70*Table13[[#This Row],[Column1]] -> 50364.59647 | AO70: =S70*Table13[[#This Row],[Column1]] -> 50364.59647 | AP70: =T70*Table13[[#This Row],[Column1]] -> 50364.59647 | AQ70: =U70*Table13[[#This Row],[Column1]] -> 50364.59647 | AR70: =V70*Table13[[#This Row],[Column1]] -> 50364.59647 | AS70: =W70*Table13[[#This Row],[Column1]] -> 50364.59647 | AT70: =X70*Table13[[#This Row],[Column1]] -> 50364.59647 | AU70: =Y70*Table13[[#This Row],[Column1]] -> 50364.59647 | AV70: =SUM(Table13[[#This Row],[Year 1]:[Year 20]]) -> 755468.9471
A71: WTP - PPP Upgrades | B71: WTP - Future Works PR28 & Beyond | C71: Water | D71: System Apportioned | E71: Growth | M71: 500000 | R71: 500000 | W71: 500000 | Z71: 1500000 | AA71: 0.3597471177 | AB71: =F71*Table13[[#This Row],[Column1]] -> 0 | AC71: =G71*Table13[[#This Row],[Column1]] -> 0 | AD71: =H71*Table13[[#This Row],[Column1]] -> 0 | AE71: =I71*Table13[[#This Row],[Column1]] -> 0 | AF71: =J71*Table13[[#This Row],[Column1]] -> 0 | AG71: =K71*Table13[[#This Row],[Column1]] -> 0 | AH71: =L71*Table13[[#This Row],[Column1]] -> 0 | AI71: =M71*Table13[[#This Row],[Column1]] -> 179873.5588 | AJ71: =N71*Table13[[#This Row],[Column1]] -> 0 | AK71: =O71*Table13[[#This Row],[Column1]] -> 0 | AL71: =P71*Table13[[#This Row],[Column1]] -> 0 | AM71: =Q71*Table13[[#This Row],[Column1]] -> 0 | AN71: =R71*Table13[[#This Row],[Column1]] -> 179873.5588 | AO71: =S71*Table13[[#This Row],[Column1]] -> 0 | AP71: =T71*Table13[[#This Row],[Column1]] -> 0 | AQ71: =U71*Table13[[#This Row],[Column1]] -> 0 | AR71: =V71*Table13[[#This Row],[Column1]] -> 0 | AS71: =W71*Table13[[#This Row],[Column1]] -> 179873.5588 | AT71: =X71*Table13[[#This Row],[Column1]] -> 0 | AU71: =Y71*Table13[[#This Row],[Column1]] -> 0 | AV71: =SUM(Table13[[#This Row],[Year 1]:[Year 20]]) -> 539620.6765
F73: =SUM(Table13[2024]) -> 17990000 | G73: =SUM(Table13[2025]) -> 15150000 | H73: =SUM(Table13[2026]) -> 18625000 | I73: =SUM(Table13[2027]) -> 28990000 | J73: =SUM(Table13[2028]) -> 26845000 | K73: =SUM(Table13[2029]) -> 33430000 | L73: =SUM(Table13[2030]) -> 24240000 | M73: =SUM(Table13[2031]) -> 111055000 | N73: =SUM(Table13[2032]) -> 12515000 | O73: =SUM(Table13[2033]) -> 16715000 | P73: =SUM(Table13[2034]) -> 8265000 | Q73: =SUM(Table13[2035]) -> 3765000 | R73: =SUM(Table13[2036]) -> 152015000 | S73: =SUM(Table13[2037]) -> 3765000 | T73: =SUM(Table13[2038]) -> 3765000 | U73: =SUM(Table13[2039]) -> 2565000 | V73: =SUM(Table13[2040]) -> 2565000 | W73: =SUM(Table13[2041]) -> 158115000 | X73: =SUM(Table13[2042]) -> 2565000 | Y73: =SUM(Table13[2043]) -> 2565000 | Z73: =SUM(Table13[TOTAL]) -> 645505000 | AB73: =SUM(Table13[Year 1]) -> 8539717.64 | AC73: =SUM(Table13[Year 2]) -> 8295219.886 | AD73: =SUM(Table13[Year 3]) -> 13897251.41 | AE73: =SUM(Table13[Year 4]) -> 19762109.42 | AF73: =SUM(Table13[Year 5]) -> 19613601.84 | AG73: =SUM(Table13[Year 6]) -> 26655359.38 | AH73: =SUM(Table13[Year 7]) -> 18719497.8 | AI73: =SUM(Table13[Year 8]) -> 59371309.71 | AJ73: =SUM(Table13[Year 9]) -> 12027044.67 | AK73: =SUM(Table13[Year 10]) -> 14818488.32 | AL73: =SUM(Table13[Year 11]) -> 5927098.214 | AM73: =SUM(Table13[Year 12]) -> 2707603.979 | AN73: =SUM(Table13[Year 13]) -> 79942687.5 | AO73: =SUM(Table13[Year 14]) -> 2707603.979 | AP73: =SUM(Table13[Year 15]) -> 2707603.979 | AQ73: =SUM(Table13[Year 16]) -> 2269120.53 | AR73: =SUM(Table13[Year 17]) -> 2269120.53 | AS73: =SUM(Table13[Year 18]) -> 101415150.9 | AT73: =SUM(Table13[Year 19]) -> 2269120.53 | AU73: =SUM(Table13[Year 20]) -> 2269120.53 | AV73: =SUM(Table13[Total2]) -> 406183830.7
K75: % new water customer connections | O75: =E109 -> 0.3597471177
F76: PR23 Total | G76: PR28 Total | H76: PR33 Total | I76: PR38 Total | K76: % new watewater customer connections | O76: =I109 -> 0.3654028738 | Q76: PR23 Total | R76: PR28 Total | S76: PR33 Total | T76: PR38 Total | AB76: 2024 | AC76: 2025 | AD76: 2026 | AE76: 2027 | AF76: 2028 | AG76: 2029 | AH76: 2030 | AI76: 2031 | AJ76: 2032 | AK76: 2033 | AL76: 2034 | AM76: 2035 | AN76: 2036 | AO76: 2037 | AP76: 2038 | AQ76: 2039 | AR76: 2040 | AS76: 2041 | AT76: 2042 | AU76: 2043 | AV76: TOTAL
C77: water | D77: Ballarat | F77: =SUM(F37:F62)+SUM(F68:F71)*E99+(F2+F6+F7)*0.5*E99 -> 1650836.383 | G77: =SUM(W37:W62)+SUM(W68:W71)*E99+(W2+W6+W7)*0.5*E99 -> 60014513.4 | H77: =SUM(X37:X62)+SUM(X68:X71)*E99+(X2+X6+X7)*0.5*E99 -> 1026922.148 | I77: =SUM(Y37:Y62)+SUM(Y68:Y71)*E99+(Y2+Y6+Y7)*0.5*E99 -> 1026922.148 | N77: water | O77: Ballarat | Q77: =F77*$O$75 -> 593883.6305 | R77: =G77*$O$75 -> 21590048.22 | S77: 369432.2828 | T77: 369432.2828 | Y77: water | Z77: Ballarat | AB77: =SUM(AB37:AB62)+SUM(AB68:AB71)*$E$99+(AB2+AB6+AB7)*0.5*$E$99 -> 1522785.806 | AC77: =SUM(AC37:AC62)+SUM(AC68:AC71)*$E$99+(AC2+AC6+AC7)*0.5*$E$99 -> 2707153.202 | AD77: 6760203.778 | AE77: 6639165.846 | AF77: 5946907.683 | AG77: 17797183.66 | AH77: 7122183.657 | AI77: 22418389.39 | AJ77: 8560613.557 | AK77: 11352057.22 | AL77: 4172183.657 | AM77: 952689.4213 | AN77: 25623299.77 | AO77: 952689.4213 | AP77: 952689.4213 | AQ77: 952689.4213 | AR77: 952689.4213 | AS77: 50989368.95 | AT77: 952689.4213 | AU77: 952689.4213 | AV77: =SUM(AB77:AU77) -> 178280322.1
D78: Avoca | F78: 0 | G78: 0 | H78: 0 | I78: 0 | O78: Avoca | Q78: =F78*$O$75 -> 0 | R78: 0 | S78: 0 | T78: 0 | Z78: Avoca | AA78: N/A | AV78: =SUM(AB78:AU78) -> 0
D79: Beaufort | F79: 0 | G79: 0 | H79: 0 | I79: 0 | O79: Beaufort | Q79: 0 | R79: 0 | S79: 0 | T79: 0 | Z79: Beaufort | AA79: N/A | AV79: 0
D80: Daylesford | F80: =F63+SUM(F68:F71)*E102+(F2+F6+F7)*0.5*E102 -> 56565.76028 | G80: =W63+SUM(W68:W71)*E102+(W2+W6+W7)*0.5*E102 -> 2141999.564 | H80: =X63+SUM(X68:X71)*E102+(X2+X6+X7)*0.5*E102 -> 48373.47776 | I80: =Y63+SUM(Y68:Y71)*E102+(Y2+Y6+Y7)*0.5*E102 -> 48373.47776 | O80: Daylesford | Q80: 20349.36922 | R80: 770578.1691 | S80: 17402.21919 | T80: 17402.21919 | Z80: Daylesford | AB80: =AB63+SUM(AB68:AB71)*$E$102+(AB2+AB6+AB7)*0.5*$E$102 -> 56565.76028 | AC80: =AC63+SUM(AC68:AC71)*$E$102+(AC2+AC6+AC7)*0.5*$E$102 -> 48763.58645 | AD80: 48763.58645 | AE80: 48763.58645 | AF80: 59555.99998 | AG80: 102436.2616 | AH80: 656446.8228 | AI80: 111156.3139 | AJ80: 44876.72276 | AK80: 44876.72276 | AL80: 44876.72276 | AM80: 44876.72276 | AN80: 258652.6321 | AO80: 44876.72276 | AP80: 44876.72276 | AQ80: 44876.72276 | AR80: 44876.72276 | AS80: 798273.3086 | AT80: 44876.72276 | AU80: 44876.72276 | AV80: 2638145.086
D81: Maryborough | F81: =SUM(F65:F67)+SUM(F68:F71)*E103+(F2+F6+F7)*0.5*E103 -> 115243.5457 | G81: =SUM(W65:W67)+SUM(W68:W71)*E103+(W2+W6+W7)*0.5*E103 -> 22089301.04 | H81: =SUM(X65:X67)+SUM(X68:X71)*E103+(X2+X6+X7)*0.5*E103 -> 98553.10113 | I81: =SUM(Y65:Y67)+SUM(Y68:Y71)*E103+(Y2+Y6+Y7)*0.5*E103 -> 98553.10113 | O81: Maryborough | Q81: 41458.53339 | R81: 7946562.38 | S81: 35454.19407 | T81: 35454.19407 | Z81: Maryborough | AB81: =SUM(AB65:AB67)+SUM(AB68:AB71)*$E$103+(AB2+AB6+AB7)*0.5*$E$103 -> 115243.5457 | AC81: =SUM(AC65:AC67)+SUM(AC68:AC71)*$E$103+(AC2+AC6+AC7)*0.5*$E$103 -> 99347.88421 | AD81: 99347.88421 | AE81: 99347.88421 | AF81: 164102.3654 | AG81: 91429.03098 | AH81: 91429.03098 | AI81: 2660742.03 | AJ81: 91429.03098 | AK81: 91429.03098 | AL81: 91429.03098 | AM81: 91429.03098 | AN81: 1095842.068 | AO81: 91429.03098 | AP81: 91429.03098 | AQ81: 91429.03098 | AR81: 91429.03098 | AS81: 8002986.727 | AT81: 91429.03098 | AU81: 91429.03098 | AV81: 13434108.76
D82: Remainder | F82: =F64+SUM(F68:F71)*(E104+E100+E101)+(F2+F6+F7)*0.5*(E104+E100+E101) -> 77352.35021 | G82: =W64+SUM(W68:W71)*(E104+E100+E101)+(W2+W6+W7)*0.5*(E104+E100+E101) -> 194181.0722 | H82: =X64+SUM(X68:X71)*(E104+E100+E101)+(X2+X6+X7)*0.5*(E104+E100+E101) -> 66149.59604 | I82: =Y64+SUM(Y68:Y71)*(E104+E100+E101)+(Y2+Y6+Y7)*0.5*(E104+E100+E101) -> 66149.59604 | O82: Remainder | Q82: 27827.28503 | R82: 69856.08105 | S82: 23797.12651 | T82: 23797.12651 | Z82: Remainder | AB82: =AB64+SUM(AB68:AB71)*($E$104+$E$100+$E$101)+(AB2+AB6+AB7)*0.5*($E$104+$E$100+$E$101) -> 77352.35021 | AC82: =AC64+SUM(AC68:AC71)*($E$104+$E$100+$E$101)+(AC2+AC6+AC7)*0.5*($E$104+$E$100+$E$101) -> 66683.06052 | AD82: 66683.06052 | AE82: 66683.06052 | AF82: 66683.06052 | AG82: 61367.86561 | AH82: 61367.86561 | AI82: 467475.6523 | AJ82: 61367.86561 | AK82: 61367.86561 | AL82: 61367.86561 | AM82: 61367.86561 | AN82: 1906464.123 | AO82: 61367.86561 | AP82: 61367.86561 | AQ82: 61367.86561 | AR82: 61367.86561 | AS82: 107728.5346 | AT82: 61367.86561 | AU82: 61367.86561 | AV82: 3562167.29
C83: sewer | D83: Ballarat | F83: =SUM(F10:F30)+SUM(F35:F36)*I99+F4+(F2+F6+F7)*0.5*I99 -> 13340650.71 | G83: =SUM(W10:W30)+SUM(W35:W36)*I99+W4+(W2+W6+W7)*0.5*I99 -> 54993937.78 | H83: =SUM(X10:X30)+SUM(X35:X36)*I99+X4+(X2+X6+X7)*0.5*I99 -> 1136330.132 | I83: =SUM(Y10:Y30)+SUM(Y35:Y36)*I99+Y4+(Y2+Y6+Y7)*0.5*I99 -> 1136330.132 | N83: sewer | O83: Ballarat | Q83: =F83*$O$76 -> 4874712.106 | R83: =G83*$O$76 -> 20094942.91 | S83: =H83*$O$76 -> 415218.2956 | T83: =I83*$O$76 -> 415218.2956 | Y83: sewer | Z83: Ballarat | AB83: =SUM(AB10:AB30)+SUM(AB35:AB36)*$I$99+AB4+(AB2+AB6+AB7)*0.5*$E$99 -> 5595419.119 | AC83: =SUM(AC10:AC30)+SUM(AC35:AC36)*$I$99+AC4+(AC2+AC6+AC7)*0.5*$E$99 -> 3961236.606 | AD83: 6588156.031 | AE83: 11148980.77 | AF83: 12439340.92 | AG83: 8414194.096 | AH83: 10599321.95 | AI83: 28711769.59 | AJ83: 3080009.02 | AK83: 3080009.02 | AL83: 1306055.778 | AM83: 1306055.778 | AN83: 44898006.87 | AO83: 1306055.778 | AP83: 1306055.778 | AQ83: 930009.0196 | AR83: 930009.0196 | AS83: 34560111.26 | AT83: 930009.0196 | AU83: 930009.0196 | AV83: 182020814.4
D84: Avoca | F84: 0 | G84: 0 | H84: 0 | I84: 0 | O84: Avoca | Q84: =F84*$O$76 -> 0 | R84: =G84*$O$76 -> 0 | S84: 0 | T84: 0 | Z84: Avoca | AA84: N/A | AV84: 0
D85: Beaufort | F85: 0 | G85: 0 | H85: 0 | I85: 0 | O85: Beaufort | Q85: 0 | R85: 0 | S85: 0 | T85: 0 | Z85: Beaufort | AA85: N/A | AV85: 0
D86: Daylesford | F86: =SUM(F32:F33)+SUM(F35:F36)*I102+(F2+F6+F7)*0.5*I102 -> 56423.12253 | G86: =SUM(W32:W33)+SUM(W35:W36)*I102+(W2+W6+W7)*0.5*I102 -> 1343702.686 | H86: =SUM(X32:X33)+SUM(X35:X36)*I102+(X2+X6+X7)*0.5*I102 -> 53400.45525 | I86: =SUM(Y32:Y33)+SUM(Y35:Y36)*I102+(Y2+Y6+Y7)*0.5*I102 -> 53400.45525 | O86: Daylesford | Q86: 20617.17112 | R86: =G86*$O$76 -> 490992.8228 | S86: 19512.67981 | T86: 19512.67981 | Z86: Daylesford | AB86: =SUM(AB32:AB33)+SUM(AB35:AB36)*$I$102+(AB2+AB6+AB7)*0.5*$E$102 -> 54615.21682 | AC86: =SUM(AC32:AC33)+SUM(AC35:AC36)*$I$102+(AC2+AC6+AC7)*0.5*$E$102 -> 46813.04299 | AD86: 138163.7614 | AE86: 485296.4915 | AF86: 339135.342 | AG86: 43796.99817 | AH86: 43796.99817 | AI86: 58051.68187 | AJ86: 43796.99817 | AK86: 43796.99817 | AL86: 61468.85913 | AM86: 61468.85913 | AN86: 441126.4166 | AO86: 61468.85913 | AP86: 61468.85913 | AQ86: 43796.99817 | AR86: 43796.99817 | AS86: 514805.2741 | AT86: 43796.99817 | AU86: 43796.99817 | AV86: 2674258.649
D87: Maryborough | F87: =F34+SUM(F35:F36)*I103+(F2+F6+F7)*0.5*I103 -> 249925.4094 | G87: =W34+SUM(W35:W36)*I103+(W2+W6+W7)*0.5*I103 -> 2265947.555 | H87: =X34+SUM(X35:X36)*I103+(X2+X6+X7)*0.5*I103 -> 94572.26251 | I87: =Y34+SUM(Y35:Y36)*I103+(Y2+Y6+Y7)*0.5*I103 -> 94572.26251 | O87: Maryborough | Q87: 91323.46285 | R87: 827983.7484 | S87: 34556.9765 | T87: 34556.9765 | Z87: Maryborough | AB87: =AB34+SUM(AB35:AB36)*$I$103+(AB2+AB6+AB7)*0.5*$E$103 -> 166080.0614 | AC87: =AC34+SUM(AC35:AC36)*$I$103+(AC2+AC6+AC7)*0.5*$E$103 -> 935800.5786 | AD87: 95373.96884 | AE87: 95373.96884 | AF87: 95373.96884 | AG87: 87954.54689 | AH87: 87954.54689 | AI87: 116996.1488 | AJ87: 87954.54689 | AK87: 87954.54689 | AL87: 119251.4313 | AM87: 119251.4313 | AN87: 148293.0332 | AO87: 119251.4313 | AP87: 119251.4313 | AQ87: 87954.54689 | AR87: 87954.54689 | AS87: 884342.1838 | AT87: 87954.54689 | AU87: 87954.54689 | AV87: 3718276.012
D88: Remainder | F88: =F3+F5+F31+SUM(F35:F36)*(I104+I100+I101)+(F2+F6+F7)*0.5*(I104+I100+I101) -> 42994.4464 | G88: =W3+W5+W31+SUM(W35:W36)*(I104+I100+I101)+(W2+W6+W7)*0.5*(I104+I100+I101) -> 71401.49134 | H88: =X3+X5+X31+SUM(X35:X36)*(I104+I100+I101)+(X2+X6+X7)*0.5*(I104+I100+I101) -> 40691.17248 | I88: =Y3+Y5+Y31+SUM(Y35:Y36)*(I104+I100+I101)+(Y2+Y6+Y7)*0.5*(I104+I100+I101) -> 40691.17248 | O88: Remainder | Q88: 15710.29427 | R88: 26090.31013 | S88: 14868.67136 | T88: 14868.67136 | Z88: Remainder | AB88: =AB3+AB5+AB31+SUM(AB35:AB36)*($I$104+$I$100+$I$101)+(AB2+AB6+AB7)*0.5*($E$104+$E$100+$E$101) -> 74685.02779 | AC88: =AC3+AC5+AC31+SUM(AC35:AC36)*($I$104+$I$100+$I$101)+(AC2+AC6+AC7)*0.5*($E$104+$E$100+$E$101) -> 246717.175 | AD88: 64015.7381 | AE88: 1068873.641 | AF88: 64015.7381 | AG88: 56993.48102 | AH88: 56993.48102 | AI88: 76486.42658 | AJ88: 56993.48102 | AK88: 56993.48102 | AL88: 70459.44753 | AM88: 70459.44753 | AN88: 89952.39309 | AO88: 70459.44753 | AP88: 70459.44753 | AQ88: 56993.48102 | AR88: 56993.48102 | AS88: 76486.42658 | AT88: 56993.48102 | AU88: 56993.48102 | AV88: 2499018.205
C89: recycled | D89: total | F89: =SUM(F8:F9) -> 2400000 | G89: =SUM(W8:W9) -> 15000000 | H89: =SUM(X8:X9) -> 0 | I89: =SUM(Y8:Y9) -> 0 | N89: recycled | O89: total | Q89: 876966.8971 | R89: 5481043.107 | S89: 0 | T89: 0 | Y89: recycled | Z89: total | AB89: =SUM(AB8:AB9) -> 876966.8971 | AC89: =SUM(AC8:AC9) -> 182701.4369 | AD89: 36540.28738 | AE89: 109620.8621 | AF89: 438483.4485 | AG89: 0 | AH89: 0 | AI89: 4750237.359 | AJ89: 0 | AK89: 0 | AL89: 0 | AM89: 0 | AN89: 5481043.107 | AO89: 0 | AP89: 0 | AQ89: 0 | AR89: 0 | AS89: 5481043.107 | AT89: 0 | AU89: 0 | AV89: 17356636.51
F90: =SUM(F77:F89) -> 17989991.72 | G90: =SUM(G77:G89) -> 158114984.6 | H90: 2564992.345 | I90: 2564992.345 | Q90: =SUM(Q77:Q89) -> 6562848.749 | R90: =SUM(R77:R89) -> 57298097.74 | S90: 930242.4459 | T90: 930242.4459
F92: =F90-F89 -> 15589991.72 | G92: =G90-G89 -> 143114984.6 | H92: 2564992.345 | I92: 2564992.345 | Q92: =Q90-Q89 -> 5685881.852 | R92: =R90-R89 -> 51817054.63 | S92: 930242.4459 | T92: 930242.4459
C97: Water connections | G97: Sewer Connections | L97: Total
C99: Ballarat | D99: 64635.63942 | E99: =D99/$D$105 -> 0.8281630226 | G99: Ballarat | H99: 58043.74312 | I99: =H99/$H$105 -> 0.8576076465 | L99: =(E99+I99)/2 -> 0.8428853345
C100: Avoca | D100: 0 | E100: =D100/$D$105 -> 0 | G100: Avoca | H100: 0 | I100: =H100/$H$105 -> 0 | L100: =(E100+I100)/2 -> 0
C101: Beaufort | D101: 0 | E101: 0 | G101: Beaufort | H101: 0 | I101: 0 | L101: 0
C102: Daylesford | D102: 3044.681305 | E102: 0.03901086916 | G102: Daylesford | H102: 2727.695254 | I102: 0.04030223038 | L102: 0.03965654977
C103: Maryborough | D103: 6203.043455 | E103: 0.07947830737 | G103: Maryborough | H103: 4830.751169 | I103: 0.07137529246 | L103: 0.07542679991
C104: Remainder | D104: 4163.53026 | E104: 0.05334644842 | G104: Remainder | H104: 2078.50509 | I104: 0.03071031886 | L104: 0.04202838364
D105: 78047 | E105: =SUM(E99:E104) -> 0.9999986475 | H105: 67681 | I105: =SUM(I99:I104) -> 0.9999954882 | L105: 1
C108: New connections versus existing | G108: New wastewater connections versus existing
C109: New | D109: =SUM(CHWdata_Opex!E47:X52) -> 43853.69545 | E109: =D109/$D$111 -> 0.3597471177 | G109: New | H109: 38972.51174 | I109: 0.3654028738
C110: Existing | D110: =SUM(CHWdata_Opex!D31:D36) -> 78047.75502 | E110: =D110/$D$111 -> 0.6402528823 | G110: Existing | H110: 67683.76969 | I110: 0.6345971262
C111: Total | D111: =SUM(D109:D110) -> 121901.4505 | E111: =SUM(E109:E110) -> 1 | G111: Total | H111: 106656.2814 | I111: 1
C112: Note: Over 20 year model period | G112: Note: Over 20 year model period

Sheet CHWdata_Gifted assets
A1: Gifted Assets forecast
K2: Forward forecast = historical per connection rate x no. of new connections
A3: Historical data | B3: 2014 | C3: 2015 | D3: 2016 | E3: 2017 | F3: 2018 | G3: 2019 | H3: 2020 | I3: 2021 | J3: 2022 | K3: 2023 | L3: 2024 | M3: 2025 | N3: 2026 | O3: 2027 | P3: 2028 | Q3: 2029 | R3: 2030 | S3: 2031 | T3: 2032 | U3: 2033 | V3: 2034 | W3: 2035 | X3: 2036 | Y3: 2037 | Z3: 2038 | AA3: 2039 | AB3: 2040 | AC3: 2041 | AD3: 2042 | AE3: 2043
A4: water | B4: =[8]Revenue!$C$27 -> 5437.74 | C4: =[9]Revenue!$C$27 -> 2898 | D4: =[10]Revenue!$C$27 -> 2372 | E4: =[11]Revenue!$C$27 -> 3171 | F4: =[12]Revenue!$C$27 -> 2907 | G4: =[13]Revenue!$C$27 -> 4113 | H4: =[14]Revenue!$C$27 -> 4301.35384 | I4: =[15]Revenue!$C$27 -> 6755 | J4: 5452584 | K4: =$K$9*K41 -> 5147434.472 | L4: =$K$9*L41 -> 5276120.334 | M4: =$K$9*M41 -> 5408023.342 | N4: 5543223.926 | O4: 5681804.524 | P4: 5823849.637 | Q4: 5969445.878 | R4: 6118682.025 | S4: 6271649.076 | T4: 6428440.303 | U4: 6589151.31 | V4: 6753880.093 | W4: 6922727.095 | X4: 7095795.273 | Y4: 7273190.154 | Z4: 7455019.908 | AA4: 7641395.406 | AB4: 7832430.291 | AC4: 8028241.048 | AD4: 8228947.075 | AE4: 8434670.751
A5: wastewater | B5: =[8]Revenue!$D$27 -> 1941.78 | C5: =[9]Revenue!$D$27 -> 5331 | D5: =[10]Revenue!$D$27 -> 4027 | E5: =[11]Revenue!$D$27 -> 5333 | F5: =[12]Revenue!$D$27 -> 7069 | G5: =[13]Revenue!$D$27 -> 10890 | H5: =[14]Revenue!$D$27 -> 10238.84922 | I5: =[15]Revenue!$D$27 -> 15132 | J5: 15505734 | K5: =$K$10*K61 -> 12471138.68 | L5: =$K$10*L61 -> 12782917.14 | M5: =$K$10*M61 -> 13102490.07 | N5: 13430052.32 | O5: 13765803.63 | P5: 14109948.72 | Q5: 14462697.44 | R5: 14824264.88 | S5: 15194871.5 | T5: 15574743.29 | U5: 15964111.87 | V5: 16363214.67 | W5: 16772295.03 | X5: 17191602.41 | Y5: 17621392.47 | Z5: 18061927.28 | AA5: 18513475.46 | AB5: 18976312.35 | AC5: 19450720.16 | AD5: 19936988.16 | AE5: 20435412.87
B6: =SUM(B4:B5) -> 7379.52 | C6: =SUM(C4:C5) -> 8229 | D6: 6399 | E6: 8504 | F6: 9976 | G6: 15003 | H6: 14540.20306 | I6: 21887 | J6: 20958318 | K6: 17618573.15 | L6: 18059037.48 | M6: 18510513.42 | N6: 18973276.25 | O6: 19447608.16 | P6: 19933798.36 | Q6: 20432143.32 | R6: 20942946.9 | S6: 21466520.58 | T6: 22003183.59 | U6: 22553263.18 | V6: 23117094.76 | W6: 23695022.13 | X6: 24287397.68 | Y6: 24894582.62 | Z6: 25516947.19 | AA6: 26154870.87 | AB6: 26808742.64 | AC6: 27478961.21 | AD6: 28165935.24 | AE6: 28870083.62
A8: Average gifted assets per new connection | K8: Avg. during PR18
A9: Water | G9: =(G4*1000)/G41 -> 3149.310873 | H9: =(H4*1000)/H41 -> 3575.522727 | I9: =(I4*1000)/I41 -> 3396.178984 | J9: =J4/J41 -> 2939.398383 | K9: =AVERAGE(G9:J9) -> 3265.102742
A10: Sewer | G10: =(G5*1000)/G61 -> 9864.130435 | H10: =(H5*1000)/H61 -> 8081.175391 | I10: =(I5*1000)/I61 -> 9007.142857 | J10: =J5/J61 -> 8282.977564 | K10: =AVERAGE(G10:J10) -> 8808.856562
A13: Water system split based on connections
B14: 2014 | C14: 2015 | D14: 2016 | E14: 2017 | F14: 2018 | G14: 2019 | H14: 2020 | I14: 2021 | J14: 2022 | K14: 2023 | L14: 2024 | M14: 2025 | N14: 2026 | O14: 2027 | P14: 2028 | Q14: 2029 | R14: 2030 | S14: 2031 | T14: 2032 | U14: 2033 | V14: 2034 | W14: 2035 | X14: 2036 | Y14: 2037 | Z14: 2038 | AA14: 2039 | AB14: 2040 | AC14: 2041 | AD14: 2042 | AE14: 2043
A15: Ballarat | J15: =J$4*CHWdata_Capex!$E$99 -> 4515628.446 | K15: =K$4*CHWdata_Capex!$E$99 -> 4262914.891 | L15: =L$4*CHWdata_Capex!$E$99 -> 4369487.763 | M15: =M$4*CHWdata_Capex!$E$99 -> 4478724.957 | N15: =N$4*CHWdata_Capex!$E$99 -> 4590693.081 | O15: =O$4*CHWdata_Capex!$E$99 -> 4705460.408 | P15: =P$4*CHWdata_Capex!$E$99 -> 4823096.919 | Q15: =Q$4*CHWdata_Capex!$E$99 -> 4943674.342 | R15: =R$4*CHWdata_Capex!$E$99 -> 5067266.2 | S15: =S$4*CHWdata_Capex!$E$99 -> 5193947.855 | T15: =T$4*CHWdata_Capex!$E$99 -> 5323796.552 | U15: =U$4*CHWdata_Capex!$E$99 -> 5456891.465 | V15: =V$4*CHWdata_Capex!$E$99 -> 5593313.752 | W15: =W$4*CHWdata_Capex!$E$99 -> 5733146.596 | X15: =X$4*CHWdata_Capex!$E$99 -> 5876475.261 | Y15: =Y$4*CHWdata_Capex!$E$99 -> 6023387.142 | Z15: =Z$4*CHWdata_Capex!$E$99 -> 6173971.821 | AA15: =AA$4*CHWdata_Capex!$E$99 -> 6328321.116 | AB15: =AB$4*CHWdata_Capex!$E$99 -> 6486529.144 | AC15: =AC$4*CHWdata_Capex!$E$99 -> 6648692.373 | AD15: =AD$4*CHWdata_Capex!$E$99 -> 6814909.682 | AE15: =AE$4*CHWdata_Capex!$E$99 -> 6985282.424
A16: Avoca | J16: 0 | K16: 0 | L16: 0 | M16: 0 | N16: 0 | O16: 0 | P16: 0 | Q16: 0 | R16: 0 | S16: 0 | T16: 0 | U16: 0 | V16: 0 | W16: 0 | X16: 0 | Y16: 0 | Z16: 0 | AA16: 0 | AB16: 0 | AC16: 0 | AD16: 0 | AE16: 0
A17: Beaufort | J17: 0 | K17: 0 | L17: 0 | M17: 0 | N17: 0 | O17: 0 | P17: 0 | Q17: 0 | R17: 0 | S17: 0 | T17: 0 | U17: 0 | V17: 0 | W17: 0 | X17: 0 | Y17: 0 | Z17: 0 | AA17: 0 | AB17: 0 | AC17: 0 | AD17: 0 | AE17: 0
A18: Daylesford | J18: =J$4*CHWdata_Capex!$E$102 -> 212710.041 | K18: =K$4*CHWdata_Capex!$E$102 -> 200805.8927 | L18: =L$4*CHWdata_Capex!$E$102 -> 205826.04 | M18: =M$4*CHWdata_Capex!$E$102 -> 210971.691 | N18: =N$4*CHWdata_Capex!$E$102 -> 216245.9833 | O18: =O$4*CHWdata_Capex!$E$102 -> 221652.1329 | P18: =P$4*CHWdata_Capex!$E$102 -> 227193.4362 | Q18: =Q$4*CHWdata_Capex!$E$102 -> 232873.2721 | R18: =R$4*CHWdata_Capex!$E$102 -> 238695.1039 | S18: =S$4*CHWdata_Capex!$E$102 -> 244662.4815 | T18: =T$4*CHWdata_Capex!$E$102 -> 250779.0435 | U18: =U$4*CHWdata_Capex!$E$102 -> 257048.5196 | V18: =V$4*CHWdata_Capex!$E$102 -> 263474.7326 | W18: =W$4*CHWdata_Capex!$E$102 -> 270061.6009 | X18: =X$4*CHWdata_Capex!$E$102 -> 276813.141 | Y18: =Y$4*CHWdata_Capex!$E$102 -> 283733.4695 | Z18: =Z$4*CHWdata_Capex!$E$102 -> 290826.8062 | AA18: =AA$4*CHWdata_Capex!$E$102 -> 298097.4764 | AB18: =AB$4*CHWdata_Capex!$E$102 -> 305549.9133 | AC18: =AC$4*CHWdata_Capex!$E$102 -> 313188.6611 | AD18: =AD$4*CHWdata_Capex!$E$102 -> 321018.3776 | AE18: =AE$4*CHWdata_Capex!$E$102 -> 329043.8371
A19: Maryborough | J19: =J$4*CHWdata_Capex!$E$103 -> 433362.1471 | K19: =K$4*CHWdata_Capex!$E$103 -> 409109.3791 | L19: =L$4*CHWdata_Capex!$E$103 -> 419337.1136 | M19: =M$4*CHWdata_Capex!$E$103 -> 429820.5414 | N19: =N$4*CHWdata_Capex!$E$103 -> 440566.055 | O19: =O$4*CHWdata_Capex!$E$103 -> 451580.2064 | P19: =P$4*CHWdata_Capex!$E$103 -> 462869.7115 | Q19: =Q$4*CHWdata_Capex!$E$103 -> 474441.4543 | R19: =R$4*CHWdata_Capex!$E$103 -> 486302.4907 | S19: =S$4*CHWdata_Capex!$E$103 -> 498460.0529 | T19: =T$4*CHWdata_Capex!$E$103 -> 510921.5543 | U19: =U$4*CHWdata_Capex!$E$103 -> 523694.5931 | V19: =V$4*CHWdata_Capex!$E$103 -> 536786.9579 | W19: =W$4*CHWdata_Capex!$E$103 -> 550206.6319 | X19: =X$4*CHWdata_Capex!$E$103 -> 563961.7977 | Y19: =Y$4*CHWdata_Capex!$E$103 -> 578060.8426 | Z19: =Z$4*CHWdata_Capex!$E$103 -> 592512.3637 | AA19: =AA$4*CHWdata_Capex!$E$103 -> 607325.1728 | AB19: =AB$4*CHWdata_Capex!$E$103 -> 622508.3021 | AC19: =AC$4*CHWdata_Capex!$E$103 -> 638071.0097 | AD19: =AD$4*CHWdata_Capex!$E$103 -> 654022.7849 | AE19: =AE$4*CHWdata_Capex!$E$103 -> 670373.3545
A20: Remainder | J20: =J$4*CHWdata_Capex!$E$104 -> 290875.9911 | K20: =K$4*CHWdata_Capex!$E$104 -> 274597.3476 | L20: =L$4*CHWdata_Capex!$E$104 -> 281462.2812 | M20: =M$4*CHWdata_Capex!$E$104 -> 288498.8383 | N20: =N$4*CHWdata_Capex!$E$104 -> 295711.3092 | O20: =O$4*CHWdata_Capex!$E$104 -> 303104.092 | P20: =P$4*CHWdata_Capex!$E$104 -> 310681.6943 | Q20: =Q$4*CHWdata_Capex!$E$104 -> 318448.7366 | R20: =R$4*CHWdata_Capex!$E$104 -> 326409.955 | S20: =S$4*CHWdata_Capex!$E$104 -> 334570.2039 | T20: =T$4*CHWdata_Capex!$E$104 -> 342934.459 | U20: =U$4*CHWdata_Capex!$E$104 -> 351507.8205 | V20: =V$4*CHWdata_Capex!$E$104 -> 360295.516 | W20: =W$4*CHWdata_Capex!$E$104 -> 369302.9039 | X20: =X$4*CHWdata_Capex!$E$104 -> 378535.4765 | Y20: =Y$4*CHWdata_Capex!$E$104 -> 387998.8634 | Z20: =Z$4*CHWdata_Capex!$E$104 -> 397698.835 | AA20: =AA$4*CHWdata_Capex!$E$104 -> 407641.3059 | AB20: =AB$4*CHWdata_Capex!$E$104 -> 417832.3385 | AC20: =AC$4*CHWdata_Capex!$E$104 -> 428278.147 | AD20: =AD$4*CHWdata_Capex!$E$104 -> 438985.1006 | AE20: =AE$4*CHWdata_Capex!$E$104 -> 449959.7282
A22: Wastewater system split based on connections
A23: Ballarat | J23: =J$5*CHWdata_Capex!$I$99 -> 13297836.04 | K23: =K$5*CHWdata_Capex!$I$99 -> 10695343.89 | L23: =L$5*CHWdata_Capex!$I$99 -> 10962727.49 | M23: =M$5*CHWdata_Capex!$I$99 -> 11236795.67 | N23: =N$5*CHWdata_Capex!$I$99 -> 11517715.57 | O23: =O$5*CHWdata_Capex!$I$99 -> 11805658.46 | P23: =P$5*CHWdata_Capex!$I$99 -> 12100799.92 | Q23: =Q$5*CHWdata_Capex!$I$99 -> 12403319.91 | R23: =R$5*CHWdata_Capex!$I$99 -> 12713402.91 | S23: =S$5*CHWdata_Capex!$I$99 -> 13031237.99 | T23: =T$5*CHWdata_Capex!$I$99 -> 13357018.93 | U23: =U$5*CHWdata_Capex!$I$99 -> 13690944.41 | V23: =V$5*CHWdata_Capex!$I$99 -> 14033218.02 | W23: =W$5*CHWdata_Capex!$I$99 -> 14384048.47 | X23: =X$5*CHWdata_Capex!$I$99 -> 14743649.68 | Y23: =Y$5*CHWdata_Capex!$I$99 -> 15112240.92 | Z23: =Z$5*CHWdata_Capex!$I$99 -> 15490046.95 | AA23: =AA$5*CHWdata_Capex!$I$99 -> 15877298.12 | AB23: =AB$5*CHWdata_Capex!$I$99 -> 16274230.57 | AC23: =AC$5*CHWdata_Capex!$I$99 -> 16681086.34 | AD23: =AD$5*CHWdata_Capex!$I$99 -> 17098113.49 | AE23: =AE$5*CHWdata_Capex!$I$99 -> 17525566.33
A24: Avoca | J24: 0 | K24: 0 | L24: 0 | M24: 0 | N24: 0 | O24: 0 | P24: 0 | Q24: 0 | R24: 0 | S24: 0 | T24: 0 | U24: 0 | V24: 0 | W24: 0 | X24: 0 | Y24: 0 | Z24: 0 | AA24: 0 | AB24: 0 | AC24: 0 | AD24: 0 | AE24: 0
A25: Beaufort | J25: 0 | K25: 0 | L25: 0 | M25: 0 | N25: 0 | O25: 0 | P25: 0 | Q25: 0 | R25: 0 | S25: 0 | T25: 0 | U25: 0 | V25: 0 | W25: 0 | X25: 0 | Y25: 0 | Z25: 0 | AA25: 0 | AB25: 0 | AC25: 0 | AD25: 0 | AE25: 0
A26: Daylesford | J26: =J$5*CHWdata_Capex!$I$102 -> 624915.6638 | K26: =K$5*CHWdata_Capex!$I$102 -> 502614.704 | L26: =L$5*CHWdata_Capex!$I$102 -> 515180.0716 | M26: =M$5*CHWdata_Capex!$I$102 -> 528059.5734 | N26: =N$5*CHWdata_Capex!$I$102 -> 541261.0628 | O26: =O$5*CHWdata_Capex!$I$102 -> 554792.5893 | P26: =P$5*CHWdata_Capex!$I$102 -> 568662.4041 | Q26: =Q$5*CHWdata_Capex!$I$102 -> 582878.9642 | R26: =R$5*CHWdata_Capex!$I$102 -> 597450.9383 | S26: =S$5*CHWdata_Capex!$I$102 -> 612387.2117 | T26: =T$5*CHWdata_Capex!$I$102 -> 627696.892 | U26: =U$5*CHWdata_Capex!$I$102 -> 643389.3143 | V26: =V$5*CHWdata_Capex!$I$102 -> 659474.0472 | W26: =W$5*CHWdata_Capex!$I$102 -> 675960.8984 | X26: =X$5*CHWdata_Capex!$I$102 -> 692859.9208 | Y26: =Y$5*CHWdata_Capex!$I$102 -> 710181.4188 | Z26: =Z$5*CHWdata_Capex!$I$102 -> 727935.9543 | AA26: =AA$5*CHWdata_Capex!$I$102 -> 746134.3532 | AB26: =AB$5*CHWdata_Capex!$I$102 -> 764787.712 | AC26: =AC$5*CHWdata_Capex!$I$102 -> 783907.4048 | AD26: =AD$5*CHWdata_Capex!$I$102 -> 803505.0899 | AE26: =AE$5*CHWdata_Capex!$I$102 -> 823592.7172
A27: Maryborough | J27: =J$5*CHWdata_Capex!$I$103 -> 1106726.299 | K27: =K$5*CHWdata_Capex!$I$103 -> 890131.1704 | L27: =L$5*CHWdata_Capex!$I$103 -> 912384.4497 | M27: =M$5*CHWdata_Capex!$I$103 -> 935194.0609 | N27: =N$5*CHWdata_Capex!$I$103 -> 958573.9125 | O27: =O$5*CHWdata_Capex!$I$103 -> 982538.2603 | P27: =P$5*CHWdata_Capex!$I$103 -> 1007101.717 | Q27: =Q$5*CHWdata_Capex!$I$103 -> 1032279.26 | R27: =R$5*CHWdata_Capex!$I$103 -> 1058086.241 | S27: =S$5*CHWdata_Capex!$I$103 -> 1084538.397 | T27: =T$5*CHWdata_Capex!$I$103 -> 1111651.857 | U27: =U$5*CHWdata_Capex!$I$103 -> 1139443.154 | V27: =V$5*CHWdata_Capex!$I$103 -> 1167929.232 | W27: =W$5*CHWdata_Capex!$I$103 -> 1197127.463 | X27: =X$5*CHWdata_Capex!$I$103 -> 1227055.65 | Y27: =Y$5*CHWdata_Capex!$I$103 -> 1257732.041 | Z27: =Z$5*CHWdata_Capex!$I$103 -> 1289175.342 | AA27: =AA$5*CHWdata_Capex!$I$103 -> 1321404.726 | AB27: =AB$5*CHWdata_Capex!$I$103 -> 1354439.844 | AC27: =AC$5*CHWdata_Capex!$I$103 -> 1388300.84 | AD27: =AD$5*CHWdata_Capex!$I$103 -> 1423008.361 | AE27: =AE$5*CHWdata_Capex!$I$103 -> 1458583.57
A28: Remainder | J28: =J$5*CHWdata_Capex!$I$104 -> 476186.0352 | K28: =K$5*CHWdata_Capex!$I$104 -> 382992.6453 | L28: =L$5*CHWdata_Capex!$I$104 -> 392567.4614 | M28: =M$5*CHWdata_Capex!$I$104 -> 402381.6479 | N28: =N$5*CHWdata_Capex!$I$104 -> 412441.1891 | O28: =O$5*CHWdata_Capex!$I$104 -> 422752.2189 | P28: =P$5*CHWdata_Capex!$I$104 -> 433321.0243 | Q28: =Q$5*CHWdata_Capex!$I$104 -> 444154.0499 | R28: =R$5*CHWdata_Capex!$I$104 -> 455257.9012 | S28: =S$5*CHWdata_Capex!$I$104 -> 466639.3487 | T28: =T$5*CHWdata_Capex!$I$104 -> 478305.3324 | U28: =U$5*CHWdata_Capex!$I$104 -> 490262.9658 | V28: =V$5*CHWdata_Capex!$I$104 -> 502519.5399 | W28: =W$5*CHWdata_Capex!$I$104 -> 515082.5284 | X28: =X$5*CHWdata_Capex!$I$104 -> 527959.5916 | Y28: =Y$5*CHWdata_Capex!$I$104 -> 541158.5814 | Z28: =Z$5*CHWdata_Capex!$I$104 -> 554687.5459 | AA28: =AA$5*CHWdata_Capex!$I$104 -> 568554.7346 | AB28: =AB$5*CHWdata_Capex!$I$104 -> 582768.6029 | AC28: =AC$5*CHWdata_Capex!$I$104 -> 597337.818 | AD28: =AD$5*CHWdata_Capex!$I$104 -> 612271.2635 | AE28: =AE$5*CHWdata_Capex!$I$104 -> 627578.0451
A30: Total water connections
B32: Future growth rate | F32: 2018 | G32: 2019 | H32: 2020 | I32: 2021 | J32: 2022 | K32: 2023 | L32: 2024 | M32: 2025 | N32: 2026 | O32: 2027 | P32: 2028 | Q32: 2029 | R32: 2030 | S32: 2031 | T32: 2032 | U32: 2033 | V32: 2034 | W32: 2035 | X32: 2036 | Y32: 2037 | Z32: 2038 | AA32: 2039 | AB32: 2040 | AC32: 2041 | AD32: 2042 | AE32: 2043
A33: Ballarat | B33: 0.025 | F33: 56707 | G33: 58013 | H33: 59216 | I33: 61205 | J33: 63060 | K33: =J33*(1+$B$33) -> 64636.5 | L33: =K33*(1+$B$33) -> 66252.4125 | M33: 67908.72281 | N33: 69606.44088 | O33: 71346.6019 | P33: 73130.26695 | Q33: 74958.52363 | R33: 76832.48672 | S33: 78753.29888 | T33: 80722.13136 | U33: 82740.18464 | V33: 84808.68926 | W33: 86928.90649 | X33: 89102.12915 | Y33: 91329.68238 | Z33: 93612.92444 | AA33: 95953.24755 | AB33: 98352.07874 | AC33: 100810.8807 | AD33: 103331.1527 | AE33: 105914.4315
A34: Avoca | B34: 0 | F34: 0 | G34: 0 | H34: 0 | I34: 0 | J34: 0 | K34: =J34*(1+$B$33) -> 0 | L34: 0 | M34: 0 | N34: 0 | O34: 0 | P34: 0 | Q34: 0 | R34: 0 | S34: 0 | T34: 0 | U34: 0 | V34: 0 | W34: 0 | X34: 0 | Y34: 0 | Z34: 0 | AA34: 0 | AB34: 0 | AC34: 0 | AD34: 0 | AE34: 0
A35: Beaufort | B35: 0 | F35: 0 | G35: 0 | H35: 0 | I35: 0 | J35: 0 | K35: 0 | L35: 0 | M35: 0 | N35: 0 | O35: 0 | P35: 0 | Q35: 0 | R35: 0 | S35: 0 | T35: 0 | U35: 0 | V35: 0 | W35: 0 | X35: 0 | Y35: 0 | Z35: 0 | AA35: 0 | AB35: 0 | AC35: 0 | AD35: 0 | AE35: 0
A36: Daylesford | B36: 0.009509716572 | F36: 2916 | G36: 2940 | H36: 2963 | I36: 2983 | J36: 3016 | K36: 3091.4 | L36: 3168.685 | M36: 3247.902125 | N36: 3329.099678 | O36: 3412.32717 | P36: 3497.635349 | Q36: 3585.076233 | R36: 3674.703139 | S36: 3766.570717 | T36: 3860.734985 | U36: 3957.25336 | V36: 4056.184694 | W36: 4157.589311 | X36: 4261.529044 | Y36: 4368.06727 | Z36: 4477.268952 | AA36: 4589.200676 | AB36: 4703.930693 | AC36: 4821.52896 | AD36: 4942.067184 | AE36: 5065.618864
A37: Maryborough | B37: 0.008297050555 | F37: 5975 | G37: 6002 | H37: 6038 | I37: 6089 | J37: 6152 | K37: 6305.8 | L37: 6463.445 | M37: 6625.031125 | N37: 6790.656903 | O37: 6960.423326 | P37: 7134.433909 | Q37: 7312.794757 | R37: 7495.614625 | S37: 7683.004991 | T37: 7875.080116 | U37: 8071.957119 | V37: 8273.756047 | W37: 8480.599948 | X37: 8692.614947 | Y37: 8909.93032 | Z37: 9132.678578 | AA37: 9360.995543 | AB37: 9595.020431 | AC37: 9834.895942 | AD37: 10080.76834 | AE37: 10332.78755
A38: Remainder | B38: 0.009096039669 | F38: 3994 | G38: 4033 | H38: 4060 | I38: 4088 | J38: 4126 | K38: 4229.15 | L38: 4334.87875 | M38: 4443.250719 | N38: 4554.331987 | O38: 4668.190286 | P38: 4784.895044 | Q38: 4904.51742 | R38: 5027.130355 | S38: 5152.808614 | T38: 5281.628829 | U38: 5413.66955 | V38: 5549.011289 | W38: 5687.736571 | X38: 5829.929985 | Y38: 5975.678235 | Z38: 6125.070191 | AA38: 6278.196946 | AB38: 6435.151869 | AC38: 6596.030666 | AD38: 6760.931433 | AE38: 6929.954718
A40: New water connections
A41: Ballarat | G41: =G33-F33 -> 1306 | H41: 1203 | I41: 1989 | J41: 1855 | K41: =K33-J33 -> 1576.5 | L41: =L33-K33 -> 1615.9125 | M41: 1656.310312 | N41: 1697.71807 | O41: 1740.161022 | P41: 1783.665048 | Q41: 1828.256674 | R41: 1873.963091 | S41: 1920.812168 | T41: 1968.832472 | U41: 2018.053284 | V41: 2068.504616 | W41: 2120.217231 | X41: 2173.222662 | Y41: 2227.553229 | Z41: 2283.242059 | AA41: 2340.323111 | AB41: 2398.831189 | AC41: 2458.801968 | AD41: 2520.272018 | AE41: 2583.278818
A42: Avoca | G42: =G34-F34 -> 0 | H42: 0 | I42: 0 | J42: 0 | K42: =K34-J34 -> 0 | L42: 0 | M42: 0 | N42: 0 | O42: 0 | P42: 0 | Q42: 0 | R42: 0 | S42: 0 | T42: 0 | U42: 0 | V42: 0 | W42: 0 | X42: 0 | Y42: 0 | Z42: 0 | AA42: 0 | AB42: 0 | AC42: 0 | AD42: 0 | AE42: 0
A43: Beaufort | G43: =G35-F35 -> 0 | H43: 0 | I43: 0 | J43: 0 | K43: 0 | L43: 0 | M43: 0 | N43: 0 | O43: 0 | P43: 0 | Q43: 0 | R43: 0 | S43: 0 | T43: 0 | U43: 0 | V43: 0 | W43: 0 | X43: 0 | Y43: 0 | Z43: 0 | AA43: 0 | AB43: 0 | AC43: 0 | AD43: 0 | AE43: 0
A44: Daylesford | G44: =G36-F36 -> 24 | H44: 23 | I44: 20 | J44: 33 | K44: 75.4 | L44: 77.285 | M44: 79.217125 | N44: 81.19755312 | O44: 83.22749195 | P44: 85.30817925 | Q44: 87.44088373 | R44: 89.62690583 | S44: 91.86757847 | T44: 94.16426793 | U44: 96.51837463 | V44: 98.931334 | W44: 101.4046173 | X44: 103.9397328 | Y44: 106.5382261 | Z44: 109.2016818 | AA44: 111.9317238 | AB44: 114.7300169 | AC44: 117.5982673 | AD44: 120.538224 | AE44: 123.5516796
A45: Maryborough | G45: =G37-F37 -> 27 | H45: 36 | I45: 51 | J45: 63 | K45: 153.8 | L45: 157.645 | M45: 161.586125 | N45: 165.6257781 | O45: 169.7664226 | P45: 174.0105831 | Q45: 178.3608477 | R45: 182.8198689 | S45: 187.3903656 | T45: 192.0751248 | U45: 196.8770029 | V45: 201.798928 | W45: 206.8439012 | X45: 212.0149987 | Y45: 217.3153737 | Z45: 222.748258 | AA45: 228.3169645 | AB45: 234.0248886 | AC45: 239.8755108 | AD45: 245.8723986 | AE45: 252.0192085
A46: Remainder | G46: =G38-F38 -> 39 | H46: 27 | I46: 28 | J46: 38 | K46: 103.15 | L46: 105.72875 | M46: 108.3719687 | N46: 111.081268 | O46: 113.8582997 | P46: 116.7047572 | Q46: 119.6223761 | R46: 122.6129355 | S46: 125.6782589 | T46: 128.8202154 | U46: 132.0407207 | V46: 135.3417388 | W46: 138.7252822 | X46: 142.1934143 | Y46: 145.7482496 | Z46: 149.3919559 | AA46: 153.1267548 | AB46: 156.9549236 | AC46: 160.8787967 | AD46: 164.9007666 | AE46: 169.0232858
A50: Total sewer connections
B52: Future growth rate | F52: 2018 | G52: 2019 | H52: 2020 | I52: 2021 | J52: 2022 | K52: 2023 | L52: 2024 | M52: 2025 | N52: 2026 | O52: 2027 | P52: 2028 | Q52: 2029 | R52: 2030 | S52: 2031 | T52: 2032 | U52: 2033 | V52: 2034 | W52: 2035 | X52: 2036 | Y52: 2037 | Z52: 2038 | AA52: 2039 | AB52: 2040 | AC52: 2041 | AD52: 2042 | AE52: 2043
A53: Ballarat | B53: 0.025 | F53: 50707 | G53: 51811 | H53: 53078 | I53: 54758 | J53: 56630 | K53: =J53*(1+$B$33) -> 58045.75 | L53: =K53*(1+$B$33) -> 59496.89375 | M53: 60984.31609 | N53: 62508.924 | O53: 64071.6471 | P53: 65673.43827 | Q53: 67315.27423 | R53: 68998.15609 | S53: 70723.10999 | T53: 72491.18774 | U53: 74303.46743 | V53: 76161.05412 | W53: 78065.08047 | X53: 80016.70748 | Y53: 82017.12517 | Z53: 84067.5533 | AA53: 86169.24213 | AB53: 88323.47318 | AC53: 90531.56001 | AD53: 92794.84901 | AE53: 95114.72024
A54: Avoca | B54: 0 | F54: 0 | G54: 0 | H54: 0 | I54: 0 | J54: 0 | K54: =J54*(1+$B$33) -> 0 | L54: 0 | M54: 0 | N54: 0 | O54: 0 | P54: 0 | Q54: 0 | R54: 0 | S54: 0 | T54: 0 | U54: 0 | V54: 0 | W54: 0 | X54: 0 | Y54: 0 | Z54: 0 | AA54: 0 | AB54: 0 | AC54: 0 | AD54: 0 | AE54: 0
A55: Beaufort | B55: 0 | F55: 0 | G55: 0 | H55: 0 | I55: 0 | J55: 0 | K55: =J55*(1+$B$33) -> 0 | L55: 0 | M55: 0 | N55: 0 | O55: 0 | P55: 0 | Q55: 0 | R55: 0 | S55: 0 | T55: 0 | U55: 0 | V55: 0 | W55: 0 | X55: 0 | Y55: 0 | Z55: 0 | AA55: 0 | AB55: 0 | AC55: 0 | AD55: 0 | AE55: 0
A56: Daylesford | B56: 0.009509716572 | F56: 2620 | G56: 2642 | H56: 2652 | I56: 2683 | J56: 2702 | K56: =J56*(1+$B$33) -> 2769.55 | L56: 2838.78875 | M56: 2909.758469 | N56: 2982.50243 | O56: 3057.064991 | P56: 3133.491616 | Q56: 3211.828906 | R56: 3292.124629 | S56: 3374.427745 | T56: 3458.788438 | U56: 3545.258149 | V56: 3633.889603 | W56: 3724.736843 | X56: 3817.855264 | Y56: 3913.301646 | Z56: 4011.134187 | AA56: 4111.412542 | AB56: 4214.197855 | AC56: 4319.552802 | AD56: 4427.541622 | AE56: 4538.230162
A57: Maryborough | B57: 0.008297050555 | F57: 4630 | G57: 4667 | H57: 4693 | I57: 4735 | J57: 4791 | K57: =J57*(1+$B$33) -> 4910.775 | L57: 5033.544375 | M57: 5159.382984 | N57: 5288.367559 | O57: 5420.576748 | P57: 5556.091167 | Q57: 5694.993446 | R57: 5837.368282 | S57: 5983.302489 | T57: 6132.885051 | U57: 6286.207178 | V57: 6443.362357 | W57: 6604.446416 | X57: 6769.557576 | Y57: 6938.796516 | Z57: 7112.266429 | AA57: 7290.073089 | AB57: 7472.324917 | AC57: 7659.133039 | AD57: 7850.611365 | AE57: 8046.87665
A58: Remainder | B58: 0.009096039669 | F58: 1960 | G58: 1989 | H58: 2011 | I58: 2036 | J58: 2059 | K58: =J58*(1+$B$33) -> 2110.475 | L58: 2163.236875 | M58: 2217.317797 | N58: 2272.750742 | O58: 2329.56951 | P58: 2387.808748 | Q58: 2447.503967 | R58: 2508.691566 | S58: 2571.408855 | T58: 2635.694077 | U58: 2701.586428 | V58: 2769.126089 | W58: 2838.354241 | X58: 2909.313097 | Y58: 2982.045925 | Z58: 3056.597073 | AA58: 3133.012 | AB58: 3211.3373 | AC58: 3291.620732 | AD58: 3373.911251 | AE58: 3458.259032
A60: New water connections
A61: Ballarat | G61: =G53-F53 -> 1104 | H61: =H53-G53 -> 1267 | I61: =I53-H53 -> 1680 | J61: 1872 | K61: =K53-J53 -> 1415.75 | L61: =L53-K53 -> 1451.14375 | M61: 1487.422344 | N61: 1524.607902 | O61: 1562.7231 | P61: 1601.791177 | Q61: 1641.835957 | R61: 1682.881856 | S61: 1724.953902 | T61: 1768.07775 | U61: 1812.279693 | V61: 1857.586686 | W61: 1904.026353 | X61: 1951.627012 | Y61: 2000.417687 | Z61: 2050.428129 | AA61: 2101.688832 | AB61: 2154.231053 | AC61: 2208.08683 | AD61: 2263.289 | AE61: 2319.871225
A62: Avoca | G62: =G54-F54 -> 0 | H62: 0 | I62: 0 | J62: 0 | K62: =K54-J54 -> 0 | L62: 0 | M62: 0 | N62: 0 | O62: 0 | P62: 0 | Q62: 0 | R62: 0 | S62: 0 | T62: 0 | U62: 0 | V62: 0 | W62: 0 | X62: 0 | Y62: 0 | Z62: 0 | AA62: 0 | AB62: 0 | AC62: 0 | AD62: 0 | AE62: 0
A63: Beaufort | G63: =G55-F55 -> 0 | H63: 0 | I63: 0 | J63: 0 | K63: =K55-J55 -> 0 | L63: 0 | M63: 0 | N63: 0 | O63: 0 | P63: 0 | Q63: 0 | R63: 0 | S63: 0 | T63: 0 | U63: 0 | V63: 0 | W63: 0 | X63: 0 | Y63: 0 | Z63: 0 | AA63: 0 | AB63: 0 | AC63: 0 | AD63: 0 | AE63: 0
A64: Daylesford | G64: =G56-F56 -> 22 | H64: 10 | I64: 31 | J64: 19 | K64: =K56-J56 -> 67.55 | L64: 69.23875 | M64: 70.96971875 | N64: 72.74396172 | O64: 74.56256076 | P64: 76.42662478 | Q64: 78.3372904 | R64: 80.29572266 | S64: 82.30311573 | T64: 84.36069362 | U64: 86.46971096 | V64: 88.63145373 | W64: 90.84724008 | X64: 93.11842108 | Y64: 95.44638161 | Z64: 97.83254115 | AA64: 100.2783547 | AB64: 102.7853135 | AC64: 105.3549464 | AD64: 107.98882 | AE64: 110.6885405
A65: Maryborough | G65: =G57-F57 -> 37 | H65: 26 | I65: 42 | J65: 56 | K65: =K57-J57 -> 119.775 | L65: 122.769375 | M65: 125.8386094 | N65: 128.9845746 | O65: 132.209189 | P65: 135.5144187 | Q65: 138.9022792 | R65: 142.3748361 | S65: 145.934207 | T65: 149.5825622 | U65: 153.3221263 | V65: 157.1551794 | W65: 161.0840589 | X65: 165.1111604 | Y65: 169.2389394 | Z65: 173.4699129 | AA65: 177.8066607 | AB65: 182.2518272 | AC65: 186.8081229 | AD65: 191.478326 | AE65: 196.2652841
A66: Remainder | G66: =G58-F58 -> 29 | H66: 22 | I66: 25 | J66: 23 | K66: =K58-J58 -> 51.475 | L66: 52.761875 | M66: 54.08092187 | N66: 55.43294492 | O66: 56.81876854 | P66: 58.23923776 | Q66: 59.6952187 | R66: 61.18759917 | S66: 62.71728915 | T66: 64.28522138 | U66: 65.89235191 | V66: 67.53966071 | W66: 69.22815223 | X66: 70.95885603 | Y66: 72.73282743 | Z66: 74.55114812 | AA66: 76.41492682 | AB66: 78.32529999 | AC66: 80.28343249 | AD66: 82.29051831 | AE66: 84.34778126

Sheet CHWdata_depreciation
A3: Row Labels | B3: Sum of Depreciation | C3: Sum of Written Down Value | D3: Sum of Accumulated Depreciation
A4: Buildings | B4: 785682.1045 | C4: 25670036.1 | D4: 28009378.85
A5: Infrastructure - Headworks | B5: 3388336.091 | C5: 27482502.39 | D5: 84590877.35
A6: Infrastructure Wastewater | B6: 16053348.04 | C6: 242931570.5 | D6: 226795599.5
A7: Infrastructure Water | B7: 16778613.66 | C7: 275683926.9 | D7: 275480216.5
A8: INTANGIBLES | B8: 2165311.846 | C8: 4799859.78 | D8: 15707587.62
A9: Land | C9: 77044361.79 | D9: 357
A10: NoGroup | B10: 4394.546667 | C10: 14060.83 | D10: 1232198.74
A11: Plant & Equipment | B11: 2873421.467 | C11: 14467010.04 | D11: 25758462.5
A12: Service Concession Asset | B12: 161208.3027 | C12: 3596954.29 | D12: 1214073.12 | G12: value of growth assets / RAB
A13: Grand Total | B13: 42210316.06 | C13: 671690282.6 | D13: 658788751.1
F14: new connection % | G14: YOY growth
F15: 0.023 | G15: 1.03
F16: =GETPIVOTDATA("Sum of Depreciation",$A$3)*F15 -> 970837.2693 | G16: =F16*$G$15 -> 999962.3874 | H16: =G16*$G$15 -> 1029961.259 | I16: 1060860.097 | J16: 1092685.9 | K16: 1125466.477 | L16: 1159230.471 | M16: 1194007.385 | N16: 1229827.607 | O16: 1266722.435 | P16: 1304724.108 | Q16: 1343865.831 | R16: 1384181.806 | S16: 1425707.26 | T16: 1468478.478 | U16: 1512532.832 | V16: 1557908.817 | W16: 1604646.082 | X16: 1652785.464 | Y16: 1702369.028 | Z16: 1753440.099 | AA16: 1806043.302
F18: 2021-22 | G18: 2022-23 | H18: 2023-24 | I18: 2024-25 | J18: 2025-26 | K18: 2026-27 | L18: 2027-28 | M18: 2028-29 | N18: 2029-30 | O18: 2030-31 | P18: 2031-32 | Q18: 2032-33 | R18: 2033-34 | S18: 2034-35 | T18: 2035-36 | U18: 2036-37 | V18: 2037-38 | W18: 2038-39 | X18: 2039-40 | Y18: 2040-41 | Z18: 2041-42 | AA18: 2042-43
E20: Asset Class %
E21: Water | F21: 0.51 | G21: 0.51 | H21: 0.51 | I21: 0.51 | J21: 0.51 | K21: 0.51 | L21: 0.51 | M21: 0.51 | N21: 0.51 | O21: 0.51 | P21: 0.51 | Q21: 0.51 | R21: 0.51 | S21: 0.51 | T21: 0.51 | U21: 0.51 | V21: 0.51 | W21: 0.51 | X21: 0.51 | Y21: 0.51 | Z21: 0.51 | AA21: 0.51
E22: Waste | F22: 0.39 | G22: 0.39 | H22: 0.39 | I22: 0.39 | J22: 0.39 | K22: 0.39 | L22: 0.39 | M22: 0.39 | N22: 0.39 | O22: 0.39 | P22: 0.39 | Q22: 0.39 | R22: 0.39 | S22: 0.39 | T22: 0.39 | U22: 0.39 | V22: 0.39 | W22: 0.39 | X22: 0.39 | Y22: 0.39 | Z22: 0.39 | AA22: 0.39
E23: Other | F23: 0.1 | G23: 0.1 | H23: 0.1 | I23: 0.1 | J23: 0.1 | K23: 0.1 | L23: 0.1 | M23: 0.1 | N23: 0.1 | O23: 0.1 | P23: 0.1 | Q23: 0.1 | R23: 0.1 | S23: 0.1 | T23: 0.1 | U23: 0.1 | V23: 0.1 | W23: 0.1 | X23: 0.1 | Y23: 0.1 | Z23: 0.1 | AA23: 0.1
E24: Total | F24: =SUM(F21:F23) -> 1 | G24: =SUM(G21:G23) -> 1 | H24: =SUM(H21:H23) -> 1 | I24: 1 | J24: 1 | K24: 1 | L24: 1 | M24: 1 | N24: 1 | O24: =SUM(O21:O23) -> 1 | P24: 1 | Q24: 1 | R24: 1 | S24: 1 | T24: 1 | U24: 1 | V24: 1 | W24: 1 | X24: 1 | Y24: 1 | Z24: 1 | AA24: 1
E27: System split
E28: Ballarat | F28: 0.8528331258 | G28: 0.8528331258 | H28: 0.8528331258 | I28: 0.8528331258 | J28: 0.8528331258 | K28: 0.8528331258 | L28: 0.8528331258 | M28: 0.8528331258 | N28: 0.8528331258 | O28: 0.8528331258 | P28: 0.8528331258 | Q28: 0.8528331258 | R28: 0.8528331258 | S28: 0.8528331258 | T28: 0.8528331258 | U28: 0.8528331258 | V28: 0.8528331258 | W28: 0.8528331258 | X28: 0.8528331258 | Y28: 0.8528331258 | Z28: 0.8528331258 | AA28: 0.8528331258
E29: Avoca | F29: 0 | G29: 0 | H29: 0 | I29: 0 | J29: 0 | K29: 0 | L29: 0 | M29: 0 | N29: 0 | O29: 0 | P29: 0 | Q29: 0 | R29: 0 | S29: 0 | T29: 0 | U29: 0 | V29: 0 | W29: 0 | X29: 0 | Y29: 0 | Z29: 0 | AA29: 0
E30: Beaufort | F30: 0 | G30: 0 | H30: 0 | I30: 0 | J30: 0 | K30: 0 | L30: 0 | M30: 0 | N30: 0 | O30: 0 | P30: 0 | Q30: 0 | R30: 0 | S30: 0 | T30: 0 | U30: 0 | V30: 0 | W30: 0 | X30: 0 | Y30: 0 | Z30: 0 | AA30: 0
E31: Daylesford | F31: 0.04176525529 | G31: 0.04176525529 | H31: 0.04176525529 | I31: 0.04176525529 | J31: 0.04176525529 | K31: 0.04176525529 | L31: 0.04176525529 | M31: 0.04176525529 | N31: 0.04176525529 | O31: 0.04176525529 | P31: 0.04176525529 | Q31: 0.04176525529 | R31: 0.04176525529 | S31: 0.04176525529 | T31: 0.04176525529 | U31: 0.04176525529 | V31: 0.04176525529 | W31: 0.04176525529 | X31: 0.04176525529 | Y31: 0.04176525529 | Z31: 0.04176525529 | AA31: 0.04176525529
C32: Note: | E32: Maryborough | F32: 0.07370797011 | G32: 0.07370797011 | H32: 0.07370797011 | I32: 0.07370797011 | J32: 0.07370797011 | K32: 0.07370797011 | L32: 0.07370797011 | M32: 0.07370797011 | N32: 0.07370797011 | O32: 0.07370797011 | P32: 0.07370797011 | Q32: 0.07370797011 | R32: 0.07370797011 | S32: 0.07370797011 | T32: 0.07370797011 | U32: 0.07370797011 | V32: 0.07370797011 | W32: 0.07370797011 | X32: 0.07370797011 | Y32: 0.07370797011 | Z32: 0.07370797011 | AA32: 0.07370797011
C33: Sum of remainder with Avoca and Beaufort | D33: 0.03169364882 | E33: Remainder | F33: 0.03169364882 | G33: 0.03169364882 | H33: 0.03169364882 | I33: 0.03169364882 | J33: 0.03169364882 | K33: 0.03169364882 | L33: 0.03169364882 | M33: 0.03169364882 | N33: 0.03169364882 | O33: 0.03169364882 | P33: 0.03169364882 | Q33: 0.03169364882 | R33: 0.03169364882 | S33: 0.03169364882 | T33: 0.03169364882 | U33: 0.03169364882 | V33: 0.03169364882 | W33: 0.03169364882 | X33: 0.03169364882 | Y33: 0.03169364882 | Z33: 0.03169364882 | AA33: 0.03169364882
E35: Ballarat | F35: =F$16*$F$21*F28 -> 422260.7133 | G35: =G$16*$F$21*G28 -> 434928.5347 | H35: 447976.3908 | I35: 461415.6825 | J35: 475258.153 | K35: 489515.8976 | L35: 504201.3745 | M35: 519327.4157 | N35: 534907.2382 | O35: 550954.4553 | P35: 567483.089 | Q35: 584507.5817 | R35: 602042.8091 | S35: 620104.0934 | T35: 638707.2162 | U35: 657868.4327 | V35: 677604.4857 | W35: 697932.6202 | X35: 718870.5988 | Y35: 740436.7168 | Z35: 762649.8183 | AA35: 785529.3129
E36: Avoca | F36: 0 | G36: =G$16*$F$21*G29 -> 0 | H36: 0 | I36: 0 | J36: 0 | K36: 0 | L36: 0 | M36: 0 | N36: 0 | O36: 0 | P36: 0 | Q36: 0 | R36: 0 | S36: 0 | T36: 0 | U36: 0 | V36: 0 | W36: 0 | X36: 0 | Y36: 0 | Z36: 0 | AA36: 0
E37: Beaufort | F37: 0 | G37: =G$16*$F$21*G30 -> 0 | H37: 0 | I37: 0 | J37: 0 | K37: 0 | L37: 0 | M37: 0 | N37: 0 | O37: 0 | P37: 0 | Q37: 0 | R37: 0 | S37: 0 | T37: 0 | U37: 0 | V37: 0 | W37: 0 | X37: 0 | Y37: 0 | Z37: 0 | AA37: 0
E38: Daylesford | F38: 20679.10586 | G38: =G$16*$F$21*G31 -> 21299.47904 | H38: 21938.46341 | I38: 22596.61731 | J38: 23274.51583 | K38: 23972.75131 | L38: 24691.93385 | M38: 25432.69186 | N38: 26195.67262 | O38: 26981.5428 | P38: 27790.98908 | Q38: 28624.71875 | R38: 29483.46032 | S38: 30367.96413 | T38: 31279.00305 | U38: 32217.37314 | V38: 33183.89433 | W38: 34179.41116 | X38: 35204.7935 | Y38: 36260.9373 | Z38: 37348.76542 | AA38: 38469.22839
E39: Maryborough | F39: 36494.80666 | G39: =G$16*$F$21*G32 -> 37589.65086 | H39: 38717.34038 | I39: 39878.8606 | J39: 41075.22641 | K39: 42307.48321 | L39: 43576.7077 | M39: 44884.00893 | N39: 46230.5292 | O39: 47617.44508 | P39: 49045.96843 | Q39: 50517.34748 | R39: 52032.86791 | S39: 53593.85394 | T39: 55201.66956 | U39: 56857.71965 | V39: 58563.45124 | W39: 60320.35478 | X39: 62129.96542 | Y39: 63993.86438 | Z39: 65913.68031 | AA39: 67891.09072
E40: Remainder | F40: 15692.38149 | G40: =G$16*$F$21*G33 -> 16163.15294 | H40: 16648.04752 | I40: 17147.48895 | J40: 17661.91362 | K40: 18191.77103 | L40: 18737.52416 | M40: 19299.64988 | N40: 19878.63938 | O40: 20474.99856 | P40: 21089.24852 | Q40: 21721.92597 | R40: 22373.58375 | S40: 23044.79126 | T40: 23736.135 | U40: 24448.21905 | V40: 25181.66562 | W40: 25937.11559 | X40: 26715.22906 | Y40: 27516.68593 | Z40: 28342.18651 | AA40: 29192.4521

Sheet Ballarat
A1: =UPPER(WorkBookTitle) -> CENTRAL HIGHLANDS WATER - NCC WATER
A2: =MID(CELL("filename",A1),FIND("]",CELL("filename",A1))+1,255) -> Ballarat
A3: =YEAR(Setup!$I$25)&" price period" -> 2023 price period
B5: Timing flags
E7: =Setup!E37 -> Year counter | P7: num | R7: =Setup!R37 -> 1 | S7: =Setup!S37 -> 2 | T7: =Setup!T37 -> 3 | U7: =Setup!U37 -> 4 | V7: =Setup!V37 -> 5 | W7: =Setup!W37 -> 6 | X7: =Setup!X37 -> 7 | Y7: =Setup!Y37 -> 8 | Z7: =Setup!Z37 -> 9 | AA7: =Setup!AA37 -> 10 | AB7: =Setup!AB37 -> 11 | AC7: =Setup!AC37 -> 12 | AD7: =Setup!AD37 -> 13 | AE7: =Setup!AE37 -> 14 | AF7: =Setup!AF37 -> 15 | AG7: =Setup!AG37 -> 16 | AH7: =Setup!AH37 -> 17 | AI7: =Setup!AI37 -> 18 | AJ7: =Setup!AJ37 -> 19 | AK7: =Setup!AK37 -> 20 | AL7: =Setup!AL37 -> 21 | AM7: =Setup!AM37 -> 22 | AN7: =Setup!AN37 -> 23 | AO7: =Setup!AO37 -> 24 | AP7: =Setup!AP37 -> 25
E8: =Setup!E41 -> Financial year | P8: year | R8: =Setup!R41 -> 2018-19 | S8: =Setup!S41 -> 2019-20 | T8: =Setup!T41 -> 2020-21 | U8: =Setup!U41 -> 2021-22 | V8: =Setup!V41 -> 2022-23 | W8: =Setup!W41 -> 2023-24 | X8: =Setup!X41 -> 2024-25 | Y8: =Setup!Y41 -> 2025-26 | Z8: =Setup!Z41 -> 2026-27 | AA8: =Setup!AA41 -> 2027-28 | AB8: =Setup!AB41 -> 2028-29 | AC8: =Setup!AC41 -> 2029-30 | AD8: =Setup!AD41 -> 2030-31 | AE8: =Setup!AE41 -> 2031-32 | AF8: =Setup!AF41 -> 2032-33 | AG8: =Setup!AG41 -> 2033-34 | AH8: =Setup!AH41 -> 2034-35 | AI8: =Setup!AI41 -> 2035-36 | AJ8: =Setup!AJ41 -> 2036-37 | AK8: =Setup!AK41 -> 2037-38 | AL8: =Setup!AL41 -> 2038-39 | AM8: =Setup!AM41 -> 2039-40 | AN8: =Setup!AN41 -> 2040-41 | AO8: =Setup!AO41 -> 2041-42 | AP8: =Setup!AP41 -> 2042-43
E9: =Setup!E46 -> Pricing period | P9: num | R9: =Setup!R46 -> 1 | S9: =Setup!S46 -> 1 | T9: =Setup!T46 -> 1 | U9: =Setup!U46 -> 1 | V9: =Setup!V46 -> 1 | W9: =Setup!W46 -> 2 | X9: =Setup!X46 -> 2 | Y9: =Setup!Y46 -> 2 | Z9: =Setup!Z46 -> 2 | AA9: =Setup!AA46 -> 2 | AB9: =Setup!AB46 -> 3 | AC9: =Setup!AC46 -> 3 | AD9: =Setup!AD46 -> 3 | AE9: =Setup!AE46 -> 3 | AF9: =Setup!AF46 -> 3 | AG9: =Setup!AG46 -> 4 | AH9: =Setup!AH46 -> 4 | AI9: =Setup!AI46 -> 4 | AJ9: =Setup!AJ46 -> 4 | AK9: =Setup!AK46 -> 4 | AL9: =Setup!AL46 -> 5 | AM9: =Setup!AM46 -> 5 | AN9: =Setup!AN46 -> 5 | AO9: =Setup!AO46 -> 5 | AP9: =Setup!AP46 -> 5
B11: Incremental cost
C12: Growth related capital expenditure
